{"text_format":"1","workbook":"xlsx","n_sheets":13,"sheets":["Control","P4","P1 2 3","AGB","Contaminants","Hydrogeology","Attenuation","WaterBalance","Pathways","Simulation","Audit","NonHaz Complia","Haz Compliance"],"not_rendered":{"charts":0,"images":3,"macros":1,"external_links":0,"defined_names":3680,"comments":0,"pivot_tables":0},"unopened":[],"bounds":{"document_bytes":16777216,"sheet_cells":100000,"rows_first":2000,"rows_last":500,"rows_between":2000,"halvings":0,"cell_chars":16384,"cell_head_chars":4096},"cells_cut":0,"cells_raw":0,"read":"whole","date_system":"1900"}

{"sheet":"Control","index":0,"n_rows":34,"n_cols":3,"rows_kept":34,"cut":false,"hidden":false,"merged":[]}
[]
[]
[]
[]
[]
[]
[]
[]
[]
[]
[]
[]
[]
[]
[]
[]
[]
[]
[]
[]
[]
[]
[]
[]
[]
[]
[]
[]
[]
[null,null,"Numerical value"]
[null,null,"Suggested formula"]
[null,null,"Probabilistic parameters"]
[null,null,"Data specified elsewhere"]
[null,null,"Suggested formula edited"]

{"sheet":"P4","index":1,"n_rows":131,"n_cols":10,"rows_kept":131,"cut":false,"hidden":true,"merged":[]}
["SOURCE CONCENTRATIONS: P4"]
[]
["Source Data Options","Source Type"]
[]
[]
[]
[]
[]
[]
[]
["Target Standard"]
[]
["Select which Quality Standard (defined on the Contaminants sheet) to apply"]
["Not Specified"]
[]
[]
["Source Geometry"]
[]
["P4_Source_length",320,"m"]
["P4_Source_width",295,"m"]
["P4_Source_area",72311,"m2"]
["P4_Source_thickness",9,"m"]
["P4_Source_volume",{"$f":" P4_Source_area * P4_Source_thickness","v":650799},"m3"]
[]
[]
["General Source Properties"]
[]
["P4_Source_field_capacity","[-]",0.25]
["Distribution",null,"constant"]
["P4_Source_field_capacity_param1"]
["P4_Source_field_capacity_param2"]
["P4_Source_field_capacity_param3"]
[]
[]
["P4_Source_porosity_total","[-]"]
["Distribution",null,"constant"]
["P4_Source_porosity_total_param1"]
["P4_Source_porosity_total_param2"]
["P4_Source_porosity_total_param3"]
[]
[]
["P4_Source_porosity_water_filled","[-]"]
["Distribution",null,"constant"]
["P4_Source_porosity_water_filled_param1"]
["P4_Source_porosity_water_filled_param2"]
["P4_Source_porosity_water_filled_param3"]
[]
[]
["P4_Source_porosity_air_filled","[-]",{"$f":" P4_Source_porosity_total - P4_Source_porosity_water_filled","v":0}]
["Distribution",null,"constant"]
["P4_Source_porosity_air_filled_param1"]
["P4_Source_porosity_air_filled_param2"]
["P4_Source_porosity_air_filled_param3"]
[]
[]
["P4_Source_dry_bulk_density","kg/m3"]
["Distribution",null,"constant"]
["P4_Source_dry_bulk_density_param1"]
["P4_Source_dry_bulk_density_param2"]
["P4_Source_dry_bulk_density_param3"]
[]
[]
["P4_Source_fraction_organic_carbon","[-]"]
["Distribution",null,"constant"]
["P4_Source_fraction_organic_carbon_param1"]
["P4_Source_fraction_organic_carbon_param2"]
["P4_Source_fraction_organic_carbon_param3"]
[]
[]
[]
["Source Contaminant Information"]
[]
["Source determinand names",null,{"$f":" IF( ISTEXT( (Contaminants_Source_determinand_names Contaminants_Species1)), (Contaminants_Source_determinand_names Contaminants_Species1), \"Undefined\" )","v":"Arsenic"},{"$f":" IF( ISTEXT( (Contaminants_Source_determinand_names Contaminants_Species2)), (Contaminants_Source_determinand_names Contaminants_Species2), \"Undefined\" )","v":"Nickel"},{"$f":" IF( ISTEXT( (Contaminants_Source_determinand_names Contaminants_Species3)), (Contaminants_Source_determinand_names Contaminants_Species3), \"Undefined\" )","v":"Sulphate"},{"$f":" IF( ISTEXT( (Contaminants_Source_determinand_names Contaminants_Species4)), (Contaminants_Source_determinand_names Contaminants_Species4), \"Undefined\" )","v":"Benzene"},{"$f":" IF( ISTEXT( (Contaminants_Source_determinand_names Contaminants_Species5)), (Contaminants_Source_determinand_names Contaminants_Species5), \"Undefined\" )","v":"BaP"},{"$f":" IF( ISTEXT( (Contaminants_Source_determinand_names Contaminants_Species6)), (Contaminants_Source_determinand_names Contaminants_Species6), \"Undefined\" )","v":"Undefined"},{"$f":" IF( ISTEXT( (Contaminants_Source_determinand_names Contaminants_Species7)), (Contaminants_Source_determinand_names Contaminants_Species7), \"Undefined\" )","v":"Undefined"},{"$f":" IF( ISTEXT( (Contaminants_Source_determinand_names Contaminants_Species8)), (Contaminants_Source_determinand_names Contaminants_Species8), \"Undefined\" )","v":"Undefined"}]
[]
["P4_Pore_water_concentration","mg/L",0.05,0.04,100,0.6,10]
["Distribution",null,"constant","constant","constant","constant","constant","constant","constant","constant"]
["P4_Pore_water_concentration_param1"]
["P4_Pore_water_concentration_param2"]
["P4_Pore_water_concentration_param3"]
[]
[]
["P4_Leaching_test_concentration","mg/L"]
["Distribution",null,"constant","constant","constant","constant","constant","constant","constant","constant"]
["P4_Leaching_test_concentration_param1"]
["P4_Leaching_test_concentration_param2"]
["P4_Leaching_test_concentration_param3"]
[]
[]
["P4_Soil_contaminant_concentration","mg/kg"]
["Distribution",null,"constant","constant","constant","constant","constant","constant","constant","constant"]
["P4_Soil_contaminant_concentration_param1"]
["P4_Soil_contaminant_concentration_param2"]
["P4_Soil_contaminant_concentration_param3"]
[]
[]
["P4_Source_solid_water_partitioning_coefficient_Kd","L/kg",{"$f":" (Contaminants_Organic_Carbon_Water_Partition_Coefficient_Koc  Contaminants_Species1) * ( P4_Source_fraction_organic_carbon)","v":0},{"$f":" (Contaminants_Organic_Carbon_Water_Partition_Coefficient_Koc  Contaminants_Species2) * ( P4_Source_fraction_organic_carbon)","v":0},{"$f":" (Contaminants_Organic_Carbon_Water_Partition_Coefficient_Koc  Contaminants_Species3) * ( P4_Source_fraction_organic_carbon)","v":0},{"$f":" (Contaminants_Organic_Carbon_Water_Partition_Coefficient_Koc  Contaminants_Species4) * ( P4_Source_fraction_organic_carbon)","v":0},{"$f":" (Contaminants_Organic_Carbon_Water_Partition_Coefficient_Koc  Contaminants_Species5) * ( P4_Source_fraction_organic_carbon)","v":0},{"$f":" (Contaminants_Organic_Carbon_Water_Partition_Coefficient_Koc  Contaminants_Species6) * ( P4_Source_fraction_organic_carbon)","v":0},{"$f":" (Contaminants_Organic_Carbon_Water_Partition_Coefficient_Koc  Contaminants_Species7) * ( P4_Source_fraction_organic_carbon)","v":0},{"$f":" (Contaminants_Organic_Carbon_Water_Partition_Coefficient_Koc  Contaminants_Species8) * ( P4_Source_fraction_organic_carbon)","v":0}]
["Distribution",null,"constant","constant","constant","constant","constant","constant","constant","constant"]
["P4_Source_solid_water_partitioning_coefficient_Kd_param1"]
["P4_Source_solid_water_partitioning_coefficient_Kd_param2"]
["P4_Source_solid_water_partitioning_coefficient_Kd_param3"]
[]
[]
["P4_Initial_inventory","kg",{"$f":" 0.001 * (P4_Pore_water_concentration) * (P4_Source_field_capacity) * (P4_Source_volume)","v":8.1349875000000011},6.5079900000000004,16269.975,97.619849999999985,1626.9974999999999,0,0,0]
["Distribution",null,"constant","constant","constant","constant","constant","constant","constant","constant"]
["P4_Initial_inventory_param1"]
["P4_Initial_inventory_param2"]
["P4_Initial_inventory_param3"]
[]
[]
["P4_Kappa_slope_value_m","kg/L"]
["Distribution",null,"constant","constant","constant","constant","constant","constant","constant","constant"]
["P4_Kappa_slope_value_m_param1"]
["P4_Kappa_slope_value_m_param2"]
["P4_Kappa_slope_value_m_param3"]
[]
[]
["P4_Kappa_intercept_value_c","kg/L"]
["Distribution",null,"constant","constant","constant","constant","constant","constant","constant","constant"]
["P4_Kappa_intercept_value_c_param1"]
["P4_Kappa_intercept_value_c_param2"]
["P4_Kappa_intercept_value_c_param3"]
[]
[]
["P4_Kappa_Value","kg/L",{"$f":" IF(AND(ISNUMBER(P4_Kappa_slope_value_m),ISNUMBER(P4_Kappa_intercept_value_c),ISNUMBER(P4_Input_concentration)), IF(P4_Input_concentration>0,MAX(0,P4_Kappa_slope_value_m * LN(1000 * P4_Input_concentration) + P4_Kappa_intercept_value_c),\"\"),\"Not-used\")","v":"Not-used"},"Not-used","Not-used","Not-used","Not-used","Not-used","Not-used","Not-used"]
["Distribution",null,"constant","constant","constant","constant","constant","constant","constant","constant"]
["P4_Kappa_Value_param1"]
["P4_Kappa_Value_param2"]
["P4_Kappa_Value_param3"]
[]
[]
["P4_Input_concentration","mg/L",{"$f":" (P4_Pore_water_concentration)","v":0.05},0.04,100,0.6,10,0,0,0]

{"sheet":"P1 2 3","index":2,"n_rows":131,"n_cols":10,"rows_kept":131,"cut":false,"hidden":true,"merged":[]}
["SOURCE CONCENTRATIONS: P1 2 3"]
[]
["Source Data Options","Source Type"]
[]
[]
[]
[]
[]
[]
[]
["Target Standard"]
[]
["Select which Quality Standard (defined on the Contaminants sheet) to apply"]
["Not Specified"]
[]
[]
["Source Geometry"]
[]
["P1_2_3_Source_length",445,"m"]
["P1_2_3_Source_width",619,"m"]
["P1_2_3_Source_area",292443,"m2"]
["P1_2_3_Source_thickness",9,"m"]
["P1_2_3_Source_volume",{"$f":" P1_2_3_Source_area * P1_2_3_Source_thickness","v":2631987},"m3"]
[]
[]
["General Source Properties"]
[]
["P1_2_3_Source_field_capacity","[-]",0.25]
["Distribution",null,"constant"]
["P1_2_3_Source_field_capacity_param1"]
["P1_2_3_Source_field_capacity_param2"]
["P1_2_3_Source_field_capacity_param3"]
[]
[]
["P1_2_3_Source_porosity_total","[-]"]
["Distribution",null,"constant"]
["P1_2_3_Source_porosity_total_param1"]
["P1_2_3_Source_porosity_total_param2"]
["P1_2_3_Source_porosity_total_param3"]
[]
[]
["P1_2_3_Source_porosity_water_filled","[-]"]
["Distribution",null,"constant"]
["P1_2_3_Source_porosity_water_filled_param1"]
["P1_2_3_Source_porosity_water_filled_param2"]
["P1_2_3_Source_porosity_water_filled_param3"]
[]
[]
["P1_2_3_Source_porosity_air_filled","[-]",{"$f":" P1_2_3_Source_porosity_total - P1_2_3_Source_porosity_water_filled","v":0}]
["Distribution",null,"constant"]
["P1_2_3_Source_porosity_air_filled_param1"]
["P1_2_3_Source_porosity_air_filled_param2"]
["P1_2_3_Source_porosity_air_filled_param3"]
[]
[]
["P1_2_3_Source_dry_bulk_density","kg/m3"]
["Distribution",null,"constant"]
["P1_2_3_Source_dry_bulk_density_param1"]
["P1_2_3_Source_dry_bulk_density_param2"]
["P1_2_3_Source_dry_bulk_density_param3"]
[]
[]
["P1_2_3_Source_fraction_organic_carbon","[-]"]
["Distribution",null,"constant"]
["P1_2_3_Source_fraction_organic_carbon_param1"]
["P1_2_3_Source_fraction_organic_carbon_param2"]
["P1_2_3_Source_fraction_organic_carbon_param3"]
[]
[]
[]
["Source Contaminant Information"]
[]
["Source determinand names",null,{"$f":" IF( ISTEXT( (Contaminants_Source_determinand_names Contaminants_Species1)), (Contaminants_Source_determinand_names Contaminants_Species1), \"Undefined\" )","v":"Arsenic"},{"$f":" IF( ISTEXT( (Contaminants_Source_determinand_names Contaminants_Species2)), (Contaminants_Source_determinand_names Contaminants_Species2), \"Undefined\" )","v":"Nickel"},{"$f":" IF( ISTEXT( (Contaminants_Source_determinand_names Contaminants_Species3)), (Contaminants_Source_determinand_names Contaminants_Species3), \"Undefined\" )","v":"Sulphate"},{"$f":" IF( ISTEXT( (Contaminants_Source_determinand_names Contaminants_Species4)), (Contaminants_Source_determinand_names Contaminants_Species4), \"Undefined\" )","v":"Benzene"},{"$f":" IF( ISTEXT( (Contaminants_Source_determinand_names Contaminants_Species5)), (Contaminants_Source_determinand_names Contaminants_Species5), \"Undefined\" )","v":"BaP"},{"$f":" IF( ISTEXT( (Contaminants_Source_determinand_names Contaminants_Species6)), (Contaminants_Source_determinand_names Contaminants_Species6), \"Undefined\" )","v":"Undefined"},{"$f":" IF( ISTEXT( (Contaminants_Source_determinand_names Contaminants_Species7)), (Contaminants_Source_determinand_names Contaminants_Species7), \"Undefined\" )","v":"Undefined"},{"$f":" IF( ISTEXT( (Contaminants_Source_determinand_names Contaminants_Species8)), (Contaminants_Source_determinand_names Contaminants_Species8), \"Undefined\" )","v":"Undefined"}]
[]
["P1_2_3_Pore_water_concentration","mg/L",0.05,0.04,100,0.6,10]
["Distribution",null,"constant","constant","constant","constant","constant","constant","constant","constant"]
["P1_2_3_Pore_water_concentration_param1"]
["P1_2_3_Pore_water_concentration_param2"]
["P1_2_3_Pore_water_concentration_param3"]
[]
[]
["P1_2_3_Leaching_test_concentration","mg/L"]
["Distribution",null,"constant","constant","constant","constant","constant","constant","constant","constant"]
["P1_2_3_Leaching_test_concentration_param1"]
["P1_2_3_Leaching_test_concentration_param2"]
["P1_2_3_Leaching_test_concentration_param3"]
[]
[]
["P1_2_3_Soil_contaminant_concentration","mg/kg"]
["Distribution",null,"constant","constant","constant","constant","constant","constant","constant","constant"]
["P1_2_3_Soil_contaminant_concentration_param1"]
["P1_2_3_Soil_contaminant_concentration_param2"]
["P1_2_3_Soil_contaminant_concentration_param3"]
[]
[]
["P1_2_3_Source_solid_water_partitioning_coefficient_Kd","L/kg",{"$f":" (Contaminants_Organic_Carbon_Water_Partition_Coefficient_Koc  Contaminants_Species1) * ( P1_2_3_Source_fraction_organic_carbon)","v":0},{"$f":" (Contaminants_Organic_Carbon_Water_Partition_Coefficient_Koc  Contaminants_Species2) * ( P1_2_3_Source_fraction_organic_carbon)","v":0},{"$f":" (Contaminants_Organic_Carbon_Water_Partition_Coefficient_Koc  Contaminants_Species3) * ( P1_2_3_Source_fraction_organic_carbon)","v":0},{"$f":" (Contaminants_Organic_Carbon_Water_Partition_Coefficient_Koc  Contaminants_Species4) * ( P1_2_3_Source_fraction_organic_carbon)","v":0},{"$f":" (Contaminants_Organic_Carbon_Water_Partition_Coefficient_Koc  Contaminants_Species5) * ( P1_2_3_Source_fraction_organic_carbon)","v":0},{"$f":" (Contaminants_Organic_Carbon_Water_Partition_Coefficient_Koc  Contaminants_Species6) * ( P1_2_3_Source_fraction_organic_carbon)","v":0},{"$f":" (Contaminants_Organic_Carbon_Water_Partition_Coefficient_Koc  Contaminants_Species7) * ( P1_2_3_Source_fraction_organic_carbon)","v":0},{"$f":" (Contaminants_Organic_Carbon_Water_Partition_Coefficient_Koc  Contaminants_Species8) * ( P1_2_3_Source_fraction_organic_carbon)","v":0}]
["Distribution",null,"constant","constant","constant","constant","constant","constant","constant","constant"]
["P1_2_3_Source_solid_water_partitioning_coefficient_Kd_param1"]
["P1_2_3_Source_solid_water_partitioning_coefficient_Kd_param2"]
["P1_2_3_Source_solid_water_partitioning_coefficient_Kd_param3"]
[]
[]
["P1_2_3_Initial_inventory","kg",{"$f":" 0.001 * (P1_2_3_Pore_water_concentration) * (P1_2_3_Source_field_capacity) * (P1_2_3_Source_volume)","v":32.899837500000004},26.319870000000002,65799.675000000003,394.79804999999999,6579.9674999999997,0,0,0]
["Distribution",null,"constant","constant","constant","constant","constant","constant","constant","constant"]
["P1_2_3_Initial_inventory_param1"]
["P1_2_3_Initial_inventory_param2"]
["P1_2_3_Initial_inventory_param3"]
[]
[]
["P1_2_3_Kappa_slope_value_m","kg/L"]
["Distribution",null,"constant","constant","constant","constant","constant","constant","constant","constant"]
["P1_2_3_Kappa_slope_value_m_param1"]
["P1_2_3_Kappa_slope_value_m_param2"]
["P1_2_3_Kappa_slope_value_m_param3"]
[]
[]
["P1_2_3_Kappa_intercept_value_c","kg/L"]
["Distribution",null,"constant","constant","constant","constant","constant","constant","constant","constant"]
["P1_2_3_Kappa_intercept_value_c_param1"]
["P1_2_3_Kappa_intercept_value_c_param2"]
["P1_2_3_Kappa_intercept_value_c_param3"]
[]
[]
["P1_2_3_Kappa_Value","kg/L",{"$f":" IF(AND(ISNUMBER(P1_2_3_Kappa_slope_value_m),ISNUMBER(P1_2_3_Kappa_intercept_value_c),ISNUMBER(P1_2_3_Input_concentration)), IF(P1_2_3_Input_concentration>0,MAX(0,P1_2_3_Kappa_slope_value_m * LN(1000 * P1_2_3_Input_concentration) + P1_2_3_Kappa_intercept_value_c),\"\"),\"Not-used\")","v":"Not-used"},"Not-used","Not-used","Not-used","Not-used","Not-used","Not-used","Not-used"]
["Distribution",null,"constant","constant","constant","constant","constant","constant","constant","constant"]
["P1_2_3_Kappa_Value_param1"]
["P1_2_3_Kappa_Value_param2"]
["P1_2_3_Kappa_Value_param3"]
[]
[]
["P1_2_3_Input_concentration","mg/L",{"$f":" (P1_2_3_Pore_water_concentration)","v":0.05},0.04,100,0.6,10,0,0,0]

{"sheet":"AGB","index":3,"n_rows":131,"n_cols":10,"rows_kept":131,"cut":false,"hidden":true,"merged":[]}
["SOURCE CONCENTRATIONS: AGB"]
[]
["Source Data Options","Source Type"]
[]
[]
[]
[]
[]
[]
[]
["Target Standard"]
[]
["Select which Quality Standard (defined on the Contaminants sheet) to apply"]
["Not Specified"]
[]
[]
["Source Geometry"]
[]
["AGB_Source_length",null,"m"]
["AGB_Source_width",null,"m"]
["AGB_Source_area",{"$f":"AGB_Source_length * AGB_Source_width","v":0},"m2"]
["AGB_Source_thickness",null,"m"]
["AGB_Source_volume",333249,"m3"]
[]
[]
["General Source Properties"]
[]
["AGB_Source_field_capacity","[-]",0.25]
["Distribution",null,"constant"]
["AGB_Source_field_capacity_param1"]
["AGB_Source_field_capacity_param2"]
["AGB_Source_field_capacity_param3"]
[]
[]
["AGB_Source_porosity_total","[-]"]
["Distribution",null,"constant"]
["AGB_Source_porosity_total_param1"]
["AGB_Source_porosity_total_param2"]
["AGB_Source_porosity_total_param3"]
[]
[]
["AGB_Source_porosity_water_filled","[-]"]
["Distribution",null,"constant"]
["AGB_Source_porosity_water_filled_param1"]
["AGB_Source_porosity_water_filled_param2"]
["AGB_Source_porosity_water_filled_param3"]
[]
[]
["AGB_Source_porosity_air_filled","[-]",{"$f":" AGB_Source_porosity_total - AGB_Source_porosity_water_filled","v":0}]
["Distribution",null,"constant"]
["AGB_Source_porosity_air_filled_param1"]
["AGB_Source_porosity_air_filled_param2"]
["AGB_Source_porosity_air_filled_param3"]
[]
[]
["AGB_Source_dry_bulk_density","kg/m3"]
["Distribution",null,"constant"]
["AGB_Source_dry_bulk_density_param1"]
["AGB_Source_dry_bulk_density_param2"]
["AGB_Source_dry_bulk_density_param3"]
[]
[]
["AGB_Source_fraction_organic_carbon","[-]"]
["Distribution",null,"constant"]
["AGB_Source_fraction_organic_carbon_param1"]
["AGB_Source_fraction_organic_carbon_param2"]
["AGB_Source_fraction_organic_carbon_param3"]
[]
[]
[]
["Source Contaminant Information"]
[]
["Source determinand names",null,{"$f":" IF( ISTEXT( (Contaminants_Source_determinand_names Contaminants_Species1)), (Contaminants_Source_determinand_names Contaminants_Species1), \"Undefined\" )","v":"Arsenic"},{"$f":" IF( ISTEXT( (Contaminants_Source_determinand_names Contaminants_Species2)), (Contaminants_Source_determinand_names Contaminants_Species2), \"Undefined\" )","v":"Nickel"},{"$f":" IF( ISTEXT( (Contaminants_Source_determinand_names Contaminants_Species3)), (Contaminants_Source_determinand_names Contaminants_Species3), \"Undefined\" )","v":"Sulphate"},{"$f":" IF( ISTEXT( (Contaminants_Source_determinand_names Contaminants_Species4)), (Contaminants_Source_determinand_names Contaminants_Species4), \"Undefined\" )","v":"Benzene"},{"$f":" IF( ISTEXT( (Contaminants_Source_determinand_names Contaminants_Species5)), (Contaminants_Source_determinand_names Contaminants_Species5), \"Undefined\" )","v":"BaP"},{"$f":" IF( ISTEXT( (Contaminants_Source_determinand_names Contaminants_Species6)), (Contaminants_Source_determinand_names Contaminants_Species6), \"Undefined\" )","v":"Undefined"},{"$f":" IF( ISTEXT( (Contaminants_Source_determinand_names Contaminants_Species7)), (Contaminants_Source_determinand_names Contaminants_Species7), \"Undefined\" )","v":"Undefined"},{"$f":" IF( ISTEXT( (Contaminants_Source_determinand_names Contaminants_Species8)), (Contaminants_Source_determinand_names Contaminants_Species8), \"Undefined\" )","v":"Undefined"}]
[]
["AGB_Pore_water_concentration","mg/L",0.05,0.04,100,0.6,10]
["Distribution",null,"constant","constant","constant","constant","constant","constant","constant","constant"]
["AGB_Pore_water_concentration_param1"]
["AGB_Pore_water_concentration_param2"]
["AGB_Pore_water_concentration_param3"]
[]
[]
["AGB_Leaching_test_concentration","mg/L"]
["Distribution",null,"constant","constant","constant","constant","constant","constant","constant","constant"]
["AGB_Leaching_test_concentration_param1"]
["AGB_Leaching_test_concentration_param2"]
["AGB_Leaching_test_concentration_param3"]
[]
[]
["AGB_Soil_contaminant_concentration","mg/kg"]
["Distribution",null,"constant","constant","constant","constant","constant","constant","constant","constant"]
["AGB_Soil_contaminant_concentration_param1"]
["AGB_Soil_contaminant_concentration_param2"]
["AGB_Soil_contaminant_concentration_param3"]
[]
[]
["AGB_Source_solid_water_partitioning_coefficient_Kd","L/kg",{"$f":" (Contaminants_Organic_Carbon_Water_Partition_Coefficient_Koc  Contaminants_Species1) * ( AGB_Source_fraction_organic_carbon)","v":0},{"$f":" (Contaminants_Organic_Carbon_Water_Partition_Coefficient_Koc  Contaminants_Species2) * ( AGB_Source_fraction_organic_carbon)","v":0},{"$f":" (Contaminants_Organic_Carbon_Water_Partition_Coefficient_Koc  Contaminants_Species3) * ( AGB_Source_fraction_organic_carbon)","v":0},{"$f":" (Contaminants_Organic_Carbon_Water_Partition_Coefficient_Koc  Contaminants_Species4) * ( AGB_Source_fraction_organic_carbon)","v":0},{"$f":" (Contaminants_Organic_Carbon_Water_Partition_Coefficient_Koc  Contaminants_Species5) * ( AGB_Source_fraction_organic_carbon)","v":0},{"$f":" (Contaminants_Organic_Carbon_Water_Partition_Coefficient_Koc  Contaminants_Species6) * ( AGB_Source_fraction_organic_carbon)","v":0},{"$f":" (Contaminants_Organic_Carbon_Water_Partition_Coefficient_Koc  Contaminants_Species7) * ( AGB_Source_fraction_organic_carbon)","v":0},{"$f":" (Contaminants_Organic_Carbon_Water_Partition_Coefficient_Koc  Contaminants_Species8) * ( AGB_Source_fraction_organic_carbon)","v":0}]
["Distribution",null,"constant","constant","constant","constant","constant","constant","constant","constant"]
["AGB_Source_solid_water_partitioning_coefficient_Kd_param1"]
["AGB_Source_solid_water_partitioning_coefficient_Kd_param2"]
["AGB_Source_solid_water_partitioning_coefficient_Kd_param3"]
[]
[]
["AGB_Initial_inventory","kg",{"$f":" 0.001 * (AGB_Pore_water_concentration) * (AGB_Source_field_capacity) * (AGB_Source_volume)","v":4.1656124999999999},3.3324900000000004,8331.2250000000004,49.987349999999992,833.12250000000006,0,0,0]
["Distribution",null,"constant","constant","constant","constant","constant","constant","constant","constant"]
["AGB_Initial_inventory_param1"]
["AGB_Initial_inventory_param2"]
["AGB_Initial_inventory_param3"]
[]
[]
["AGB_Kappa_slope_value_m","kg/L"]
["Distribution",null,"constant","constant","constant","constant","constant","constant","constant","constant"]
["AGB_Kappa_slope_value_m_param1"]
["AGB_Kappa_slope_value_m_param2"]
["AGB_Kappa_slope_value_m_param3"]
[]
[]
["AGB_Kappa_intercept_value_c","kg/L"]
["Distribution",null,"constant","constant","constant","constant","constant","constant","constant","constant"]
["AGB_Kappa_intercept_value_c_param1"]
["AGB_Kappa_intercept_value_c_param2"]
["AGB_Kappa_intercept_value_c_param3"]
[]
[]
["AGB_Kappa_Value","kg/L",{"$f":" IF(AND(ISNUMBER(AGB_Kappa_slope_value_m),ISNUMBER(AGB_Kappa_intercept_value_c),ISNUMBER(AGB_Input_concentration)), IF(AGB_Input_concentration>0,MAX(0,AGB_Kappa_slope_value_m * LN(1000 * AGB_Input_concentration) + AGB_Kappa_intercept_value_c),\"\"),\"Not-used\")","v":"Not-used"},"Not-used","Not-used","Not-used","Not-used","Not-used","Not-used","Not-used"]
["Distribution",null,"constant","constant","constant","constant","constant","constant","constant","constant"]
["AGB_Kappa_Value_param1"]
["AGB_Kappa_Value_param2"]
["AGB_Kappa_Value_param3"]
[]
[]
["AGB_Input_concentration","mg/L",{"$f":" (AGB_Pore_water_concentration)","v":0.05},0.04,100,0.6,10,0,0,0]

{"sheet":"Contaminants","index":4,"n_rows":42,"n_cols":11,"rows_kept":42,"cut":false,"hidden":false,"merged":[]}
["CONTAMINANT INFORMATION"]
[]
[null,null,null,"Species1","Species2","Species3","Species4","Species5","Species6","Species7","Species8"]
["Source determinand names",null,5,"Arsenic","Nickel","Sulphate","Benzene","BaP"]
[]
[]
["Receptor Target Concentrations"]
[null,"Name",null,"Values in mg/L"]
["Quality Standard 1  ","P1 2 3",null,5.0000000000000001E-3,4.0000000000000001E-3,74,1E-3,4.9999999999999998E-8]
["Quality Standard 2  ","P4",null,5.0000000000000001E-3,1.8499999999999999E-2,74,1E-3,4.9999999999999998E-8]
["Quality Standard 3  "]
["Quality Standard 4  "]
[null,"Not Specified"]
[]
["Generic Contaminant Properties"]
[]
["Contaminants_Solubility","mg/L"]
["Distribution",null,null,"constant","constant","constant","constant","constant","constant","constant","constant"]
["Contaminants_Solubility_param1"]
["Contaminants_Solubility_param2"]
["Contaminants_Solubility_param3"]
[]
[]
["Contaminants_Henrys_Law_Constant","[-]"]
["Distribution",null,null,"constant","constant","constant","constant","constant","constant","constant","constant"]
["Contaminants_Henrys_Law_Constant_param1"]
["Contaminants_Henrys_Law_Constant_param2"]
["Contaminants_Henrys_Law_Constant_param3"]
[]
[]
["Contaminants_Organic_Carbon_Water_Partition_Coefficient_Koc","L/kg",null,null,null,null,67.599999999999994,1170000]
["Distribution",null,null,"constant","constant","constant","constant","constant","constant","constant","constant"]
["Contaminants_Organic_Carbon_Water_Partition_Coefficient_Koc_param1"]
["Contaminants_Organic_Carbon_Water_Partition_Coefficient_Koc_param2"]
["Contaminants_Organic_Carbon_Water_Partition_Coefficient_Koc_param3"]
[]
[]
["Contaminants_Free_Water_Diffusion_Coefficient","m2/s",null,9.0499999999999998E-10,1.0000000000000001E-9,2.8E-11,6.9E-10,3.6700000000000003E-10]
["Distribution",null,null,"constant","constant","constant","constant","constant","constant","constant","constant"]
["Contaminants_Free_Water_Diffusion_Coefficient_param1"]
["Contaminants_Free_Water_Diffusion_Coefficient_param2"]
["Contaminants_Free_Water_Diffusion_Coefficient_param3"]

{"sheet":"Hydrogeology","index":5,"n_rows":58,"n_cols":18,"rows_kept":58,"cut":false,"hidden":false,"merged":[]}
["HYDROGEOLOGICAL UNITS"]
[]
["Hydrogeological Units",null,"AGB","Unsat SG","Sat SG","Un Sat SG 2"]
[]
["Hydrogeology_Unit_Thickness","m",1,0.5,11,11]
["Distribution",null,"constant","constant","constant","constant","constant","constant","constant","constant","constant","constant","constant","constant","constant","constant","constant","constant"]
["Hydrogeology_Unit_Thickness_param1"]
["Hydrogeology_Unit_Thickness_param2"]
["Hydrogeology_Unit_Thickness_param3"]
[]
[]
["Hydrogeology_Log_Hydraulic_Conductivity","log(m/s)"]
["Distribution",null,"constant","constant","constant","constant","constant","constant","constant","constant","constant","constant","constant","constant","constant","constant","constant","constant"]
["Hydrogeology_Log_Hydraulic_Conductivity_param1"]
["Hydrogeology_Log_Hydraulic_Conductivity_param2"]
["Hydrogeology_Log_Hydraulic_Conductivity_param3"]
[]
[]
["Hydrogeology_Hydraulic_Conductivity","m/s",1E-8,1.2E-4,4.4999999999999999E-4,4.4999999999999999E-4,{"$f":" POWER(10, (Hydrogeology_Log_Hydraulic_Conductivity))","v":1},1,1,1,1,1,1,1,1,1,1,1]
["Distribution",null,"constant","constant","constant","constant","constant","constant","constant","constant","constant","constant","constant","constant","constant","constant","constant","constant"]
["Hydrogeology_Hydraulic_Conductivity_param1"]
["Hydrogeology_Hydraulic_Conductivity_param2"]
["Hydrogeology_Hydraulic_Conductivity_param3"]
[]
[]
["Hydrogeology_Head","m"]
["Distribution",null,"constant","constant","constant","constant","constant","constant","constant","constant","constant","constant","constant","constant","constant","constant","constant","constant"]
["Hydrogeology_Head_param1"]
["Hydrogeology_Head_param2"]
["Hydrogeology_Head_param3"]
[]
[]
["Hydrogeology_Hydraulic_Gradient","[-]",1,1,2.7000000000000001E-3,2.7000000000000001E-3]
["Distribution",null,"constant","constant","constant","constant","constant","constant","constant","constant","constant","constant","constant","constant","constant","constant","constant","constant"]
["Hydrogeology_Hydraulic_Gradient_param1"]
["Hydrogeology_Hydraulic_Gradient_param2"]
["Hydrogeology_Hydraulic_Gradient_param3"]
[]
[]
["Hydrogeology_Porosity","[-]",0.4,0.2,0.2,0.2]
["Distribution",null,"constant","constant","constant","constant","constant","constant","constant","constant","constant","constant","constant","constant","constant","constant","constant","constant"]
["Hydrogeology_Porosity_param1"]
["Hydrogeology_Porosity_param2"]
["Hydrogeology_Porosity_param3"]
[]
[]
["Hydrogeology_Velocity","m/s",{"$f":" (Hydrogeology_Hydraulic_Conductivity) * (Hydrogeology_Hydraulic_Gradient) / (Hydrogeology_Porosity)","v":2.4999999999999999E-8},5.9999999999999995E-4,6.0749999999999994E-6,6.0749999999999994E-6,{"$error":"#DIV/0!"},{"$error":"#DIV/0!"},{"$error":"#DIV/0!"},{"$error":"#DIV/0!"},{"$error":"#DIV/0!"},{"$error":"#DIV/0!"},{"$error":"#DIV/0!"},{"$error":"#DIV/0!"},{"$error":"#DIV/0!"},{"$error":"#DIV/0!"},{"$error":"#DIV/0!"},{"$error":"#DIV/0!"}]
["Distribution",null,"constant","constant","constant","constant","constant","constant","constant","constant","constant","constant","constant","constant","constant","constant","constant","constant"]
["Hydrogeology_Velocity_param1"]
["Hydrogeology_Velocity_param2"]
["Hydrogeology_Velocity_param3"]
[]
[]
["Hydrogeology_Tortuosity","[-]",5,5,5,5]
["Distribution",null,"constant","constant","constant","constant","constant","constant","constant","constant","constant","constant","constant","constant","constant","constant","constant","constant"]
["Hydrogeology_Tortuosity_param1"]
["Hydrogeology_Tortuosity_param2"]
["Hydrogeology_Tortuosity_param3"]

{"sheet":"Attenuation","index":6,"n_rows":261,"n_cols":18,"rows_kept":261,"cut":false,"hidden":false,"merged":[]}
["ATTENUATION PARAMETERS"]
[]
["Hydrogeological Units",null,"AGB","Unsat SG","Sat SG","Un Sat SG 2"]
[]
["General properties"]
[]
["Attenuation_Dry_bulk_density","kg/m3",1600,1800,1800,1800]
["Distribution",null,"constant","constant","constant","constant","constant","constant","constant","constant","constant","constant","constant","constant","constant","constant","constant","constant"]
["Attenuation_Dry_bulk_density_param1"]
["Attenuation_Dry_bulk_density_param2"]
["Attenuation_Dry_bulk_density_param3"]
[]
[]
["Attenuation_Fraction_organic_carbon","[-]",0.05,2E-3,2E-3,2E-3]
["Distribution",null,"constant","constant","constant","constant","constant","constant","constant","constant","constant","constant","constant","constant","constant","constant","constant","constant"]
["Attenuation_Fraction_organic_carbon_param1"]
["Attenuation_Fraction_organic_carbon_param2"]
["Attenuation_Fraction_organic_carbon_param3"]
[]
[]
[]
["Contaminant specific parameters"]
[]
[{"$f":" IF((Contaminants_Source_determinand_names   Contaminants_Species1)=0,\"Undefined\",(Contaminants_Source_determinand_names   Contaminants_Species1))","v":"Arsenic"}]
[]
["Attenuation_Partition_Coefficient_Kd_Species_1","L/kg",2222,2222,2222,2222,{"$f":" (Attenuation_Fraction_organic_carbon) * (Contaminants_Organic_Carbon_Water_Partition_Coefficient_Koc  Contaminants_Species1)","v":0},{"$f":" (Attenuation_Fraction_organic_carbon) * (Contaminants_Organic_Carbon_Water_Partition_Coefficient_Koc  Contaminants_Species1)","v":0},{"$f":" (Attenuation_Fraction_organic_carbon) * (Contaminants_Organic_Carbon_Water_Partition_Coefficient_Koc  Contaminants_Species1)","v":0},{"$f":" (Attenuation_Fraction_organic_carbon) * (Contaminants_Organic_Carbon_Water_Partition_Coefficient_Koc  Contaminants_Species1)","v":0},{"$f":" (Attenuation_Fraction_organic_carbon) * (Contaminants_Organic_Carbon_Water_Partition_Coefficient_Koc  Contaminants_Species1)","v":0},{"$f":" (Attenuation_Fraction_organic_carbon) * (Contaminants_Organic_Carbon_Water_Partition_Coefficient_Koc  Contaminants_Species1)","v":0},{"$f":" (Attenuation_Fraction_organic_carbon) * (Contaminants_Organic_Carbon_Water_Partition_Coefficient_Koc  Contaminants_Species1)","v":0},{"$f":" (Attenuation_Fraction_organic_carbon) * (Contaminants_Organic_Carbon_Water_Partition_Coefficient_Koc  Contaminants_Species1)","v":0},{"$f":" (Attenuation_Fraction_organic_carbon) * (Contaminants_Organic_Carbon_Water_Partition_Coefficient_Koc  Contaminants_Species1)","v":0},{"$f":" (Attenuation_Fraction_organic_carbon) * (Contaminants_Organic_Carbon_Water_Partition_Coefficient_Koc  Contaminants_Species1)","v":0},{"$f":" (Attenuation_Fraction_organic_carbon) * (Contaminants_Organic_Carbon_Water_Partition_Coefficient_Koc  Contaminants_Species1)","v":0},{"$f":" (Attenuation_Fraction_organic_carbon) * (Contaminants_Organic_Carbon_Water_Partition_Coefficient_Koc  Contaminants_Species1)","v":0}]
["Distribution",null,"constant","constant","constant","constant","constant","constant","constant","constant","constant","constant","constant","constant","constant","constant","constant","constant"]
["Attenuation_Partition_Coefficient_Kd_Species_1_param1"]
["Attenuation_Partition_Coefficient_Kd_Species_1_param2"]
["Attenuation_Partition_Coefficient_Kd_Species_1_param3"]
[]
[]
["Attenuation_Retardation_Species_1","[-]",{"$f":" 1 + 0.001 * (Attenuation_Partition_Coefficient_Kd_Species_1) * (Attenuation_Dry_bulk_density) / (Hydrogeology_Porosity    Hydrogeology!$C:$C)","v":8888.9999999999982},{"$f":" 1 + 0.001 * (Attenuation_Partition_Coefficient_Kd_Species_1) * (Attenuation_Dry_bulk_density) / (Hydrogeology_Porosity    Hydrogeology!$D:$D)","v":19999},{"$f":" 1 + 0.001 * (Attenuation_Partition_Coefficient_Kd_Species_1) * (Attenuation_Dry_bulk_density) / (Hydrogeology_Porosity    Hydrogeology!$E:$E)","v":19999},{"$f":" 1 + 0.001 * (Attenuation_Partition_Coefficient_Kd_Species_1) * (Attenuation_Dry_bulk_density) / (Hydrogeology_Porosity    Hydrogeology!$F:$F)","v":19999},{"$f":" 1 + 0.001 * (Attenuation_Partition_Coefficient_Kd_Species_1) * (Attenuation_Dry_bulk_density) / (Hydrogeology_Porosity    Hydrogeology!$G:$G)","v":{"$error":"#DIV/0!"}},{"$f":" 1 + 0.001 * (Attenuation_Partition_Coefficient_Kd_Species_1) * (Attenuation_Dry_bulk_density) / (Hydrogeology_Porosity    Hydrogeology!$H:$H)","v":{"$error":"#DIV/0!"}},{"$f":" 1 + 0.001 * (Attenuation_Partition_Coefficient_Kd_Species_1) * (Attenuation_Dry_bulk_density) / (Hydrogeology_Porosity    Hydrogeology!$I:$I)","v":{"$error":"#DIV/0!"}},{"$f":" 1 + 0.001 * (Attenuation_Partition_Coefficient_Kd_Species_1) * (Attenuation_Dry_bulk_density) / (Hydrogeology_Porosity    Hydrogeology!$J:$J)","v":{"$error":"#DIV/0!"}},{"$f":" 1 + 0.001 * (Attenuation_Partition_Coefficient_Kd_Species_1) * (Attenuation_Dry_bulk_density) / (Hydrogeology_Porosity    Hydrogeology!$K:$K)","v":{"$error":"#DIV/0!"}},{"$f":" 1 + 0.001 * (Attenuation_Partition_Coefficient_Kd_Species_1) * (Attenuation_Dry_bulk_density) / (Hydrogeology_Porosity    Hydrogeology!$L:$L)","v":{"$error":"#DIV/0!"}},{"$f":" 1 + 0.001 * (Attenuation_Partition_Coefficient_Kd_Species_1) * (Attenuation_Dry_bulk_density) / (Hydrogeology_Porosity    Hydrogeology!$M:$M)","v":{"$error":"#DIV/0!"}},{"$f":" 1 + 0.001 * (Attenuation_Partition_Coefficient_Kd_Species_1) * (Attenuation_Dry_bulk_density) / (Hydrogeology_Porosity    Hydrogeology!$N:$N)","v":{"$error":"#DIV/0!"}},{"$f":" 1 + 0.001 * (Attenuation_Partition_Coefficient_Kd_Species_1) * (Attenuation_Dry_bulk_density) / (Hydrogeology_Porosity    Hydrogeology!$O:$O)","v":{"$error":"#DIV/0!"}},{"$f":" 1 + 0.001 * (Attenuation_Partition_Coefficient_Kd_Species_1) * (Attenuation_Dry_bulk_density) / (Hydrogeology_Porosity    Hydrogeology!$P:$P)","v":{"$error":"#DIV/0!"}},{"$f":" 1 + 0.001 * (Attenuation_Partition_Coefficient_Kd_Species_1) * (Attenuation_Dry_bulk_density) / (Hydrogeology_Porosity    Hydrogeology!$Q:$Q)","v":{"$error":"#DIV/0!"}},{"$f":" 1 + 0.001 * (Attenuation_Partition_Coefficient_Kd_Species_1) * (Attenuation_Dry_bulk_density) / (Hydrogeology_Porosity    Hydrogeology!$R:$R)","v":{"$error":"#DIV/0!"}}]
["Distribution",null,"constant","constant","constant","constant","constant","constant","constant","constant","constant","constant","constant","constant","constant","constant","constant","constant"]
["Attenuation_Retardation_Species_1_param1"]
["Attenuation_Retardation_Species_1_param2"]
["Attenuation_Retardation_Species_1_param3"]
[]
[]
["Attenuation_Half_Life_Species_1","days","No Decay","No Decay","No Decay","No Decay","No Decay","No Decay","No Decay","No Decay","No Decay","No Decay","No Decay","No Decay","No Decay","No Decay","No Decay","No Decay"]
["Distribution",null,"constant","constant","constant","constant","constant","constant","constant","constant","constant","constant","constant","constant","constant","constant","constant","constant"]
["Attenuation_Half_Life_Species_1_param1"]
["Attenuation_Half_Life_Species_1_param2"]
["Attenuation_Half_Life_Species_1_param3"]
[]
[]
["Attenuation_Decay_Coefficient_Species_1","1/s",{"$f":" IF((_xlfn.SINGLE(Attenuation_Half_Life_Species_1))<>\"No Decay\", LN(2) / ((_xlfn.SINGLE(Attenuation_Half_Life_Species_1)) *_xlfn.SINGLE( s_per_day)),0)","v":0},0,0,0,0,0,0,0,0,0,0,0,0,0,0,0]
["Distribution",null,"constant","constant","constant","constant","constant","constant","constant","constant","constant","constant","constant","constant","constant","constant","constant","constant"]
["Attenuation_Decay_Coefficient_Species_1_param1"]
["Attenuation_Decay_Coefficient_Species_1_param2"]
["Attenuation_Decay_Coefficient_Species_1_param3"]
[]
[]
[{"$f":" IF((Contaminants_Source_determinand_names   Contaminants_Species2)=0,\"Undefined\",(Contaminants_Source_determinand_names   Contaminants_Species2))","v":"Nickel"}]
[]
["Attenuation_Partition_Coefficient_Kd_Species_2","L/kg",270,270,270,270,{"$f":" (Attenuation_Fraction_organic_carbon) * (Contaminants_Organic_Carbon_Water_Partition_Coefficient_Koc  Contaminants_Species2)","v":0},{"$f":" (Attenuation_Fraction_organic_carbon) * (Contaminants_Organic_Carbon_Water_Partition_Coefficient_Koc  Contaminants_Species2)","v":0},{"$f":" (Attenuation_Fraction_organic_carbon) * (Contaminants_Organic_Carbon_Water_Partition_Coefficient_Koc  Contaminants_Species2)","v":0},{"$f":" (Attenuation_Fraction_organic_carbon) * (Contaminants_Organic_Carbon_Water_Partition_Coefficient_Koc  Contaminants_Species2)","v":0},{"$f":" (Attenuation_Fraction_organic_carbon) * (Contaminants_Organic_Carbon_Water_Partition_Coefficient_Koc  Contaminants_Species2)","v":0},{"$f":" (Attenuation_Fraction_organic_carbon) * (Contaminants_Organic_Carbon_Water_Partition_Coefficient_Koc  Contaminants_Species2)","v":0},{"$f":" (Attenuation_Fraction_organic_carbon) * (Contaminants_Organic_Carbon_Water_Partition_Coefficient_Koc  Contaminants_Species2)","v":0},{"$f":" (Attenuation_Fraction_organic_carbon) * (Contaminants_Organic_Carbon_Water_Partition_Coefficient_Koc  Contaminants_Species2)","v":0},{"$f":" (Attenuation_Fraction_organic_carbon) * (Contaminants_Organic_Carbon_Water_Partition_Coefficient_Koc  Contaminants_Species2)","v":0},{"$f":" (Attenuation_Fraction_organic_carbon) * (Contaminants_Organic_Carbon_Water_Partition_Coefficient_Koc  Contaminants_Species2)","v":0},{"$f":" (Attenuation_Fraction_organic_carbon) * (Contaminants_Organic_Carbon_Water_Partition_Coefficient_Koc  Contaminants_Species2)","v":0},{"$f":" (Attenuation_Fraction_organic_carbon) * (Contaminants_Organic_Carbon_Water_Partition_Coefficient_Koc  Contaminants_Species2)","v":0}]
["Distribution",null,"constant","constant","constant","constant","constant","constant","constant","constant","constant","constant","constant","constant","constant","constant","constant","constant"]
["Attenuation_Partition_Coefficient_Kd_Species_2_param1"]
["Attenuation_Partition_Coefficient_Kd_Species_2_param2"]
["Attenuation_Partition_Coefficient_Kd_Species_2_param3"]
[]
[]
["Attenuation_Retardation_Species_2","[-]",{"$f":" 1 + 0.001 * (Attenuation_Partition_Coefficient_Kd_Species_2) * (Attenuation_Dry_bulk_density) / (Hydrogeology_Porosity    Hydrogeology!$C:$C)","v":1081},{"$f":" 1 + 0.001 * (Attenuation_Partition_Coefficient_Kd_Species_2) * (Attenuation_Dry_bulk_density) / (Hydrogeology_Porosity    Hydrogeology!$D:$D)","v":2431},{"$f":" 1 + 0.001 * (Attenuation_Partition_Coefficient_Kd_Species_2) * (Attenuation_Dry_bulk_density) / (Hydrogeology_Porosity    Hydrogeology!$E:$E)","v":2431},{"$f":" 1 + 0.001 * (Attenuation_Partition_Coefficient_Kd_Species_2) * (Attenuation_Dry_bulk_density) / (Hydrogeology_Porosity    Hydrogeology!$F:$F)","v":2431},{"$f":" 1 + 0.001 * (Attenuation_Partition_Coefficient_Kd_Species_2) * (Attenuation_Dry_bulk_density) / (Hydrogeology_Porosity    Hydrogeology!$G:$G)","v":{"$error":"#DIV/0!"}},{"$f":" 1 + 0.001 * (Attenuation_Partition_Coefficient_Kd_Species_2) * (Attenuation_Dry_bulk_density) / (Hydrogeology_Porosity    Hydrogeology!$H:$H)","v":{"$error":"#DIV/0!"}},{"$f":" 1 + 0.001 * (Attenuation_Partition_Coefficient_Kd_Species_2) * (Attenuation_Dry_bulk_density) / (Hydrogeology_Porosity    Hydrogeology!$I:$I)","v":{"$error":"#DIV/0!"}},{"$f":" 1 + 0.001 * (Attenuation_Partition_Coefficient_Kd_Species_2) * (Attenuation_Dry_bulk_density) / (Hydrogeology_Porosity    Hydrogeology!$J:$J)","v":{"$error":"#DIV/0!"}},{"$f":" 1 + 0.001 * (Attenuation_Partition_Coefficient_Kd_Species_2) * (Attenuation_Dry_bulk_density) / (Hydrogeology_Porosity    Hydrogeology!$K:$K)","v":{"$error":"#DIV/0!"}},{"$f":" 1 + 0.001 * (Attenuation_Partition_Coefficient_Kd_Species_2) * (Attenuation_Dry_bulk_density) / (Hydrogeology_Porosity    Hydrogeology!$L:$L)","v":{"$error":"#DIV/0!"}},{"$f":" 1 + 0.001 * (Attenuation_Partition_Coefficient_Kd_Species_2) * (Attenuation_Dry_bulk_density) / (Hydrogeology_Porosity    Hydrogeology!$M:$M)","v":{"$error":"#DIV/0!"}},{"$f":" 1 + 0.001 * (Attenuation_Partition_Coefficient_Kd_Species_2) * (Attenuation_Dry_bulk_density) / (Hydrogeology_Porosity    Hydrogeology!$N:$N)","v":{"$error":"#DIV/0!"}},{"$f":" 1 + 0.001 * (Attenuation_Partition_Coefficient_Kd_Species_2) * (Attenuation_Dry_bulk_density) / (Hydrogeology_Porosity    Hydrogeology!$O:$O)","v":{"$error":"#DIV/0!"}},{"$f":" 1 + 0.001 * (Attenuation_Partition_Coefficient_Kd_Species_2) * (Attenuation_Dry_bulk_density) / (Hydrogeology_Porosity    Hydrogeology!$P:$P)","v":{"$error":"#DIV/0!"}},{"$f":" 1 + 0.001 * (Attenuation_Partition_Coefficient_Kd_Species_2) * (Attenuation_Dry_bulk_density) / (Hydrogeology_Porosity    Hydrogeology!$Q:$Q)","v":{"$error":"#DIV/0!"}},{"$f":" 1 + 0.001 * (Attenuation_Partition_Coefficient_Kd_Species_2) * (Attenuation_Dry_bulk_density) / (Hydrogeology_Porosity    Hydrogeology!$R:$R)","v":{"$error":"#DIV/0!"}}]
["Distribution",null,"constant","constant","constant","constant","constant","constant","constant","constant","constant","constant","constant","constant","constant","constant","constant","constant"]
["Attenuation_Retardation_Species_2_param1"]
["Attenuation_Retardation_Species_2_param2"]
["Attenuation_Retardation_Species_2_param3"]
[]
[]
["Attenuation_Half_Life_Species_2","days","No Decay","No Decay","No Decay","No Decay","No Decay","No Decay","No Decay","No Decay","No Decay","No Decay","No Decay","No Decay","No Decay","No Decay","No Decay","No Decay"]
["Distribution",null,"constant","constant","constant","constant","constant","constant","constant","constant","constant","constant","constant","constant","constant","constant","constant","constant"]
["Attenuation_Half_Life_Species_2_param1"]
["Attenuation_Half_Life_Species_2_param2"]
["Attenuation_Half_Life_Species_2_param3"]
[]
[]
["Attenuation_Decay_Coefficient_Species_2","1/s",{"$f":" IF((_xlfn.SINGLE(Attenuation_Half_Life_Species_2))<>\"No Decay\", LN(2) / ((_xlfn.SINGLE(Attenuation_Half_Life_Species_2)) *_xlfn.SINGLE( s_per_day)),0)","v":0},0,0,0,0,0,0,0,0,0,0,0,0,0,0,0]
["Distribution",null,"constant","constant","constant","constant","constant","constant","constant","constant","constant","constant","constant","constant","constant","constant","constant","constant"]
["Attenuation_Decay_Coefficient_Species_2_param1"]
["Attenuation_Decay_Coefficient_Species_2_param2"]
["Attenuation_Decay_Coefficient_Species_2_param3"]
[]
[]
[{"$f":" IF((Contaminants_Source_determinand_names   Contaminants_Species3)=0,\"Undefined\",(Contaminants_Source_determinand_names   Contaminants_Species3))","v":"Sulphate"}]
[]
["Attenuation_Partition_Coefficient_Kd_Species_3","L/kg",{"$f":" (Attenuation_Fraction_organic_carbon) * (Contaminants_Organic_Carbon_Water_Partition_Coefficient_Koc  Contaminants_Species3)","v":0},{"$f":" (Attenuation_Fraction_organic_carbon) * (Contaminants_Organic_Carbon_Water_Partition_Coefficient_Koc  Contaminants_Species3)","v":0},{"$f":" (Attenuation_Fraction_organic_carbon) * (Contaminants_Organic_Carbon_Water_Partition_Coefficient_Koc  Contaminants_Species3)","v":0},{"$f":" (Attenuation_Fraction_organic_carbon) * (Contaminants_Organic_Carbon_Water_Partition_Coefficient_Koc  Contaminants_Species3)","v":0},{"$f":" (Attenuation_Fraction_organic_carbon) * (Contaminants_Organic_Carbon_Water_Partition_Coefficient_Koc  Contaminants_Species3)","v":0},{"$f":" (Attenuation_Fraction_organic_carbon) * (Contaminants_Organic_Carbon_Water_Partition_Coefficient_Koc  Contaminants_Species3)","v":0},{"$f":" (Attenuation_Fraction_organic_carbon) * (Contaminants_Organic_Carbon_Water_Partition_Coefficient_Koc  Contaminants_Species3)","v":0},{"$f":" (Attenuation_Fraction_organic_carbon) * (Contaminants_Organic_Carbon_Water_Partition_Coefficient_Koc  Contaminants_Species3)","v":0},{"$f":" (Attenuation_Fraction_organic_carbon) * (Contaminants_Organic_Carbon_Water_Partition_Coefficient_Koc  Contaminants_Species3)","v":0},{"$f":" (Attenuation_Fraction_organic_carbon) * (Contaminants_Organic_Carbon_Water_Partition_Coefficient_Koc  Contaminants_Species3)","v":0},{"$f":" (Attenuation_Fraction_organic_carbon) * (Contaminants_Organic_Carbon_Water_Partition_Coefficient_Koc  Contaminants_Species3)","v":0},{"$f":" (Attenuation_Fraction_organic_carbon) * (Contaminants_Organic_Carbon_Water_Partition_Coefficient_Koc  Contaminants_Species3)","v":0},{"$f":" (Attenuation_Fraction_organic_carbon) * (Contaminants_Organic_Carbon_Water_Partition_Coefficient_Koc  Contaminants_Species3)","v":0},{"$f":" (Attenuation_Fraction_organic_carbon) * (Contaminants_Organic_Carbon_Water_Partition_Coefficient_Koc  Contaminants_Species3)","v":0},{"$f":" (Attenuation_Fraction_organic_carbon) * (Contaminants_Organic_Carbon_Water_Partition_Coefficient_Koc  Contaminants_Species3)","v":0},{"$f":" (Attenuation_Fraction_organic_carbon) * (Contaminants_Organic_Carbon_Water_Partition_Coefficient_Koc  Contaminants_Species3)","v":0}]
["Distribution",null,"constant","constant","constant","constant","constant","constant","constant","constant","constant","constant","constant","constant","constant","constant","constant","constant"]
["Attenuation_Partition_Coefficient_Kd_Species_3_param1"]
["Attenuation_Partition_Coefficient_Kd_Species_3_param2"]
["Attenuation_Partition_Coefficient_Kd_Species_3_param3"]
[]
[]
["Attenuation_Retardation_Species_3","[-]",{"$f":" 1 + 0.001 * (Attenuation_Partition_Coefficient_Kd_Species_3) * (Attenuation_Dry_bulk_density) / (Hydrogeology_Porosity    Hydrogeology!$C:$C)","v":1},{"$f":" 1 + 0.001 * (Attenuation_Partition_Coefficient_Kd_Species_3) * (Attenuation_Dry_bulk_density) / (Hydrogeology_Porosity    Hydrogeology!$D:$D)","v":1},{"$f":" 1 + 0.001 * (Attenuation_Partition_Coefficient_Kd_Species_3) * (Attenuation_Dry_bulk_density) / (Hydrogeology_Porosity    Hydrogeology!$E:$E)","v":1},{"$f":" 1 + 0.001 * (Attenuation_Partition_Coefficient_Kd_Species_3) * (Attenuation_Dry_bulk_density) / (Hydrogeology_Porosity    Hydrogeology!$F:$F)","v":1},{"$f":" 1 + 0.001 * (Attenuation_Partition_Coefficient_Kd_Species_3) * (Attenuation_Dry_bulk_density) / (Hydrogeology_Porosity    Hydrogeology!$G:$G)","v":{"$error":"#DIV/0!"}},{"$f":" 1 + 0.001 * (Attenuation_Partition_Coefficient_Kd_Species_3) * (Attenuation_Dry_bulk_density) / (Hydrogeology_Porosity    Hydrogeology!$H:$H)","v":{"$error":"#DIV/0!"}},{"$f":" 1 + 0.001 * (Attenuation_Partition_Coefficient_Kd_Species_3) * (Attenuation_Dry_bulk_density) / (Hydrogeology_Porosity    Hydrogeology!$I:$I)","v":{"$error":"#DIV/0!"}},{"$f":" 1 + 0.001 * (Attenuation_Partition_Coefficient_Kd_Species_3) * (Attenuation_Dry_bulk_density) / (Hydrogeology_Porosity    Hydrogeology!$J:$J)","v":{"$error":"#DIV/0!"}},{"$f":" 1 + 0.001 * (Attenuation_Partition_Coefficient_Kd_Species_3) * (Attenuation_Dry_bulk_density) / (Hydrogeology_Porosity    Hydrogeology!$K:$K)","v":{"$error":"#DIV/0!"}},{"$f":" 1 + 0.001 * (Attenuation_Partition_Coefficient_Kd_Species_3) * (Attenuation_Dry_bulk_density) / (Hydrogeology_Porosity    Hydrogeology!$L:$L)","v":{"$error":"#DIV/0!"}},{"$f":" 1 + 0.001 * (Attenuation_Partition_Coefficient_Kd_Species_3) * (Attenuation_Dry_bulk_density) / (Hydrogeology_Porosity    Hydrogeology!$M:$M)","v":{"$error":"#DIV/0!"}},{"$f":" 1 + 0.001 * (Attenuation_Partition_Coefficient_Kd_Species_3) * (Attenuation_Dry_bulk_density) / (Hydrogeology_Porosity    Hydrogeology!$N:$N)","v":{"$error":"#DIV/0!"}},{"$f":" 1 + 0.001 * (Attenuation_Partition_Coefficient_Kd_Species_3) * (Attenuation_Dry_bulk_density) / (Hydrogeology_Porosity    Hydrogeology!$O:$O)","v":{"$error":"#DIV/0!"}},{"$f":" 1 + 0.001 * (Attenuation_Partition_Coefficient_Kd_Species_3) * (Attenuation_Dry_bulk_density) / (Hydrogeology_Porosity    Hydrogeology!$P:$P)","v":{"$error":"#DIV/0!"}},{"$f":" 1 + 0.001 * (Attenuation_Partition_Coefficient_Kd_Species_3) * (Attenuation_Dry_bulk_density) / (Hydrogeology_Porosity    Hydrogeology!$Q:$Q)","v":{"$error":"#DIV/0!"}},{"$f":" 1 + 0.001 * (Attenuation_Partition_Coefficient_Kd_Species_3) * (Attenuation_Dry_bulk_density) / (Hydrogeology_Porosity    Hydrogeology!$R:$R)","v":{"$error":"#DIV/0!"}}]
["Distribution",null,"constant","constant","constant","constant","constant","constant","constant","constant","constant","constant","constant","constant","constant","constant","constant","constant"]
["Attenuation_Retardation_Species_3_param1"]
["Attenuation_Retardation_Species_3_param2"]
["Attenuation_Retardation_Species_3_param3"]
[]
[]
["Attenuation_Half_Life_Species_3","days","No Decay","No Decay","No Decay","No Decay","No Decay","No Decay","No Decay","No Decay","No Decay","No Decay","No Decay","No Decay","No Decay","No Decay","No Decay","No Decay"]
["Distribution",null,"constant","constant","constant","constant","constant","constant","constant","constant","constant","constant","constant","constant","constant","constant","constant","constant"]
["Attenuation_Half_Life_Species_3_param1"]
["Attenuation_Half_Life_Species_3_param2"]
["Attenuation_Half_Life_Species_3_param3"]
[]
[]
["Attenuation_Decay_Coefficient_Species_3","1/s",{"$f":" IF((_xlfn.SINGLE(Attenuation_Half_Life_Species_3))<>\"No Decay\", LN(2) / ((_xlfn.SINGLE(Attenuation_Half_Life_Species_3)) *_xlfn.SINGLE( s_per_day)),0)","v":0},0,0,0,0,0,0,0,0,0,0,0,0,0,0,0]
["Distribution",null,"constant","constant","constant","constant","constant","constant","constant","constant","constant","constant","constant","constant","constant","constant","constant","constant"]
["Attenuation_Decay_Coefficient_Species_3_param1"]
["Attenuation_Decay_Coefficient_Species_3_param2"]
["Attenuation_Decay_Coefficient_Species_3_param3"]
[]
[]
[{"$f":" IF((Contaminants_Source_determinand_names   Contaminants_Species4)=0,\"Undefined\",(Contaminants_Source_determinand_names   Contaminants_Species4))","v":"Benzene"}]
[]
["Attenuation_Partition_Coefficient_Kd_Species_4","L/kg",{"$f":" (Attenuation_Fraction_organic_carbon) * (Contaminants_Organic_Carbon_Water_Partition_Coefficient_Koc  Contaminants_Species4)","v":3.38},{"$f":" (Attenuation_Fraction_organic_carbon) * (Contaminants_Organic_Carbon_Water_Partition_Coefficient_Koc  Contaminants_Species4)","v":0.13519999999999999},{"$f":" (Attenuation_Fraction_organic_carbon) * (Contaminants_Organic_Carbon_Water_Partition_Coefficient_Koc  Contaminants_Species4)","v":0.13519999999999999},{"$f":" (Attenuation_Fraction_organic_carbon) * (Contaminants_Organic_Carbon_Water_Partition_Coefficient_Koc  Contaminants_Species4)","v":0.13519999999999999},{"$f":" (Attenuation_Fraction_organic_carbon) * (Contaminants_Organic_Carbon_Water_Partition_Coefficient_Koc  Contaminants_Species4)","v":0},{"$f":" (Attenuation_Fraction_organic_carbon) * (Contaminants_Organic_Carbon_Water_Partition_Coefficient_Koc  Contaminants_Species4)","v":0},{"$f":" (Attenuation_Fraction_organic_carbon) * (Contaminants_Organic_Carbon_Water_Partition_Coefficient_Koc  Contaminants_Species4)","v":0},{"$f":" (Attenuation_Fraction_organic_carbon) * (Contaminants_Organic_Carbon_Water_Partition_Coefficient_Koc  Contaminants_Species4)","v":0},{"$f":" (Attenuation_Fraction_organic_carbon) * (Contaminants_Organic_Carbon_Water_Partition_Coefficient_Koc  Contaminants_Species4)","v":0},{"$f":" (Attenuation_Fraction_organic_carbon) * (Contaminants_Organic_Carbon_Water_Partition_Coefficient_Koc  Contaminants_Species4)","v":0},{"$f":" (Attenuation_Fraction_organic_carbon) * (Contaminants_Organic_Carbon_Water_Partition_Coefficient_Koc  Contaminants_Species4)","v":0},{"$f":" (Attenuation_Fraction_organic_carbon) * (Contaminants_Organic_Carbon_Water_Partition_Coefficient_Koc  Contaminants_Species4)","v":0},{"$f":" (Attenuation_Fraction_organic_carbon) * (Contaminants_Organic_Carbon_Water_Partition_Coefficient_Koc  Contaminants_Species4)","v":0},{"$f":" (Attenuation_Fraction_organic_carbon) * (Contaminants_Organic_Carbon_Water_Partition_Coefficient_Koc  Contaminants_Species4)","v":0},{"$f":" (Attenuation_Fraction_organic_carbon) * (Contaminants_Organic_Carbon_Water_Partition_Coefficient_Koc  Contaminants_Species4)","v":0},{"$f":" (Attenuation_Fraction_organic_carbon) * (Contaminants_Organic_Carbon_Water_Partition_Coefficient_Koc  Contaminants_Species4)","v":0}]
["Distribution",null,"constant","constant","constant","constant","constant","constant","constant","constant","constant","constant","constant","constant","constant","constant","constant","constant"]
["Attenuation_Partition_Coefficient_Kd_Species_4_param1"]
["Attenuation_Partition_Coefficient_Kd_Species_4_param2"]
["Attenuation_Partition_Coefficient_Kd_Species_4_param3"]
[]
[]
["Attenuation_Retardation_Species_4","[-]",{"$f":" 1 + 0.001 * (Attenuation_Partition_Coefficient_Kd_Species_4) * (Attenuation_Dry_bulk_density) / (Hydrogeology_Porosity    Hydrogeology!$C:$C)","v":14.519999999999998},{"$f":" 1 + 0.001 * (Attenuation_Partition_Coefficient_Kd_Species_4) * (Attenuation_Dry_bulk_density) / (Hydrogeology_Porosity    Hydrogeology!$D:$D)","v":2.2167999999999997},{"$f":" 1 + 0.001 * (Attenuation_Partition_Coefficient_Kd_Species_4) * (Attenuation_Dry_bulk_density) / (Hydrogeology_Porosity    Hydrogeology!$E:$E)","v":2.2167999999999997},{"$f":" 1 + 0.001 * (Attenuation_Partition_Coefficient_Kd_Species_4) * (Attenuation_Dry_bulk_density) / (Hydrogeology_Porosity    Hydrogeology!$F:$F)","v":2.2167999999999997},{"$f":" 1 + 0.001 * (Attenuation_Partition_Coefficient_Kd_Species_4) * (Attenuation_Dry_bulk_density) / (Hydrogeology_Porosity    Hydrogeology!$G:$G)","v":{"$error":"#DIV/0!"}},{"$f":" 1 + 0.001 * (Attenuation_Partition_Coefficient_Kd_Species_4) * (Attenuation_Dry_bulk_density) / (Hydrogeology_Porosity    Hydrogeology!$H:$H)","v":{"$error":"#DIV/0!"}},{"$f":" 1 + 0.001 * (Attenuation_Partition_Coefficient_Kd_Species_4) * (Attenuation_Dry_bulk_density) / (Hydrogeology_Porosity    Hydrogeology!$I:$I)","v":{"$error":"#DIV/0!"}},{"$f":" 1 + 0.001 * (Attenuation_Partition_Coefficient_Kd_Species_4) * (Attenuation_Dry_bulk_density) / (Hydrogeology_Porosity    Hydrogeology!$J:$J)","v":{"$error":"#DIV/0!"}},{"$f":" 1 + 0.001 * (Attenuation_Partition_Coefficient_Kd_Species_4) * (Attenuation_Dry_bulk_density) / (Hydrogeology_Porosity    Hydrogeology!$K:$K)","v":{"$error":"#DIV/0!"}},{"$f":" 1 + 0.001 * (Attenuation_Partition_Coefficient_Kd_Species_4) * (Attenuation_Dry_bulk_density) / (Hydrogeology_Porosity    Hydrogeology!$L:$L)","v":{"$error":"#DIV/0!"}},{"$f":" 1 + 0.001 * (Attenuation_Partition_Coefficient_Kd_Species_4) * (Attenuation_Dry_bulk_density) / (Hydrogeology_Porosity    Hydrogeology!$M:$M)","v":{"$error":"#DIV/0!"}},{"$f":" 1 + 0.001 * (Attenuation_Partition_Coefficient_Kd_Species_4) * (Attenuation_Dry_bulk_density) / (Hydrogeology_Porosity    Hydrogeology!$N:$N)","v":{"$error":"#DIV/0!"}},{"$f":" 1 + 0.001 * (Attenuation_Partition_Coefficient_Kd_Species_4) * (Attenuation_Dry_bulk_density) / (Hydrogeology_Porosity    Hydrogeology!$O:$O)","v":{"$error":"#DIV/0!"}},{"$f":" 1 + 0.001 * (Attenuation_Partition_Coefficient_Kd_Species_4) * (Attenuation_Dry_bulk_density) / (Hydrogeology_Porosity    Hydrogeology!$P:$P)","v":{"$error":"#DIV/0!"}},{"$f":" 1 + 0.001 * (Attenuation_Partition_Coefficient_Kd_Species_4) * (Attenuation_Dry_bulk_density) / (Hydrogeology_Porosity    Hydrogeology!$Q:$Q)","v":{"$error":"#DIV/0!"}},{"$f":" 1 + 0.001 * (Attenuation_Partition_Coefficient_Kd_Species_4) * (Attenuation_Dry_bulk_density) / (Hydrogeology_Porosity    Hydrogeology!$R:$R)","v":{"$error":"#DIV/0!"}}]
["Distribution",null,"constant","constant","constant","constant","constant","constant","constant","constant","constant","constant","constant","constant","constant","constant","constant","constant"]
["Attenuation_Retardation_Species_4_param1"]
["Attenuation_Retardation_Species_4_param2"]
["Attenuation_Retardation_Species_4_param3"]
[]
[]
["Attenuation_Half_Life_Species_4","days",300,300,300,300,"No Decay","No Decay","No Decay","No Decay","No Decay","No Decay","No Decay","No Decay","No Decay","No Decay","No Decay","No Decay"]
["Distribution",null,"constant","constant","constant","constant","constant","constant","constant","constant","constant","constant","constant","constant","constant","constant","constant","constant"]
["Attenuation_Half_Life_Species_4_param1"]
["Attenuation_Half_Life_Species_4_param2"]
["Attenuation_Half_Life_Species_4_param3"]
[]
[]
["Attenuation_Decay_Coefficient_Species_4","1/s",{"$f":" IF((_xlfn.SINGLE(Attenuation_Half_Life_Species_4))<>\"No Decay\", LN(2) / ((_xlfn.SINGLE(Attenuation_Half_Life_Species_4)) *_xlfn.SINGLE( s_per_day)),0)","v":2.674178937345468E-8},2.674178937345468E-8,2.674178937345468E-8,2.674178937345468E-8,0,0,0,0,0,0,0,0,0,0,0,0]
["Distribution",null,"constant","constant","constant","constant","constant","constant","constant","constant","constant","constant","constant","constant","constant","constant","constant","constant"]
["Attenuation_Decay_Coefficient_Species_4_param1"]
["Attenuation_Decay_Coefficient_Species_4_param2"]
["Attenuation_Decay_Coefficient_Species_4_param3"]
[]
[]
[{"$f":" IF((Contaminants_Source_determinand_names   Contaminants_Species5)=0,\"Undefined\",(Contaminants_Source_determinand_names   Contaminants_Species5))","v":"BaP"}]
[]
["Attenuation_Partition_Coefficient_Kd_Species_5","L/kg",{"$f":" (Attenuation_Fraction_organic_carbon) * (Contaminants_Organic_Carbon_Water_Partition_Coefficient_Koc  Contaminants_Species5)","v":58500},{"$f":" (Attenuation_Fraction_organic_carbon) * (Contaminants_Organic_Carbon_Water_Partition_Coefficient_Koc  Contaminants_Species5)","v":2340},{"$f":" (Attenuation_Fraction_organic_carbon) * (Contaminants_Organic_Carbon_Water_Partition_Coefficient_Koc  Contaminants_Species5)","v":2340},{"$f":" (Attenuation_Fraction_organic_carbon) * (Contaminants_Organic_Carbon_Water_Partition_Coefficient_Koc  Contaminants_Species5)","v":2340},{"$f":" (Attenuation_Fraction_organic_carbon) * (Contaminants_Organic_Carbon_Water_Partition_Coefficient_Koc  Contaminants_Species5)","v":0},{"$f":" (Attenuation_Fraction_organic_carbon) * (Contaminants_Organic_Carbon_Water_Partition_Coefficient_Koc  Contaminants_Species5)","v":0},{"$f":" (Attenuation_Fraction_organic_carbon) * (Contaminants_Organic_Carbon_Water_Partition_Coefficient_Koc  Contaminants_Species5)","v":0},{"$f":" (Attenuation_Fraction_organic_carbon) * (Contaminants_Organic_Carbon_Water_Partition_Coefficient_Koc  Contaminants_Species5)","v":0},{"$f":" (Attenuation_Fraction_organic_carbon) * (Contaminants_Organic_Carbon_Water_Partition_Coefficient_Koc  Contaminants_Species5)","v":0},{"$f":" (Attenuation_Fraction_organic_carbon) * (Contaminants_Organic_Carbon_Water_Partition_Coefficient_Koc  Contaminants_Species5)","v":0},{"$f":" (Attenuation_Fraction_organic_carbon) * (Contaminants_Organic_Carbon_Water_Partition_Coefficient_Koc  Contaminants_Species5)","v":0},{"$f":" (Attenuation_Fraction_organic_carbon) * (Contaminants_Organic_Carbon_Water_Partition_Coefficient_Koc  Contaminants_Species5)","v":0},{"$f":" (Attenuation_Fraction_organic_carbon) * (Contaminants_Organic_Carbon_Water_Partition_Coefficient_Koc  Contaminants_Species5)","v":0},{"$f":" (Attenuation_Fraction_organic_carbon) * (Contaminants_Organic_Carbon_Water_Partition_Coefficient_Koc  Contaminants_Species5)","v":0},{"$f":" (Attenuation_Fraction_organic_carbon) * (Contaminants_Organic_Carbon_Water_Partition_Coefficient_Koc  Contaminants_Species5)","v":0},{"$f":" (Attenuation_Fraction_organic_carbon) * (Contaminants_Organic_Carbon_Water_Partition_Coefficient_Koc  Contaminants_Species5)","v":0}]
["Distribution",null,"constant","constant","constant","constant","constant","constant","constant","constant","constant","constant","constant","constant","constant","constant","constant","constant"]
["Attenuation_Partition_Coefficient_Kd_Species_5_param1"]
["Attenuation_Partition_Coefficient_Kd_Species_5_param2"]
["Attenuation_Partition_Coefficient_Kd_Species_5_param3"]
[]
[]
["Attenuation_Retardation_Species_5","[-]",{"$f":" 1 + 0.001 * (Attenuation_Partition_Coefficient_Kd_Species_5) * (Attenuation_Dry_bulk_density) / (Hydrogeology_Porosity    Hydrogeology!$C:$C)","v":234001},{"$f":" 1 + 0.001 * (Attenuation_Partition_Coefficient_Kd_Species_5) * (Attenuation_Dry_bulk_density) / (Hydrogeology_Porosity    Hydrogeology!$D:$D)","v":21061},{"$f":" 1 + 0.001 * (Attenuation_Partition_Coefficient_Kd_Species_5) * (Attenuation_Dry_bulk_density) / (Hydrogeology_Porosity    Hydrogeology!$E:$E)","v":21061},{"$f":" 1 + 0.001 * (Attenuation_Partition_Coefficient_Kd_Species_5) * (Attenuation_Dry_bulk_density) / (Hydrogeology_Porosity    Hydrogeology!$F:$F)","v":21061},{"$f":" 1 + 0.001 * (Attenuation_Partition_Coefficient_Kd_Species_5) * (Attenuation_Dry_bulk_density) / (Hydrogeology_Porosity    Hydrogeology!$G:$G)","v":{"$error":"#DIV/0!"}},{"$f":" 1 + 0.001 * (Attenuation_Partition_Coefficient_Kd_Species_5) * (Attenuation_Dry_bulk_density) / (Hydrogeology_Porosity    Hydrogeology!$H:$H)","v":{"$error":"#DIV/0!"}},{"$f":" 1 + 0.001 * (Attenuation_Partition_Coefficient_Kd_Species_5) * (Attenuation_Dry_bulk_density) / (Hydrogeology_Porosity    Hydrogeology!$I:$I)","v":{"$error":"#DIV/0!"}},{"$f":" 1 + 0.001 * (Attenuation_Partition_Coefficient_Kd_Species_5) * (Attenuation_Dry_bulk_density) / (Hydrogeology_Porosity    Hydrogeology!$J:$J)","v":{"$error":"#DIV/0!"}},{"$f":" 1 + 0.001 * (Attenuation_Partition_Coefficient_Kd_Species_5) * (Attenuation_Dry_bulk_density) / (Hydrogeology_Porosity    Hydrogeology!$K:$K)","v":{"$error":"#DIV/0!"}},{"$f":" 1 + 0.001 * (Attenuation_Partition_Coefficient_Kd_Species_5) * (Attenuation_Dry_bulk_density) / (Hydrogeology_Porosity    Hydrogeology!$L:$L)","v":{"$error":"#DIV/0!"}},{"$f":" 1 + 0.001 * (Attenuation_Partition_Coefficient_Kd_Species_5) * (Attenuation_Dry_bulk_density) / (Hydrogeology_Porosity    Hydrogeology!$M:$M)","v":{"$error":"#DIV/0!"}},{"$f":" 1 + 0.001 * (Attenuation_Partition_Coefficient_Kd_Species_5) * (Attenuation_Dry_bulk_density) / (Hydrogeology_Porosity    Hydrogeology!$N:$N)","v":{"$error":"#DIV/0!"}},{"$f":" 1 + 0.001 * (Attenuation_Partition_Coefficient_Kd_Species_5) * (Attenuation_Dry_bulk_density) / (Hydrogeology_Porosity    Hydrogeology!$O:$O)","v":{"$error":"#DIV/0!"}},{"$f":" 1 + 0.001 * (Attenuation_Partition_Coefficient_Kd_Species_5) * (Attenuation_Dry_bulk_density) / (Hydrogeology_Porosity    Hydrogeology!$P:$P)","v":{"$error":"#DIV/0!"}},{"$f":" 1 + 0.001 * (Attenuation_Partition_Coefficient_Kd_Species_5) * (Attenuation_Dry_bulk_density) / (Hydrogeology_Porosity    Hydrogeology!$Q:$Q)","v":{"$error":"#DIV/0!"}},{"$f":" 1 + 0.001 * (Attenuation_Partition_Coefficient_Kd_Species_5) * (Attenuation_Dry_bulk_density) / (Hydrogeology_Porosity    Hydrogeology!$R:$R)","v":{"$error":"#DIV/0!"}}]
["Distribution",null,"constant","constant","constant","constant","constant","constant","constant","constant","constant","constant","constant","constant","constant","constant","constant","constant"]
["Attenuation_Retardation_Species_5_param1"]
["Attenuation_Retardation_Species_5_param2"]
["Attenuation_Retardation_Species_5_param3"]
[]
[]
["Attenuation_Half_Life_Species_5","days",830,830,830,830,"No Decay","No Decay","No Decay","No Decay","No Decay","No Decay","No Decay","No Decay","No Decay","No Decay","No Decay","No Decay"]
["Distribution",null,"constant","constant","constant","constant","constant","constant","constant","constant","constant","constant","constant","constant","constant","constant","constant","constant"]
["Attenuation_Half_Life_Species_5_param1"]
["Attenuation_Half_Life_Species_5_param2"]
["Attenuation_Half_Life_Species_5_param3"]
[]
[]
["Attenuation_Decay_Coefficient_Species_5","1/s",{"$f":" IF((_xlfn.SINGLE(Attenuation_Half_Life_Species_5))<>\"No Decay\", LN(2) / ((_xlfn.SINGLE(Attenuation_Half_Life_Species_5)) *_xlfn.SINGLE( s_per_day)),0)","v":9.6657070024534983E-9},9.6657070024534983E-9,9.6657070024534983E-9,9.6657070024534983E-9,0,0,0,0,0,0,0,0,0,0,0,0]
["Distribution",null,"constant","constant","constant","constant","constant","constant","constant","constant","constant","constant","constant","constant","constant","constant","constant","constant"]
["Attenuation_Decay_Coefficient_Species_5_param1"]
["Attenuation_Decay_Coefficient_Species_5_param2"]
["Attenuation_Decay_Coefficient_Species_5_param3"]
[]
[]
[{"$f":" IF((Contaminants_Source_determinand_names   Contaminants_Species6)=0,\"Undefined\",(Contaminants_Source_determinand_names   Contaminants_Species6))","v":"Undefined"}]
[]
["Attenuation_Partition_Coefficient_Kd_Species_6","L/kg",{"$f":" (Attenuation_Fraction_organic_carbon) * (Contaminants_Organic_Carbon_Water_Partition_Coefficient_Koc  Contaminants_Species6)","v":0},{"$f":" (Attenuation_Fraction_organic_carbon) * (Contaminants_Organic_Carbon_Water_Partition_Coefficient_Koc  Contaminants_Species6)","v":0},{"$f":" (Attenuation_Fraction_organic_carbon) * (Contaminants_Organic_Carbon_Water_Partition_Coefficient_Koc  Contaminants_Species6)","v":0},{"$f":" (Attenuation_Fraction_organic_carbon) * (Contaminants_Organic_Carbon_Water_Partition_Coefficient_Koc  Contaminants_Species6)","v":0},{"$f":" (Attenuation_Fraction_organic_carbon) * (Contaminants_Organic_Carbon_Water_Partition_Coefficient_Koc  Contaminants_Species6)","v":0},{"$f":" (Attenuation_Fraction_organic_carbon) * (Contaminants_Organic_Carbon_Water_Partition_Coefficient_Koc  Contaminants_Species6)","v":0},{"$f":" (Attenuation_Fraction_organic_carbon) * (Contaminants_Organic_Carbon_Water_Partition_Coefficient_Koc  Contaminants_Species6)","v":0},{"$f":" (Attenuation_Fraction_organic_carbon) * (Contaminants_Organic_Carbon_Water_Partition_Coefficient_Koc  Contaminants_Species6)","v":0},{"$f":" (Attenuation_Fraction_organic_carbon) * (Contaminants_Organic_Carbon_Water_Partition_Coefficient_Koc  Contaminants_Species6)","v":0},{"$f":" (Attenuation_Fraction_organic_carbon) * (Contaminants_Organic_Carbon_Water_Partition_Coefficient_Koc  Contaminants_Species6)","v":0},{"$f":" (Attenuation_Fraction_organic_carbon) * (Contaminants_Organic_Carbon_Water_Partition_Coefficient_Koc  Contaminants_Species6)","v":0},{"$f":" (Attenuation_Fraction_organic_carbon) * (Contaminants_Organic_Carbon_Water_Partition_Coefficient_Koc  Contaminants_Species6)","v":0},{"$f":" (Attenuation_Fraction_organic_carbon) * (Contaminants_Organic_Carbon_Water_Partition_Coefficient_Koc  Contaminants_Species6)","v":0},{"$f":" (Attenuation_Fraction_organic_carbon) * (Contaminants_Organic_Carbon_Water_Partition_Coefficient_Koc  Contaminants_Species6)","v":0},{"$f":" (Attenuation_Fraction_organic_carbon) * (Contaminants_Organic_Carbon_Water_Partition_Coefficient_Koc  Contaminants_Species6)","v":0},{"$f":" (Attenuation_Fraction_organic_carbon) * (Contaminants_Organic_Carbon_Water_Partition_Coefficient_Koc  Contaminants_Species6)","v":0}]
["Distribution",null,"constant","constant","constant","constant","constant","constant","constant","constant","constant","constant","constant","constant","constant","constant","constant","constant"]
["Attenuation_Partition_Coefficient_Kd_Species_6_param1"]
["Attenuation_Partition_Coefficient_Kd_Species_6_param2"]
["Attenuation_Partition_Coefficient_Kd_Species_6_param3"]
[]
[]
["Attenuation_Retardation_Species_6","[-]",{"$f":" 1 + 0.001 * (Attenuation_Partition_Coefficient_Kd_Species_6) * (Attenuation_Dry_bulk_density) / (Hydrogeology_Porosity    Hydrogeology!$C:$C)","v":1},{"$f":" 1 + 0.001 * (Attenuation_Partition_Coefficient_Kd_Species_6) * (Attenuation_Dry_bulk_density) / (Hydrogeology_Porosity    Hydrogeology!$D:$D)","v":1},{"$f":" 1 + 0.001 * (Attenuation_Partition_Coefficient_Kd_Species_6) * (Attenuation_Dry_bulk_density) / (Hydrogeology_Porosity    Hydrogeology!$E:$E)","v":1},{"$f":" 1 + 0.001 * (Attenuation_Partition_Coefficient_Kd_Species_6) * (Attenuation_Dry_bulk_density) / (Hydrogeology_Porosity    Hydrogeology!$F:$F)","v":1},{"$f":" 1 + 0.001 * (Attenuation_Partition_Coefficient_Kd_Species_6) * (Attenuation_Dry_bulk_density) / (Hydrogeology_Porosity    Hydrogeology!$G:$G)","v":{"$error":"#DIV/0!"}},{"$f":" 1 + 0.001 * (Attenuation_Partition_Coefficient_Kd_Species_6) * (Attenuation_Dry_bulk_density) / (Hydrogeology_Porosity    Hydrogeology!$H:$H)","v":{"$error":"#DIV/0!"}},{"$f":" 1 + 0.001 * (Attenuation_Partition_Coefficient_Kd_Species_6) * (Attenuation_Dry_bulk_density) / (Hydrogeology_Porosity    Hydrogeology!$I:$I)","v":{"$error":"#DIV/0!"}},{"$f":" 1 + 0.001 * (Attenuation_Partition_Coefficient_Kd_Species_6) * (Attenuation_Dry_bulk_density) / (Hydrogeology_Porosity    Hydrogeology!$J:$J)","v":{"$error":"#DIV/0!"}},{"$f":" 1 + 0.001 * (Attenuation_Partition_Coefficient_Kd_Species_6) * (Attenuation_Dry_bulk_density) / (Hydrogeology_Porosity    Hydrogeology!$K:$K)","v":{"$error":"#DIV/0!"}},{"$f":" 1 + 0.001 * (Attenuation_Partition_Coefficient_Kd_Species_6) * (Attenuation_Dry_bulk_density) / (Hydrogeology_Porosity    Hydrogeology!$L:$L)","v":{"$error":"#DIV/0!"}},{"$f":" 1 + 0.001 * (Attenuation_Partition_Coefficient_Kd_Species_6) * (Attenuation_Dry_bulk_density) / (Hydrogeology_Porosity    Hydrogeology!$M:$M)","v":{"$error":"#DIV/0!"}},{"$f":" 1 + 0.001 * (Attenuation_Partition_Coefficient_Kd_Species_6) * (Attenuation_Dry_bulk_density) / (Hydrogeology_Porosity    Hydrogeology!$N:$N)","v":{"$error":"#DIV/0!"}},{"$f":" 1 + 0.001 * (Attenuation_Partition_Coefficient_Kd_Species_6) * (Attenuation_Dry_bulk_density) / (Hydrogeology_Porosity    Hydrogeology!$O:$O)","v":{"$error":"#DIV/0!"}},{"$f":" 1 + 0.001 * (Attenuation_Partition_Coefficient_Kd_Species_6) * (Attenuation_Dry_bulk_density) / (Hydrogeology_Porosity    Hydrogeology!$P:$P)","v":{"$error":"#DIV/0!"}},{"$f":" 1 + 0.001 * (Attenuation_Partition_Coefficient_Kd_Species_6) * (Attenuation_Dry_bulk_density) / (Hydrogeology_Porosity    Hydrogeology!$Q:$Q)","v":{"$error":"#DIV/0!"}},{"$f":" 1 + 0.001 * (Attenuation_Partition_Coefficient_Kd_Species_6) * (Attenuation_Dry_bulk_density) / (Hydrogeology_Porosity    Hydrogeology!$R:$R)","v":{"$error":"#DIV/0!"}}]
["Distribution",null,"constant","constant","constant","constant","constant","constant","constant","constant","constant","constant","constant","constant","constant","constant","constant","constant"]
["Attenuation_Retardation_Species_6_param1"]
["Attenuation_Retardation_Species_6_param2"]
["Attenuation_Retardation_Species_6_param3"]
[]
[]
["Attenuation_Half_Life_Species_6","days","No Decay","No Decay","No Decay","No Decay","No Decay","No Decay","No Decay","No Decay","No Decay","No Decay","No Decay","No Decay","No Decay","No Decay","No Decay","No Decay"]
["Distribution",null,"constant","constant","constant","constant","constant","constant","constant","constant","constant","constant","constant","constant","constant","constant","constant","constant"]
["Attenuation_Half_Life_Species_6_param1"]
["Attenuation_Half_Life_Species_6_param2"]
["Attenuation_Half_Life_Species_6_param3"]
[]
[]
["Attenuation_Decay_Coefficient_Species_6","1/s",{"$f":" IF((_xlfn.SINGLE(Attenuation_Half_Life_Species_6))<>\"No Decay\", LN(2) / ((_xlfn.SINGLE(Attenuation_Half_Life_Species_6)) *_xlfn.SINGLE( s_per_day)),0)","v":0},0,0,0,0,0,0,0,0,0,0,0,0,0,0,0]
["Distribution",null,"constant","constant","constant","constant","constant","constant","constant","constant","constant","constant","constant","constant","constant","constant","constant","constant"]
["Attenuation_Decay_Coefficient_Species_6_param1"]
["Attenuation_Decay_Coefficient_Species_6_param2"]
["Attenuation_Decay_Coefficient_Species_6_param3"]
[]
[]
[{"$f":" IF((Contaminants_Source_determinand_names   Contaminants_Species7)=0,\"Undefined\",(Contaminants_Source_determinand_names   Contaminants_Species7))","v":"Undefined"}]
[]
["Attenuation_Partition_Coefficient_Kd_Species_7","L/kg",{"$f":" (Attenuation_Fraction_organic_carbon) * (Contaminants_Organic_Carbon_Water_Partition_Coefficient_Koc  Contaminants_Species7)","v":0},{"$f":" (Attenuation_Fraction_organic_carbon) * (Contaminants_Organic_Carbon_Water_Partition_Coefficient_Koc  Contaminants_Species7)","v":0},{"$f":" (Attenuation_Fraction_organic_carbon) * (Contaminants_Organic_Carbon_Water_Partition_Coefficient_Koc  Contaminants_Species7)","v":0},{"$f":" (Attenuation_Fraction_organic_carbon) * (Contaminants_Organic_Carbon_Water_Partition_Coefficient_Koc  Contaminants_Species7)","v":0},{"$f":" (Attenuation_Fraction_organic_carbon) * (Contaminants_Organic_Carbon_Water_Partition_Coefficient_Koc  Contaminants_Species7)","v":0},{"$f":" (Attenuation_Fraction_organic_carbon) * (Contaminants_Organic_Carbon_Water_Partition_Coefficient_Koc  Contaminants_Species7)","v":0},{"$f":" (Attenuation_Fraction_organic_carbon) * (Contaminants_Organic_Carbon_Water_Partition_Coefficient_Koc  Contaminants_Species7)","v":0},{"$f":" (Attenuation_Fraction_organic_carbon) * (Contaminants_Organic_Carbon_Water_Partition_Coefficient_Koc  Contaminants_Species7)","v":0},{"$f":" (Attenuation_Fraction_organic_carbon) * (Contaminants_Organic_Carbon_Water_Partition_Coefficient_Koc  Contaminants_Species7)","v":0},{"$f":" (Attenuation_Fraction_organic_carbon) * (Contaminants_Organic_Carbon_Water_Partition_Coefficient_Koc  Contaminants_Species7)","v":0},{"$f":" (Attenuation_Fraction_organic_carbon) * (Contaminants_Organic_Carbon_Water_Partition_Coefficient_Koc  Contaminants_Species7)","v":0},{"$f":" (Attenuation_Fraction_organic_carbon) * (Contaminants_Organic_Carbon_Water_Partition_Coefficient_Koc  Contaminants_Species7)","v":0},{"$f":" (Attenuation_Fraction_organic_carbon) * (Contaminants_Organic_Carbon_Water_Partition_Coefficient_Koc  Contaminants_Species7)","v":0},{"$f":" (Attenuation_Fraction_organic_carbon) * (Contaminants_Organic_Carbon_Water_Partition_Coefficient_Koc  Contaminants_Species7)","v":0},{"$f":" (Attenuation_Fraction_organic_carbon) * (Contaminants_Organic_Carbon_Water_Partition_Coefficient_Koc  Contaminants_Species7)","v":0},{"$f":" (Attenuation_Fraction_organic_carbon) * (Contaminants_Organic_Carbon_Water_Partition_Coefficient_Koc  Contaminants_Species7)","v":0}]
["Distribution",null,"constant","constant","constant","constant","constant","constant","constant","constant","constant","constant","constant","constant","constant","constant","constant","constant"]
["Attenuation_Partition_Coefficient_Kd_Species_7_param1"]
["Attenuation_Partition_Coefficient_Kd_Species_7_param2"]
["Attenuation_Partition_Coefficient_Kd_Species_7_param3"]
[]
[]
["Attenuation_Retardation_Species_7","[-]",{"$f":" 1 + 0.001 * (Attenuation_Partition_Coefficient_Kd_Species_7) * (Attenuation_Dry_bulk_density) / (Hydrogeology_Porosity    Hydrogeology!$C:$C)","v":1},{"$f":" 1 + 0.001 * (Attenuation_Partition_Coefficient_Kd_Species_7) * (Attenuation_Dry_bulk_density) / (Hydrogeology_Porosity    Hydrogeology!$D:$D)","v":1},{"$f":" 1 + 0.001 * (Attenuation_Partition_Coefficient_Kd_Species_7) * (Attenuation_Dry_bulk_density) / (Hydrogeology_Porosity    Hydrogeology!$E:$E)","v":1},{"$f":" 1 + 0.001 * (Attenuation_Partition_Coefficient_Kd_Species_7) * (Attenuation_Dry_bulk_density) / (Hydrogeology_Porosity    Hydrogeology!$F:$F)","v":1},{"$f":" 1 + 0.001 * (Attenuation_Partition_Coefficient_Kd_Species_7) * (Attenuation_Dry_bulk_density) / (Hydrogeology_Porosity    Hydrogeology!$G:$G)","v":{"$error":"#DIV/0!"}},{"$f":" 1 + 0.001 * (Attenuation_Partition_Coefficient_Kd_Species_7) * (Attenuation_Dry_bulk_density) / (Hydrogeology_Porosity    Hydrogeology!$H:$H)","v":{"$error":"#DIV/0!"}},{"$f":" 1 + 0.001 * (Attenuation_Partition_Coefficient_Kd_Species_7) * (Attenuation_Dry_bulk_density) / (Hydrogeology_Porosity    Hydrogeology!$I:$I)","v":{"$error":"#DIV/0!"}},{"$f":" 1 + 0.001 * (Attenuation_Partition_Coefficient_Kd_Species_7) * (Attenuation_Dry_bulk_density) / (Hydrogeology_Porosity    Hydrogeology!$J:$J)","v":{"$error":"#DIV/0!"}},{"$f":" 1 + 0.001 * (Attenuation_Partition_Coefficient_Kd_Species_7) * (Attenuation_Dry_bulk_density) / (Hydrogeology_Porosity    Hydrogeology!$K:$K)","v":{"$error":"#DIV/0!"}},{"$f":" 1 + 0.001 * (Attenuation_Partition_Coefficient_Kd_Species_7) * (Attenuation_Dry_bulk_density) / (Hydrogeology_Porosity    Hydrogeology!$L:$L)","v":{"$error":"#DIV/0!"}},{"$f":" 1 + 0.001 * (Attenuation_Partition_Coefficient_Kd_Species_7) * (Attenuation_Dry_bulk_density) / (Hydrogeology_Porosity    Hydrogeology!$M:$M)","v":{"$error":"#DIV/0!"}},{"$f":" 1 + 0.001 * (Attenuation_Partition_Coefficient_Kd_Species_7) * (Attenuation_Dry_bulk_density) / (Hydrogeology_Porosity    Hydrogeology!$N:$N)","v":{"$error":"#DIV/0!"}},{"$f":" 1 + 0.001 * (Attenuation_Partition_Coefficient_Kd_Species_7) * (Attenuation_Dry_bulk_density) / (Hydrogeology_Porosity    Hydrogeology!$O:$O)","v":{"$error":"#DIV/0!"}},{"$f":" 1 + 0.001 * (Attenuation_Partition_Coefficient_Kd_Species_7) * (Attenuation_Dry_bulk_density) / (Hydrogeology_Porosity    Hydrogeology!$P:$P)","v":{"$error":"#DIV/0!"}},{"$f":" 1 + 0.001 * (Attenuation_Partition_Coefficient_Kd_Species_7) * (Attenuation_Dry_bulk_density) / (Hydrogeology_Porosity    Hydrogeology!$Q:$Q)","v":{"$error":"#DIV/0!"}},{"$f":" 1 + 0.001 * (Attenuation_Partition_Coefficient_Kd_Species_7) * (Attenuation_Dry_bulk_density) / (Hydrogeology_Porosity    Hydrogeology!$R:$R)","v":{"$error":"#DIV/0!"}}]
["Distribution",null,"constant","constant","constant","constant","constant","constant","constant","constant","constant","constant","constant","constant","constant","constant","constant","constant"]
["Attenuation_Retardation_Species_7_param1"]
["Attenuation_Retardation_Species_7_param2"]
["Attenuation_Retardation_Species_7_param3"]
[]
[]
["Attenuation_Half_Life_Species_7","days","No Decay","No Decay","No Decay","No Decay","No Decay","No Decay","No Decay","No Decay","No Decay","No Decay","No Decay","No Decay","No Decay","No Decay","No Decay","No Decay"]
["Distribution",null,"constant","constant","constant","constant","constant","constant","constant","constant","constant","constant","constant","constant","constant","constant","constant","constant"]
["Attenuation_Half_Life_Species_7_param1"]
["Attenuation_Half_Life_Species_7_param2"]
["Attenuation_Half_Life_Species_7_param3"]
[]
[]
["Attenuation_Decay_Coefficient_Species_7","1/s",{"$f":" IF((_xlfn.SINGLE(Attenuation_Half_Life_Species_7))<>\"No Decay\", LN(2) / ((_xlfn.SINGLE(Attenuation_Half_Life_Species_7)) *_xlfn.SINGLE( s_per_day)),0)","v":0},0,0,0,0,0,0,0,0,0,0,0,0,0,0,0]
["Distribution",null,"constant","constant","constant","constant","constant","constant","constant","constant","constant","constant","constant","constant","constant","constant","constant","constant"]
["Attenuation_Decay_Coefficient_Species_7_param1"]
["Attenuation_Decay_Coefficient_Species_7_param2"]
["Attenuation_Decay_Coefficient_Species_7_param3"]
[]
[]
[{"$f":" IF((Contaminants_Source_determinand_names   Contaminants_Species8)=0,\"Undefined\",(Contaminants_Source_determinand_names   Contaminants_Species8))","v":"Undefined"}]
[]
["Attenuation_Partition_Coefficient_Kd_Species_8","L/kg",{"$f":" (Attenuation_Fraction_organic_carbon) * (Contaminants_Organic_Carbon_Water_Partition_Coefficient_Koc  Contaminants_Species8)","v":0},{"$f":" (Attenuation_Fraction_organic_carbon) * (Contaminants_Organic_Carbon_Water_Partition_Coefficient_Koc  Contaminants_Species8)","v":0},{"$f":" (Attenuation_Fraction_organic_carbon) * (Contaminants_Organic_Carbon_Water_Partition_Coefficient_Koc  Contaminants_Species8)","v":0},{"$f":" (Attenuation_Fraction_organic_carbon) * (Contaminants_Organic_Carbon_Water_Partition_Coefficient_Koc  Contaminants_Species8)","v":0},{"$f":" (Attenuation_Fraction_organic_carbon) * (Contaminants_Organic_Carbon_Water_Partition_Coefficient_Koc  Contaminants_Species8)","v":0},{"$f":" (Attenuation_Fraction_organic_carbon) * (Contaminants_Organic_Carbon_Water_Partition_Coefficient_Koc  Contaminants_Species8)","v":0},{"$f":" (Attenuation_Fraction_organic_carbon) * (Contaminants_Organic_Carbon_Water_Partition_Coefficient_Koc  Contaminants_Species8)","v":0},{"$f":" (Attenuation_Fraction_organic_carbon) * (Contaminants_Organic_Carbon_Water_Partition_Coefficient_Koc  Contaminants_Species8)","v":0},{"$f":" (Attenuation_Fraction_organic_carbon) * (Contaminants_Organic_Carbon_Water_Partition_Coefficient_Koc  Contaminants_Species8)","v":0},{"$f":" (Attenuation_Fraction_organic_carbon) * (Contaminants_Organic_Carbon_Water_Partition_Coefficient_Koc  Contaminants_Species8)","v":0},{"$f":" (Attenuation_Fraction_organic_carbon) * (Contaminants_Organic_Carbon_Water_Partition_Coefficient_Koc  Contaminants_Species8)","v":0},{"$f":" (Attenuation_Fraction_organic_carbon) * (Contaminants_Organic_Carbon_Water_Partition_Coefficient_Koc  Contaminants_Species8)","v":0},{"$f":" (Attenuation_Fraction_organic_carbon) * (Contaminants_Organic_Carbon_Water_Partition_Coefficient_Koc  Contaminants_Species8)","v":0},{"$f":" (Attenuation_Fraction_organic_carbon) * (Contaminants_Organic_Carbon_Water_Partition_Coefficient_Koc  Contaminants_Species8)","v":0},{"$f":" (Attenuation_Fraction_organic_carbon) * (Contaminants_Organic_Carbon_Water_Partition_Coefficient_Koc  Contaminants_Species8)","v":0},{"$f":" (Attenuation_Fraction_organic_carbon) * (Contaminants_Organic_Carbon_Water_Partition_Coefficient_Koc  Contaminants_Species8)","v":0}]
["Distribution",null,"constant","constant","constant","constant","constant","constant","constant","constant","constant","constant","constant","constant","constant","constant","constant","constant"]
["Attenuation_Partition_Coefficient_Kd_Species_8_param1"]
["Attenuation_Partition_Coefficient_Kd_Species_8_param2"]
["Attenuation_Partition_Coefficient_Kd_Species_8_param3"]
[]
[]
["Attenuation_Retardation_Species_8","[-]",{"$f":" 1 + 0.001 * (Attenuation_Partition_Coefficient_Kd_Species_8) * (Attenuation_Dry_bulk_density) / (Hydrogeology_Porosity    Hydrogeology!$C:$C)","v":1},{"$f":" 1 + 0.001 * (Attenuation_Partition_Coefficient_Kd_Species_8) * (Attenuation_Dry_bulk_density) / (Hydrogeology_Porosity    Hydrogeology!$D:$D)","v":1},{"$f":" 1 + 0.001 * (Attenuation_Partition_Coefficient_Kd_Species_8) * (Attenuation_Dry_bulk_density) / (Hydrogeology_Porosity    Hydrogeology!$E:$E)","v":1},{"$f":" 1 + 0.001 * (Attenuation_Partition_Coefficient_Kd_Species_8) * (Attenuation_Dry_bulk_density) / (Hydrogeology_Porosity    Hydrogeology!$F:$F)","v":1},{"$f":" 1 + 0.001 * (Attenuation_Partition_Coefficient_Kd_Species_8) * (Attenuation_Dry_bulk_density) / (Hydrogeology_Porosity    Hydrogeology!$G:$G)","v":{"$error":"#DIV/0!"}},{"$f":" 1 + 0.001 * (Attenuation_Partition_Coefficient_Kd_Species_8) * (Attenuation_Dry_bulk_density) / (Hydrogeology_Porosity    Hydrogeology!$H:$H)","v":{"$error":"#DIV/0!"}},{"$f":" 1 + 0.001 * (Attenuation_Partition_Coefficient_Kd_Species_8) * (Attenuation_Dry_bulk_density) / (Hydrogeology_Porosity    Hydrogeology!$I:$I)","v":{"$error":"#DIV/0!"}},{"$f":" 1 + 0.001 * (Attenuation_Partition_Coefficient_Kd_Species_8) * (Attenuation_Dry_bulk_density) / (Hydrogeology_Porosity    Hydrogeology!$J:$J)","v":{"$error":"#DIV/0!"}},{"$f":" 1 + 0.001 * (Attenuation_Partition_Coefficient_Kd_Species_8) * (Attenuation_Dry_bulk_density) / (Hydrogeology_Porosity    Hydrogeology!$K:$K)","v":{"$error":"#DIV/0!"}},{"$f":" 1 + 0.001 * (Attenuation_Partition_Coefficient_Kd_Species_8) * (Attenuation_Dry_bulk_density) / (Hydrogeology_Porosity    Hydrogeology!$L:$L)","v":{"$error":"#DIV/0!"}},{"$f":" 1 + 0.001 * (Attenuation_Partition_Coefficient_Kd_Species_8) * (Attenuation_Dry_bulk_density) / (Hydrogeology_Porosity    Hydrogeology!$M:$M)","v":{"$error":"#DIV/0!"}},{"$f":" 1 + 0.001 * (Attenuation_Partition_Coefficient_Kd_Species_8) * (Attenuation_Dry_bulk_density) / (Hydrogeology_Porosity    Hydrogeology!$N:$N)","v":{"$error":"#DIV/0!"}},{"$f":" 1 + 0.001 * (Attenuation_Partition_Coefficient_Kd_Species_8) * (Attenuation_Dry_bulk_density) / (Hydrogeology_Porosity    Hydrogeology!$O:$O)","v":{"$error":"#DIV/0!"}},{"$f":" 1 + 0.001 * (Attenuation_Partition_Coefficient_Kd_Species_8) * (Attenuation_Dry_bulk_density) / (Hydrogeology_Porosity    Hydrogeology!$P:$P)","v":{"$error":"#DIV/0!"}},{"$f":" 1 + 0.001 * (Attenuation_Partition_Coefficient_Kd_Species_8) * (Attenuation_Dry_bulk_density) / (Hydrogeology_Porosity    Hydrogeology!$Q:$Q)","v":{"$error":"#DIV/0!"}},{"$f":" 1 + 0.001 * (Attenuation_Partition_Coefficient_Kd_Species_8) * (Attenuation_Dry_bulk_density) / (Hydrogeology_Porosity    Hydrogeology!$R:$R)","v":{"$error":"#DIV/0!"}}]
["Distribution",null,"constant","constant","constant","constant","constant","constant","constant","constant","constant","constant","constant","constant","constant","constant","constant","constant"]
["Attenuation_Retardation_Species_8_param1"]
["Attenuation_Retardation_Species_8_param2"]
["Attenuation_Retardation_Species_8_param3"]
[]
[]
["Attenuation_Half_Life_Species_8","days","No Decay","No Decay","No Decay","No Decay","No Decay","No Decay","No Decay","No Decay","No Decay","No Decay","No Decay","No Decay","No Decay","No Decay","No Decay","No Decay"]
["Distribution",null,"constant","constant","constant","constant","constant","constant","constant","constant","constant","constant","constant","constant","constant","constant","constant","constant"]
["Attenuation_Half_Life_Species_8_param1"]
["Attenuation_Half_Life_Species_8_param2"]
["Attenuation_Half_Life_Species_8_param3"]
[]
[]
["Attenuation_Decay_Coefficient_Species_8","1/s",{"$f":" IF((_xlfn.SINGLE(Attenuation_Half_Life_Species_8))<>\"No Decay\", LN(2) / ((_xlfn.SINGLE(Attenuation_Half_Life_Species_8)) *_xlfn.SINGLE( s_per_day)),0)","v":0},0,0,0,0,0,0,0,0,0,0,0,0,0,0,0]
["Distribution",null,"constant","constant","constant","constant","constant","constant","constant","constant","constant","constant","constant","constant","constant","constant","constant","constant"]
["Attenuation_Decay_Coefficient_Species_8_param1"]
["Attenuation_Decay_Coefficient_Species_8_param2"]
["Attenuation_Decay_Coefficient_Species_8_param3"]

{"sheet":"WaterBalance","index":7,"n_rows":13,"n_cols":3,"rows_kept":13,"cut":false,"hidden":false,"merged":[]}
["WATER BALANCE"]
[]
["User defined"]
[]
["Enter your own calculations for the water balance"]
["Carry fluxes and velocities over onto the Pathway sheet"]
[]
["Average yearly rainfall (2010 - 2022) (mm/yr)",555,"Chantry Rain Gauge"]
[null,{"$f":"B8*0.4","v":222},"Estimated infiltration (60% runoff)"]
[]
["Q_Path P4",{"$f":"((B9/s_per_year)*P4_Source_area)/1000","v":5.0869020457829496E-4},"m3/s"]
["Q_Path P123",{"$f":"((B9/s_per_year)*P1_2_3_Source_area)/1000","v":2.057265001140771E-3},"m3/s"]
["Q_Path AGB",{"$f":"B11+B12","v":2.5659552057190659E-3},"m3/s"]

{"sheet":"Pathways","index":8,"n_rows":65,"n_cols":11,"rows_kept":65,"cut":false,"hidden":false,"merged":[]}
["PATHWAY SUMMARY"]
[]
["Path 1",null,"Section 1",null,"Section 2",null,"Section 3",null,"Section 4",null,"Section 5"]
["Path 1  Type",null,"Source",null,"Unit",null,"Unit",null,"Unit",null,"Receptor"]
["Path 1  Name",null,"P1 2 3",null,"AGB: Node 1",null,"Unsat S&G: Node 1",null,"Sat S&G: Node 2",null,"Non-Haz Compliance"]
["Path 1  Process",null,"Declining source",null,"ADRD (1D) + Dilution",null,"ADRD (1D) + Dilution",null,"ADRD (1D) + Dilution",null,"Monitoring Borehole"]
["Path 1  Standards",null,null,null,null,null,null,null,null,"Target Standard","P1 2 3"]
["Path 1  Parameter1","Q_managed [m3/s]",0,"Velocity [m/s]",{"$f":" (AGB   Hydrogeology_Velocity)","v":2.4999999999999999E-8},"Velocity [m/s]",{"$f":" (Unsat_SG   Hydrogeology_Velocity)","v":5.9999999999999995E-4},"Velocity [m/s]",{"$f":" (Sat_SG   Hydrogeology_Velocity)","v":6.0749999999999994E-6}]
["Path 1  Parameter2","Managed time [years]",0,"Dispersivity [m]",{"$f":"E10/10","v":0.1},"Dispersivity [m]",{"$f":"G10/10","v":0.05},"Dispersivity [m]",{"$f":"I10/10","v":27}]
["Path 1  Parameter3","Q_path [m3/s]",{"$f":"WaterBalance!B12","v":2.057265001140771E-3},"Travel Distance [m]",{"$f":"Hydrogeology!C5","v":1},"Travel Distance [m]",{"$f":"Hydrogeology!D5","v":0.5},"Travel Distance [m]",270]
["Path 1  Parameter4","Q_decline [m3/s]",{"$f":"WaterBalance!B12","v":2.057265001140771E-3},"Mixing Depth [m]",null,"Mixing Depth [m]",null,"Mixing Depth [m]",{"$f":"Hydrogeology!E5","v":11}]
["Path 1  Parameter5",null,null,"Mixing Width [m]",null,"Mixing Width [m]",null,"Mixing Width [m]",{"$f":"P1_2_3_Source_width","v":619}]
["Path 1  Parameter6",null,null,"Q_Dilute [m3/s]",{"$f":" Path1_Param5*Path1_Param4*(AGB   Hydrogeology_Hydraulic_Conductivity)*(AGB   Hydrogeology_Hydraulic_Gradient)","v":0},"Q_Dilute [m3/s]",{"$f":" Path1_Param5*Path1_Param4*(Unsat_SG   Hydrogeology_Hydraulic_Conductivity)*(Unsat_SG   Hydrogeology_Hydraulic_Gradient)","v":0},"Q_Dilute [m3/s]",{"$f":" Path1_Param5*Path1_Param4*(Sat_SG   Hydrogeology_Hydraulic_Conductivity)*(Sat_SG   Hydrogeology_Hydraulic_Gradient)","v":8.2729350000000004E-3},"Q_dilute [m3/s]",0]
[]
[]
["Path 2",null,"Section 1",null,"Section 2",null,"Section 3",null,"Section 4"]
["Path 2  Type",null,"Source",null,"Unit",null,"Unit",null,"Receptor"]
["Path 2  Name",null,"P1 2 3",null,"AGB: Node 2",null,"Unsat S&G: Node 2",null,"Haz Compliance"]
["Path 2  Process",null,"Declining source",null,"ADRD (1D) + Dilution",null,"ADRD (1D) + Dilution",null,"Monitoring Borehole"]
["Path 2  Standards",null,null,null,null,null,null,"Target Standard","P1 2 3"]
["Path 2  Parameter1","Q_managed [m3/s]",0,"Velocity [m/s]",{"$f":" (AGB   Hydrogeology_Velocity)","v":2.4999999999999999E-8},"Velocity [m/s]",{"$f":" (Unsat_SG   Hydrogeology_Velocity)","v":5.9999999999999995E-4}]
["Path 2  Parameter2","Managed time [years]",0,"Dispersivity [m]",{"$f":"E23/10","v":0.1},"Dispersivity [m]",{"$f":"G23/10","v":0.05}]
["Path 2  Parameter3","Q_path [m3/s]",{"$f":"WaterBalance!B12","v":2.057265001140771E-3},"Travel Distance [m]",{"$f":"Hydrogeology!C5","v":1},"Travel Distance [m]",{"$f":"Hydrogeology!D5","v":0.5}]
["Path 2  Parameter4","Q_decline [m3/s]",{"$f":"WaterBalance!B12","v":2.057265001140771E-3},"Mixing Depth [m]",null,"Mixing Depth [m]"]
["Path 2  Parameter5",null,null,"Mixing Width [m]",null,"Mixing Width [m]"]
["Path 2  Parameter6",null,null,"Q_Dilute [m3/s]",{"$f":" Path2_Param5*Path2_Param4*(AGB   Hydrogeology_Hydraulic_Conductivity)*(AGB   Hydrogeology_Hydraulic_Gradient)","v":0},"Q_Dilute [m3/s]",{"$f":" Path2_Param5*Path2_Param4*(Unsat_SG   Hydrogeology_Hydraulic_Conductivity)*(Unsat_SG   Hydrogeology_Hydraulic_Gradient)","v":0},"Q_dilute [m3/s]",0]
[]
[]
["Path 3",null,"Section 1",null,"Section 2",null,"Section 3",null,"Section 4",null,"Section 5"]
["Path 3  Type",null,"Source",null,"Unit",null,"Unit",null,"Unit",null,"Receptor"]
["Path 3  Name",null,"P4",null,"AGB: Node 3",null,"Unsat S&G: Node 3",null,"Sat S&G: Node 3",null,"Non-Haz Compliance"]
["Path 3  Process",null,"Declining source",null,"ADRD (1D) + Dilution",null,"ADRD (1D) + Dilution",null,"ADRD (1D) + Dilution",null,"Monitoring Borehole"]
["Path 3  Standards",null,null,null,null,null,null,null,null,"Target Standard","P4"]
["Path 3  Parameter1","Q_managed [m3/s]",0,"Velocity [m/s]",{"$f":" (AGB   Hydrogeology_Velocity)","v":2.4999999999999999E-8},"Velocity [m/s]",{"$f":" (Unsat_SG   Hydrogeology_Velocity)","v":5.9999999999999995E-4},"Velocity [m/s]",{"$f":" (Sat_SG   Hydrogeology_Velocity)","v":6.0749999999999994E-6}]
["Path 3  Parameter2","Managed time [years]",0,"Dispersivity [m]",{"$f":"E36/10","v":0.1},"Dispersivity [m]",{"$f":"G36/10","v":0.05},"Dispersivity [m]",{"$f":"I36/10","v":13.3}]
["Path 3  Parameter3","Q_path [m3/s]",{"$f":"WaterBalance!B11","v":5.0869020457829496E-4},"Travel Distance [m]",{"$f":"Hydrogeology!C5","v":1},"Travel Distance [m]",{"$f":"Hydrogeology!D5","v":0.5},"Travel Distance [m]",133]
["Path 3  Parameter4","Q_decline [m3/s]",{"$f":"WaterBalance!B11","v":5.0869020457829496E-4},"Mixing Depth [m]",null,"Mixing Depth [m]",null,"Mixing Depth [m]",{"$f":"Hydrogeology!E5","v":11}]
["Path 3  Parameter5",null,null,"Mixing Width [m]",null,"Mixing Width [m]",null,"Mixing Width [m]",{"$f":"P4_Source_width","v":295}]
["Path 3  Parameter6",null,null,"Q_Dilute [m3/s]",{"$f":" Path3_Param5*Path3_Param4*(AGB   Hydrogeology_Hydraulic_Conductivity)*(AGB   Hydrogeology_Hydraulic_Gradient)","v":0},"Q_Dilute [m3/s]",{"$f":" Path3_Param5*Path3_Param4*(Unsat_SG   Hydrogeology_Hydraulic_Conductivity)*(Unsat_SG   Hydrogeology_Hydraulic_Gradient)","v":0},"Q_Dilute [m3/s]",{"$f":" Path3_Param5*Path3_Param4*(Sat_SG   Hydrogeology_Hydraulic_Conductivity)*(Sat_SG   Hydrogeology_Hydraulic_Gradient)","v":3.9426750000000005E-3},"Q_dilute [m3/s]",0]
[]
[]
["Path 4",null,"Section 1",null,"Section 2",null,"Section 3",null,"Section 4"]
["Path 4  Type",null,"Source",null,"Unit",null,"Unit",null,"Receptor"]
["Path 4  Name",null,"P4",null,"AGB: Node 4",null,"Unsat S&G: Node 4",null,"Haz Compliance"]
["Path 4  Process",null,"Declining source",null,"ADRD (1D) + Dilution",null,"ADRD (1D) + Dilution",null,"Monitoring Borehole"]
["Path 4  Standards",null,null,null,null,null,null,"Target Standard","P4"]
["Path 4  Parameter1","Q_managed [m3/s]",0,"Velocity [m/s]",{"$f":" (AGB   Hydrogeology_Velocity)","v":2.4999999999999999E-8},"Velocity [m/s]",{"$f":" (Unsat_SG   Hydrogeology_Velocity)","v":5.9999999999999995E-4}]
["Path 4  Parameter2","Managed time [years]",0,"Dispersivity [m]",{"$f":"E49/10","v":0.1},"Dispersivity [m]",{"$f":"G49/10","v":0.05}]
["Path 4  Parameter3","Q_path [m3/s]",{"$f":"WaterBalance!B11","v":5.0869020457829496E-4},"Travel Distance [m]",{"$f":"Hydrogeology!C5","v":1},"Travel Distance [m]",{"$f":"Hydrogeology!D5","v":0.5}]
["Path 4  Parameter4","Q_decline [m3/s]",{"$f":"WaterBalance!B11","v":5.0869020457829496E-4},"Mixing Depth [m]",null,"Mixing Depth [m]"]
["Path 4  Parameter5",null,null,"Mixing Width [m]",null,"Mixing Width [m]"]
["Path 4  Parameter6",null,null,"Q_Dilute [m3/s]",{"$f":" Path4_Param5*Path4_Param4*(AGB   Hydrogeology_Hydraulic_Conductivity)*(AGB   Hydrogeology_Hydraulic_Gradient)","v":0},"Q_Dilute [m3/s]",{"$f":" Path4_Param5*Path4_Param4*(Unsat_SG   Hydrogeology_Hydraulic_Conductivity)*(Unsat_SG   Hydrogeology_Hydraulic_Gradient)","v":0},"Q_dilute [m3/s]",0]
[]
[]
["Path 5",null,"Section 1",null,"Section 2",null,"Section 3",null,"Section 4"]
["Path 5  Type",null,"Source",null,"Unit",null,"Unit",null,"Receptor"]
["Path 5  Name",null,"AGB",null,"Un Sat S&G 2: Node 4",null,"Sat S&G: Node 1",null,"Non-Haz Compliance"]
["Path 5  Process",null,"Declining source",null,"ADRD (1D) + Dilution",null,"ADRD (1D) + Dilution",null,"Monitoring Borehole"]
["Path 5  Standards",null,null,null,null,null,null,"Target Standard","P1 2 3"]
["Path 5  Parameter1","Q_managed [m3/s]",0,"Velocity [m/s]",{"$f":" (Un_Sat_SG_2   Hydrogeology_Velocity)","v":6.0749999999999994E-6},"Velocity [m/s]",{"$f":" (Sat_SG   Hydrogeology_Velocity)","v":6.0749999999999994E-6}]
["Path 5  Parameter2","Managed time [years]",0,"Dispersivity [m]",{"$f":"E62/10","v":0.05},"Dispersivity [m]",{"$f":"G62/10","v":13.3}]
["Path 5  Parameter3","Q_path [m3/s]",{"$f":"WaterBalance!B13","v":2.5659552057190659E-3},"Travel Distance [m]",{"$f":"Hydrogeology!D5","v":0.5},"Travel Distance [m]",133]
["Path 5  Parameter4","Q_decline [m3/s]",{"$f":"WaterBalance!B13","v":2.5659552057190659E-3},"Mixing Depth [m]",null,"Mixing Depth [m]",{"$f":"Hydrogeology!E5","v":11}]
["Path 5  Parameter5",null,null,"Mixing Width [m]",null,"Mixing Width [m]",845]
["Path 5  Parameter6",null,null,"Q_Dilute [m3/s]",{"$f":" Path5_Param5*Path5_Param4*(Un_Sat_SG_2   Hydrogeology_Hydraulic_Conductivity)*(Un_Sat_SG_2   Hydrogeology_Hydraulic_Gradient)","v":0},"Q_Dilute [m3/s]",{"$f":" Path5_Param5*Path5_Param4*(Sat_SG   Hydrogeology_Hydraulic_Conductivity)*(Sat_SG   Hydrogeology_Hydraulic_Gradient)","v":1.1293424999999999E-2},"Q_dilute [m3/s]",0]

{"sheet":"Simulation","index":9,"n_rows":109,"n_cols":12,"rows_kept":109,"cut":false,"hidden":false,"merged":[]}
["SIMULATION PARAMETERS"]
[]
[null,"Monte Carlo Analysis with Crystal Ball",null,null,null,null,null,null,null,"Named Constants"]
[]
[null,null,"Reported Percentile",null,null,95,null,null,null,null,"s_per_year",{"$f":"365.25*60*60*24","v":31557600}]
[null,null,"Number of simulations",null,null,10000,null,null,null,null,"s_per_day",{"$f":"60*60*24","v":86400}]
[]
[]
[null,null,null,null,null,null,null,null,null,"Laplace Transform Solution Parameters"]
[]
[null,null,"Minimise while running:",null,null,null,null,null,null,null,"sigma",0]
[null,null,null,null,null,null,null,null,null,null,"nu",1]
[null,null,null,null,null,null,null,null,null,null,"nsum",16]
[null,null,null,null,null,null,null,null,null,null,"omega",11]
[]
[]
[null,"Reporting Options"]
[]
[]
[]
[]
[null,null,"Number of timeslices for breakthrough curves",null,null,null,15]
[]
[null," The timeslices specified on the results sheets are saved below."]
[null,null,"Path1 timeslices in years"]
[null,null,"TS_Path1_Spec1",null,"TS_Path1_Spec2",null,"TS_Path1_Spec3",null,"TS_Path1_Spec4",null,"TS_Path1_Spec5"]
[null,null,0.1,null,0.1,null,0.1,null,0.1,null,0.1]
[null,null,0.2,null,0.2,null,0.2,null,0.2,null,0.2]
[null,null,0.5,null,0.5,null,0.5,null,0.5,null,0.5]
[null,null,0.75,null,0.75,null,0.75,null,0.75,null,0.75]
[null,null,1,null,1,null,1,null,1,null,1]
[null,null,2,null,2,null,2,null,2,null,2]
[null,null,5,null,5,null,5,null,5,null,5]
[null,null,10,null,10,null,10,null,10,null,10]
[null,null,50,null,50,null,50,null,50,null,50]
[null,null,100,null,100,null,100,null,100,null,100]
[null,null,250,null,250,null,250,null,250,null,250]
[null,null,500,null,500,null,500,null,500,null,500]
[null,null,1000,null,1000,null,1000,null,1000,null,1000]
[null,null,2000,null,2000,null,2000,null,2000,null,2000]
[null,null,3000,null,3000,null,3000,null,3000,null,3000]
[null,null,"Path2 timeslices in years"]
[null,null,"TS_Path2_Spec1",null,"TS_Path2_Spec2",null,"TS_Path2_Spec3",null,"TS_Path2_Spec4",null,"TS_Path2_Spec5"]
[null,null,0.1,null,0.1,null,0.1,null,0.1,null,0.1]
[null,null,0.2,null,0.2,null,0.2,null,0.2,null,0.2]
[null,null,0.5,null,0.5,null,0.5,null,0.5,null,0.5]
[null,null,0.75,null,0.75,null,0.75,null,0.75,null,0.75]
[null,null,1,null,1,null,1,null,1,null,1]
[null,null,2,null,2,null,2,null,2,null,2]
[null,null,5,null,5,null,5,null,5,null,5]
[null,null,10,null,10,null,10,null,10,null,10]
[null,null,50,null,50,null,50,null,50,null,50]
[null,null,100,null,100,null,100,null,100,null,100]
[null,null,250,null,250,null,250,null,250,null,250]
[null,null,500,null,500,null,500,null,500,null,500]
[null,null,1000,null,1000,null,1000,null,1000,null,1000]
[null,null,2000,null,2000,null,2000,null,2000,null,2000]
[null,null,3000,null,3000,null,3000,null,3000,null,3000]
[null,null,"Path3 timeslices in years"]
[null,null,"TS_Path3_Spec1",null,"TS_Path3_Spec2",null,"TS_Path3_Spec3",null,"TS_Path3_Spec4",null,"TS_Path3_Spec5"]
[null,null,0.1,null,0.1,null,0.1,null,0.1,null,0.1]
[null,null,0.2,null,0.2,null,0.2,null,0.2,null,0.2]
[null,null,0.5,null,0.5,null,0.5,null,0.5,null,0.5]
[null,null,0.75,null,0.75,null,0.75,null,0.75,null,0.75]
[null,null,1,null,1,null,1,null,1,null,1]
[null,null,2,null,2,null,2,null,2,null,2]
[null,null,5,null,5,null,5,null,5,null,5]
[null,null,10,null,10,null,10,null,10,null,10]
[null,null,50,null,50,null,50,null,50,null,50]
[null,null,100,null,100,null,100,null,100,null,100]
[null,null,250,null,250,null,250,null,250,null,250]
[null,null,500,null,500,null,500,null,500,null,500]
[null,null,1000,null,1000,null,1000,null,1000,null,1000]
[null,null,2000,null,2000,null,2000,null,2000,null,2000]
[null,null,3000,null,3000,null,3000,null,3000,null,3000]
[null,null,"Path4 timeslices in years"]
[null,null,"TS_Path4_Spec1",null,"TS_Path4_Spec2",null,"TS_Path4_Spec3",null,"TS_Path4_Spec4",null,"TS_Path4_Spec5"]
[null,null,0.1,null,0.1,null,0.1,null,0.1,null,0.1]
[null,null,0.2,null,0.2,null,0.2,null,0.2,null,0.2]
[null,null,0.5,null,0.5,null,0.5,null,0.5,null,0.5]
[null,null,0.75,null,0.75,null,0.75,null,0.75,null,0.75]
[null,null,1,null,1,null,1,null,1,null,1]
[null,null,2,null,2,null,2,null,2,null,2]
[null,null,5,null,5,null,5,null,5,null,5]
[null,null,10,null,10,null,10,null,10,null,10]
[null,null,50,null,50,null,50,null,50,null,50]
[null,null,100,null,100,null,100,null,100,null,100]
[null,null,250,null,250,null,250,null,250,null,250]
[null,null,500,null,500,null,500,null,500,null,500]
[null,null,1000,null,1000,null,1000,null,1000,null,1000]
[null,null,2000,null,2000,null,2000,null,2000,null,2000]
[null,null,3000,null,3000,null,3000,null,3000,null,3000]
[null,null,"Path5 timeslices in years"]
[null,null,"TS_Path5_Spec1",null,"TS_Path5_Spec2",null,"TS_Path5_Spec3",null,"TS_Path5_Spec4",null,"TS_Path5_Spec5"]
[null,null,0.1,null,0.1,null,0.1,null,0.1,null,0.1]
[null,null,0.2,null,0.2,null,0.2,null,0.2,null,0.2]
[null,null,0.5,null,0.5,null,0.5,null,0.5,null,0.5]
[null,null,0.75,null,0.75,null,0.75,null,0.75,null,0.75]
[null,null,1,null,1,null,1,null,1,null,1]
[null,null,2,null,2,null,2,null,2,null,2]
[null,null,5,null,5,null,5,null,5,null,5]
[null,null,10,null,10,null,10,null,10,null,10]
[null,null,50,null,50,null,50,null,50,null,50]
[null,null,100,null,100,null,100,null,100,null,100]
[null,null,250,null,250,null,250,null,250,null,250]
[null,null,500,null,500,null,500,null,500,null,500]
[null,null,1000,null,1000,null,1000,null,1000,null,1000]
[null,null,2000,null,2000,null,2000,null,2000,null,2000]
[null,null,3000,null,3000,null,3000,null,3000,null,3000]

{"sheet":"Audit","index":10,"n_rows":169,"n_cols":58,"rows_kept":169,"cut":false,"hidden":false,"merged":[]}
["AUDIT TRAIL SHEET"]
[]
["Author","Date","Time",null,"Cell Address",null,"New Value","Old Value","Cell Name"]
[]
[]
["Saved  22/01/2026: 20:18:42  Level Number: 5"]
[]
["BREAKTHROUGH RESULTS"]
[]
["Advanced"]
["Pollutant Linkage: P1 2 3, AGB, Unsat S&G, Sat S&G, Non-Haz Compliance",null,null,null,null,null,null,null,null,null,null,null,"Pollutant Linkage: P1 2 3, AGB, Unsat S&G, Haz Compliance",null,null,null,null,null,null,null,null,null,null,null,"Pollutant Linkage: P4, AGB, Unsat S&G, Sat S&G, Non-Haz Compliance",null,null,null,null,null,null,null,null,null,null,null,"Pollutant Linkage: P4, AGB, Unsat S&G, Haz Compliance",null,null,null,null,null,null,null,null,null,null,null,"Pollutant Linkage: AGB, Un Sat S&G 2, Sat S&G, Non-Haz Compliance"]
["Concentrations in mg/L in Non-Haz Compliance",null,null,null,null,null,null,null,null,null,null,null,"Concentrations in mg/L in Haz Compliance",null,null,null,null,null,null,null,null,null,null,null,"Concentrations in mg/L in Non-Haz Compliance",null,null,null,null,null,null,null,null,null,null,null,"Concentrations in mg/L in Haz Compliance",null,null,null,null,null,null,null,null,null,null,null,"Concentrations in mg/L in Non-Haz Compliance"]
[]
["Compared with P1 2 3 target concentration in mg/L",null,null,null,null,null,null,null,null,null,null,null,"Compared with P1 2 3 target concentration in mg/L",null,null,null,null,null,null,null,null,null,null,null,"Compared with P4 target concentration in mg/L",null,null,null,null,null,null,null,null,null,null,null,"Compared with P4 target concentration in mg/L",null,null,null,null,null,null,null,null,null,null,null,"Compared with P1 2 3 target concentration in mg/L"]
[null,5.0000000000000001E-3,null,4.0000000000000001E-3,null,74,null,1E-3,null,4.9999999999999998E-8,null,null,null,5.0000000000000001E-3,null,4.0000000000000001E-3,null,74,null,1E-3,null,4.9999999999999998E-8,null,null,null,5.0000000000000001E-3,null,1.8499999999999999E-2,null,74,null,1E-3,null,4.9999999999999998E-8,null,null,null,5.0000000000000001E-3,null,1.8499999999999999E-2,null,74,null,1E-3,null,4.9999999999999998E-8,null,null,null,5.0000000000000001E-3,null,4.0000000000000001E-3,null,74,null,1E-3,null,4.9999999999999998E-8]
[]
[null,"Species1",null,"Species2",null,"Species3",null,"Species4",null,"Species5",null,null,null,"Species1",null,"Species2",null,"Species3",null,"Species4",null,"Species5",null,null,null,"Species1",null,"Species2",null,"Species3",null,"Species4",null,"Species5",null,null,null,"Species1",null,"Species2",null,"Species3",null,"Species4",null,"Species5",null,null,null,"Species1",null,"Species2",null,"Species3",null,"Species4",null,"Species5"]
["Time(years)","Arsenic","Time(years)","Nickel","Time(years)","Sulphate","Time(years)","Benzene","Time(years)","BaP",null,null,"Time(years)","Arsenic","Time(years)","Nickel","Time(years)","Sulphate","Time(years)","Benzene","Time(years)","BaP",null,null,"Time(years)","Arsenic","Time(years)","Nickel","Time(years)","Sulphate","Time(years)","Benzene","Time(years)","BaP",null,null,"Time(years)","Arsenic","Time(years)","Nickel","Time(years)","Sulphate","Time(years)","Benzene","Time(years)","BaP",null,null,"Time(years)","Arsenic","Time(years)","Nickel","Time(years)","Sulphate","Time(years)","Benzene","Time(years)","BaP"]
[0.1,0,0.1,0,0.1,0,0.1,0,0.1,0,null,null,0.1,0,0.1,0,0.1,2.2058036453306843E-11,0.1,0,0.1,0,null,null,0.1,0,0.1,0,0.1,0,0.1,0,0.1,0,null,null,0.1,0,0.1,0,0.1,2.2058036453307002E-11,0.1,0,0.1,0,null,null,0.1,0,0.1,0,0.1,4.7982310932349691E-8,0.1,0,0.1,0]
[0.2,0,0.2,0,0.2,5.7942416822644765E-18,0.2,0,0.2,0,null,null,0.2,0,0.2,0,0.2,1.8939869883021995E-4,0.2,4.0340689727393059E-38,0.2,0,null,null,0.2,0,0.2,0,0.2,2.4172021226936286E-15,0.2,0,0.2,0,null,null,0.2,0,0.2,0,0.2,1.8939869883021997E-4,0.2,4.0340689727393069E-38,0.2,0,null,null,0.2,0,0.2,0,0.2,3.9170180093738125E-4,0.2,5.5255102724884124E-9,0.2,0]
[0.5,0,0.5,0,0.5,4.7207440483395021E-8,0.5,6.6389471545489162E-33,0.5,0,null,null,0.5,0,0.5,0,0.5,2.3118739427768182,0.5,1.0061050957552861E-23,0.5,0,null,null,0.5,0,0.5,0,0.5,4.201053102738334E-5,0.5,9.1679326333654238E-30,0.5,0,null,null,0.5,0,0.5,0,0.5,2.3118739427768182,0.5,1.0061050957552814E-23,0.5,0,null,null,0.5,0,0.5,0,0.5,4.8680699799572992E-2,0.5,6.9653246497827011E-4,0.5,0]
[0.75,0,0.75,0,0.75,2.7459350598779513E-4,0.75,4.0730654027909396E-26,0.75,0,null,null,0.75,0,0.75,0,0.75,15.674057875850691,0.75,0,0.75,0,null,null,0.75,0,0.75,0,0.75,1.6762387793546111E-2,0.75,0,0.75,0,null,null,0.75,0,0.75,0,0.75,15.674057875850695,0.75,0,0.75,0,null,null,0.75,0,0.75,0,0.75,9.6782639917501925E-2,0.75,6.6746485642968836E-3,0.75,0]
[1,0,1,0,1,1.7792047773090274E-2,1,1.0075903595124607E-22,1,0,null,null,1,0,1,0,1,36.297829310791066,1,0,1,0,null,null,1,0,1,0,1,0.26680984484838371,1,0,1,0,null,null,1,0,1,0,1,36.297829310791123,1,0,1,0,null,null,1,0,1,0,1,0.10874052371847044,1,1.6638127290161928E-2,1,0]
[2,0,2,0,2,4.2157768934730671,2,0,2,0,null,null,2,0,2,0,2,82.376608255202569,2,4.2415948560128073E-10,2,0,null,null,2,0,2,0,2,6.4509153761369022,2,9.5917096945214319E-16,2,0,null,null,2,0,2,0,2,82.376608255202655,2,4.2415948560128073E-10,2,0,null,null,2,0,2,0,2,5.4207984507587792E-2,2,2.4691746004212305E-2,2,0]
[5,0,5,0,5,15.583063989401147,5,2.2340010660828212E-8,5,0,null,null,5,0,5,0,5,69.286200787177393,5,2.4970320833209764E-5,5,0,null,null,5,0,5,0,5,8.4722720299798393,5,1.6710704052455078E-7,5,0,null,null,5,0,5,0,5,69.286200787180078,5,2.4970320833209761E-5,5,0,null,null,5,0,5,0,5,2.9774564969371089E-3,5,1.7526866096464302E-3,5,0]
[10,0,10,0,10,9.7028863200928903,10,2.0991843745464002E-6,10,0,null,null,10,0,10,0,10,42.316478296023391,10,1.0172499990011527E-4,10,0,null,null,10,0,10,0,10,5.180877312001992,10,3.6241592951752801E-6,10,0,null,null,10,0,10,0,10,42.31647829601328,10,1.0172499990011486E-4,10,0,null,null,10,0,10,0,10,2.3082545899443231E-5,10,1.3613620257050997E-5,10,0]
[50,0,50,0,50,0.18745066557564036,50,6.0941807629148193E-8,50,0,null,null,50,0,50,1.1118500411980574E-21,50,0.81751147956309766,50,2.1453174873648989E-6,50,0,null,null,50,0,50,0,50,0.10008932348851468,50,8.6801003853016529E-8,50,0,null,null,50,0,50,1.11185004119807E-21,50,0.81751147958245218,50,2.1453174873610669E-6,50,0,null,null,50,0,50,2.3790807429840341E-24,50,0,50,0,50,0]
[100,0,100,2.0772504662758702E-39,100,1.3500676781228341E-3,100,4.3893224728683694E-10,100,0,null,null,100,0,100,4.365010459842811E-15,100,5.8877733642790815E-3,100,1.5451656407863925E-8,100,0,null,null,100,0,100,2.484774978376272E-30,100,7.2085874230432988E-4,100,6.2518388240081855E-10,100,0,null,null,100,0,100,4.3650104598427929E-15,100,5.887773371951001E-3,100,1.5451656404427333E-8,100,0,null,null,100,0,100,0,100,0,100,0,100,0]
[250,0,250,1.1534103954918485E-23,250,0,250,0,250,0,null,null,250,3.7404495102304668E-27,250,4.6051040414615572E-7,250,0,250,0,250,0,null,null,250,0,250,0,250,0,250,0,250,0,null,null,250,3.7404495102304668E-27,250,4.6051040414615572E-7,250,0,250,0,250,0,null,null,250,2.2858002978972091E-31,250,5.512726121147658E-9,250,0,250,0,250,0]
[500,0,500,0,500,0,500,0,500,0,null,null,500,3.419439634460865E-21,500,8.2122088000444779E-5,500,0,500,0,500,0,null,null,500,0,500,2.1182969321328011E-13,500,0,500,0,500,0,null,null,500,3.4194396344605589E-21,500,8.2122088000444779E-5,500,0,500,0,500,0,null,null,500,0,500,8.760446541371641E-6,500,2.636408732859962E-12,500,0,500,0]
[1000,4.5781054374955582E-35,1000,2.1810680144196334E-10,1000,0,1000,0,1000,0,null,null,1000,3.8910282355813932E-13,1000,3.2304916279525536E-4,1000,0,1000,0,1000,0,null,null,1000,1.4107537204423534E-28,1000,1.1560212744685544E-7,1000,0,1000,0,1000,0,null,null,1000,3.8910282355813952E-13,1000,3.2304916279525607E-4,1000,0,1000,0,1000,0,null,null,1000,1.375217626088485E-17,1000,1.0871890720770648E-4,1000,5.5708283686947438E-12,1000,1.2794435164680838E-12,1000,0]
[2000,7.2634845567956409E-25,2000,1.9636568726935016E-6,2000,0,2000,0,2000,0,null,null,2000,6.767043417994791E-8,2000,1.0477056688236087E-4,2000,0,2000,0,2000,0,null,null,2000,0,2000,1.4535091308924869E-5,2000,0,2000,0,2000,0,null,null,2000,6.767043417994791E-8,2000,1.0477056688235226E-4,2000,0,2000,0,2000,0,null,null,2000,4.5218979901701662E-10,2000,7.316983073356354E-5,2000,3.9196649268339821E-12,2000,1.1015806330625831E-12,2000,0]
[3000,0,3000,1.5337686848421426E-5,3000,0,3000,0,3000,0,null,null,3000,2.4714016270425234E-6,3000,1.7900113851472668E-5,3000,1.4313230954049314E-9,3000,0,3000,0,null,null,3000,1.690481785736497E-18,3000,1.9320703267170334E-5,3000,5.1417110357890563E-11,3000,0,3000,0,null,null,3000,2.4714016270425238E-6,3000,1.7900113851448676E-5,3000,1.4318123623934202E-9,3000,0,3000,0,null,null,3000,8.4584832226027617E-8,3000,1.8309683413274702E-5,3000,2.8741751084710752E-12,3000,8.4067804664237796E-13,3000,0]
[]
[]
["Pollutant Linkage: P1 2 3, AGB, Unsat S&G, Sat S&G, Non-Haz Compliance",null,null,null,null,null,null,null,null,null,null,null,"Pollutant Linkage: P1 2 3, AGB, Unsat S&G, Haz Compliance",null,null,null,null,null,null,null,null,null,null,null,"Pollutant Linkage: P4, AGB, Unsat S&G, Sat S&G, Non-Haz Compliance",null,null,null,null,null,null,null,null,null,null,null,"Pollutant Linkage: P4, AGB, Unsat S&G, Haz Compliance",null,null,null,null,null,null,null,null,null,null,null,"Pollutant Linkage: AGB, Un Sat S&G 2, Sat S&G, Non-Haz Compliance"]
["Remedial Target Concentrations in mg/L in P1 2 3",null,null,null,null,null,null,null,null,null,null,null,"Remedial Target Concentrations in mg/L in P1 2 3",null,null,null,null,null,null,null,null,null,null,null,"Remedial Target Concentrations in mg/L in P4",null,null,null,null,null,null,null,null,null,null,null,"Remedial Target Concentrations in mg/L in P4",null,null,null,null,null,null,null,null,null,null,null,"Remedial Target Concentrations in mg/L in AGB"]
[]
[null,"Species1",null,"Species2",null,"Species3",null,"Species4",null,"Species5",null,null,null,"Species1",null,"Species2",null,"Species3",null,"Species4",null,"Species5",null,null,null,"Species1",null,"Species2",null,"Species3",null,"Species4",null,"Species5",null,null,null,"Species1",null,"Species2",null,"Species3",null,"Species4",null,"Species5",null,null,null,"Species1",null,"Species2",null,"Species3",null,"Species4",null,"Species5"]
["Time(years)","Arsenic","Time(years)","Nickel","Time(years)","Sulphate","Time(years)","Benzene","Time(years)","BaP",null,null,"Time(years)","Arsenic","Time(years)","Nickel","Time(years)","Sulphate","Time(years)","Benzene","Time(years)","BaP",null,null,"Time(years)","Arsenic","Time(years)","Nickel","Time(years)","Sulphate","Time(years)","Benzene","Time(years)","BaP",null,null,"Time(years)","Arsenic","Time(years)","Nickel","Time(years)","Sulphate","Time(years)","Benzene","Time(years)","BaP",null,null,"Time(years)","Arsenic","Time(years)","Nickel","Time(years)","Sulphate","Time(years)","Benzene","Time(years)","BaP"]
[0.1,1E+40,0.1,1E+40,0.1,1E+40,0.1,1E+40,0.1,1E+40,null,null,0.1,1E+40,0.1,1E+40,0.1,335478636807249.69,0.1,1E+40,0.1,1E+40,null,null,0.1,1E+40,0.1,1E+40,0.1,1E+40,0.1,1E+40,0.1,1E+40,null,null,0.1,1E+40,0.1,1E+40,0.1,335478636807247.25,0.1,1E+40,0.1,1E+40,null,null,0.1,1E+40,0.1,1E+40,0.1,1542235014.5730305,0.1,1E+40,0.1,1E+40]
[0.2,1E+40,0.2,1E+40,0.2,1.2771300207670953E+21,0.2,1E+40,0.2,1E+40,null,null,0.2,1E+40,0.2,1E+40,0.2,39071018.152207471,0.2,1.4873320313920518E+34,0.2,1E+40,null,null,0.2,1E+40,0.2,1E+40,0.2,3.0613906592774917E+18,0.2,1E+40,0.2,1E+40,null,null,0.2,1E+40,0.2,1E+40,0.2,39071018.152207471,0.2,1.4873320313920515E+34,0.2,1E+40,null,null,0.2,1E+40,0.2,1E+40,0.2,188919.22330433677,0.2,180978.76045566562,0.2,1E+40]
[0.5,1E+40,0.5,1E+40,0.5,156754950580.3627,0.5,9.0375775862124174E+28,0.5,1E+40,null,null,0.5,1E+40,0.5,1E+40,0.5,3200.8665624353962,0.5,5.9635917016162025E+19,0.5,1E+40,null,null,0.5,1E+40,0.5,1E+40,0.5,176146309.48550794,0.5,6.5445507072814091E+25,0.5,1E+40,null,null,0.5,1E+40,0.5,1E+40,0.5,3200.8665624353962,0.5,5.9635917016162304E+19,0.5,1E+40,null,null,0.5,1E+40,0.5,1E+40,0.5,1520.1096184868136,0.5,1.4356832599772607,0.5,1E+40]
[0.75,1E+40,0.75,1E+40,0.75,26948925.734350428,0.75,1.4730919851885238E+22,0.75,1E+40,null,null,0.75,1E+40,0.75,1E+40,0.75,472.11769017398592,0.75,1E+40,0.75,1E+40,null,null,0.75,1E+40,0.75,1E+40,0.75,441464.55094238801,0.75,1E+40,0.75,1E+40,null,null,0.75,1E+40,0.75,1E+40,0.75,472.11769017398581,0.75,1E+40,0.75,1E+40,null,null,0.75,1E+40,0.75,1E+40,0.75,764.59993303631745,0.75,0.14982062206976157,0.75,1E+40]
[1,1E+40,1,1E+40,1,415916.14941548154,1,5.9548009201906207E+18,1,1E+40,null,null,1,1E+40,1,1E+40,1,203.86894038867598,1,1E+40,1,1E+40,null,null,1,1E+40,1,1E+40,1,27735.108515973592,1,1E+40,1,1E+40,null,null,1,1E+40,1,1E+40,1,203.86894038867567,1,1E+40,1,1E+40,null,null,1,1E+40,1,1E+40,1,680.51906933597479,1,6.0102917988330146E-2,1,1E+40]
[2,1E+40,2,1E+40,2,1755.3111056367327,2,1E+40,2,1E+40,null,null,2,1E+40,2,1E+40,2,89.831326595467672,2,1414562.2586972232,2,1E+40,null,null,2,1E+40,2,1E+40,2,1147.1240232624866,2,625540199931.93335,2,1E+40,null,null,2,1E+40,2,1E+40,2,89.831326595467573,2,1414562.2586972232,2,1E+40,null,null,2,1E+40,2,1E+40,2,1365.1125507099755,2,4.0499363626590214E-2,2,1E+40]
[5,1E+40,5,1E+40,5,474.87451794031813,5,26857.641614829747,5,1E+40,null,null,5,1E+40,5,1E+40,5,106.80337377323043,5,24.028525865074918,5,1E+40,null,null,5,1E+40,5,1E+40,5,873.43748805686175,5,3590.5129916524975,5,1E+40,null,null,5,1E+40,5,1E+40,5,106.8033737732263,5,24.028525865074922,5,1E+40,null,null,5,1E+40,5,1E+40,5,24853.427775056778,5,0.57055265584628978,5,1E+40]
[10,1E+40,10,1E+40,10,762.65966186535275,10,285.82529828026668,10,1E+40,null,null,10,1E+40,10,1E+40,10,174.87277528705408,10,5.8982551053246066,10,1E+40,null,null,10,1E+40,10,1E+40,10,1428.3295191834018,10,165.5556368062407,10,1E+40,null,null,10,1E+40,10,1E+40,10,174.87277528709586,10,5.8982551053246297,10,1E+40,null,null,10,1E+40,10,1E+40,10,3205885.5345668322,10,73.455846506520786,10,1E+40]
[50,1E+40,50,1E+40,50,39477.053747851016,50,9845.4578776396957,50,1E+40,null,null,50,1E+40,50,1.439042983059068E+17,50,9051.8606588310904,50,279.67888367748407,50,1E+40,null,null,50,1E+40,50,1E+40,50,73933.95960808103,50,6912.362453964276,50,1E+40,null,null,50,1E+40,50,6.6555737966481126E+17,50,9051.860658616788,50,279.67888367798361,50,1E+40,null,null,50,1E+40,50,1.6813216666967254E+21,50,1E+40,50,1E+40,50,1E+40]
[100,1E+40,100,7.7024895455602289E+34,100,5481206.6979406057,100,1366953.5644937637,100,1E+40,null,null,100,1E+40,100,36655124076.326225,100,1256841.8555129084,100,38830.788373901298,100,1E+40,null,null,100,1E+40,100,2.9781368793546387E+26,100,10265534.099433716,100,959717.63970608462,100,1E+40,null,null,100,1E+40,100,169529948853.00946,100,1256841.8538752112,100,38830.788382537619,100,1E+40,null,null,100,1E+40,100,1E+40,100,1E+40,100,1E+40,100,1E+40]
[250,1E+40,250,1.3871905492213918E+19,250,1E+40,250,1E+40,250,1E+40,null,null,250,6.6836886667291582E+22,250,347.44057584683708,250,1E+40,250,1E+40,250,1E+40,null,null,250,1E+40,250,1E+40,250,1E+40,250,1E+40,250,1E+40,null,null,250,6.6836886667291582E+22,250,1606.9126632916214,250,1E+40,250,1E+40,250,1E+40,null,null,250,2.1874176867505363E+28,250,725593.81911889114,250,1E+40,250,1E+40,250,1E+40]
[500,1E+40,500,1E+40,500,1E+40,500,1E+40,500,1E+40,null,null,500,7.3111394475433376E+16,500,1.9483187032352787,500,1E+40,500,1E+40,500,1E+40,null,null,500,1E+40,500,3493372382.1944695,500,1E+40,500,1E+40,500,1E+40,null,null,500,7.311139447543992E+16,500,9.010974002463163,500,1E+40,500,1E+40,500,1E+40,null,null,500,1E+40,500,456.59772947757887,500,28068485389867.906,500,1E+40,500,1E+40]
[1000,5.4607741873407332E+30,1000,733585.55965332827,1000,1E+40,1000,1E+40,1000,1E+40,null,null,1000,642503690.19140589,1000,0.49528065207030447,1000,1E+40,1000,1E+40,1000,1E+40,null,null,1000,1.7721023618609381E+24,1000,6401.2662772161566,1000,1E+40,1000,1E+40,1000,1E+40,null,null,1000,642503690.19140553,1000,2.2906730158251527,1000,1E+40,1000,1E+40,1000,1E+40,null,null,1000,363578818737325.25,1000,36.79212845984587,1000,13283482294274.729,1000,781589798.32146847,1000,1E+40]
[2000,3.4418741864894942E+20,2000,81.480630462964641,2000,1E+40,2000,1E+40,2000,1E+40,null,null,2000,3694.3755870577811,2000,1.5271464568828019,2000,1E+40,2000,1E+40,2000,1E+40,null,null,2000,1E+40,2000,50.911272882449907,2000,1E+40,2000,1E+40,2000,1E+40,null,null,2000,3694.3755870577811,2000,7.0630523630835382,2000,1E+40,2000,1E+40,2000,1E+40,null,null,2000,11057303.837612316,2000,54.667339802457278,2000,18879164770793.758,2000,907786475.16689587,2000,1E+40]
[3000,1E+40,3000,10.431820755061732,3000,1E+40,3000,1E+40,3000,1E+40,null,null,3000,101.15717221533514,3000,8.9384906335015621,3000,5170041637528.7285,3000,1E+40,3000,1E+40,null,null,3000,147886834457125.97,3000,38.300883242558008,3000,143920962272909.66,3000,1E+40,3000,1E+40,null,null,3000,101.15717221533512,3000,41.340519180000129,3000,5168274973984.8213,3000,1E+40,3000,1E+40,null,null,3000,59112.252970355235,3000,218.46363531878222,3000,25746517594526.273,3000,1189516015.0713406,3000,1E+40]
[]
["Compared with source concentrations in mg/L",null,null,null,null,null,null,null,null,null,null,null,"Compared with source concentrations in mg/L",null,null,null,null,null,null,null,null,null,null,null,"Compared with source concentrations in mg/L",null,null,null,null,null,null,null,null,null,null,null,"Compared with source concentrations in mg/L",null,null,null,null,null,null,null,null,null,null,null,"Compared with source concentrations in mg/L"]
[null,0.05,null,0.04,null,100,null,0.6,null,10,null,null,null,0.05,null,0.04,null,100,null,0.6,null,10,null,null,null,0.05,null,0.04,null,100,null,0.6,null,10,null,null,null,0.05,null,0.04,null,100,null,0.6,null,10,null,null,null,1,null,1,null,1,null,1,null,1]
[]
[]
["Pollutant Linkage: P1 2 3, AGB, Unsat S&G, Sat S&G, Non-Haz Compliance",null,null,null,null,null,null,null,null,null,null,null,"Pollutant Linkage: P1 2 3, AGB, Unsat S&G, Haz Compliance",null,null,null,null,null,null,null,null,null,null,null,"Pollutant Linkage: P4, AGB, Unsat S&G, Sat S&G, Non-Haz Compliance",null,null,null,null,null,null,null,null,null,null,null,"Pollutant Linkage: P4, AGB, Unsat S&G, Haz Compliance",null,null,null,null,null,null,null,null,null,null,null,"Pollutant Linkage: AGB, Un Sat S&G 2, Sat S&G, Non-Haz Compliance"]
["Dilution Factor",null,null,null,null,null,null,null,null,null,null,null,"Dilution Factor",null,null,null,null,null,null,null,null,null,null,null,"Dilution Factor",null,null,null,null,null,null,null,null,null,null,null,"Dilution Factor",null,null,null,null,null,null,null,null,null,null,null,"Dilution Factor"]
[]
[null,5.0213268564879039,"for all species and timeslices",null,null,null,null,null,null,null,null,null,null,1,"for all species and timeslices",null,null,null,null,null,null,null,null,null,null,8.7506406935208929,"for all species and timeslices",null,null,null,null,null,null,null,null,null,null,1,"for all species and timeslices",null,null,null,null,null,null,null,null,null,null,5.4012557096978648,"for all species and timeslices"]
[]
[]
["Pollutant Linkage: P1 2 3, AGB, Unsat S&G, Sat S&G, Non-Haz Compliance",null,null,null,null,null,null,null,null,null,null,null,"Pollutant Linkage: P1 2 3, AGB, Unsat S&G, Haz Compliance",null,null,null,null,null,null,null,null,null,null,null,"Pollutant Linkage: P4, AGB, Unsat S&G, Sat S&G, Non-Haz Compliance",null,null,null,null,null,null,null,null,null,null,null,"Pollutant Linkage: P4, AGB, Unsat S&G, Haz Compliance",null,null,null,null,null,null,null,null,null,null,null,"Pollutant Linkage: AGB, Un Sat S&G 2, Sat S&G, Non-Haz Compliance"]
["Attenuation Factor",null,null,null,null,null,null,null,null,null,null,null,"Attenuation Factor",null,null,null,null,null,null,null,null,null,null,null,"Attenuation Factor",null,null,null,null,null,null,null,null,null,null,null,"Attenuation Factor",null,null,null,null,null,null,null,null,null,null,null,"Attenuation Factor"]
[]
[null,"Species1",null,"Species2",null,"Species3",null,"Species4",null,"Species5",null,null,null,"Species1",null,"Species2",null,"Species3",null,"Species4",null,"Species5",null,null,null,"Species1",null,"Species2",null,"Species3",null,"Species4",null,"Species5",null,null,null,"Species1",null,"Species2",null,"Species3",null,"Species4",null,"Species5",null,null,null,"Species1",null,"Species2",null,"Species3",null,"Species4",null,"Species5"]
["Time(years)","Arsenic","Time(years)","Nickel","Time(years)","Sulphate","Time(years)","Benzene","Time(years)","BaP",null,null,"Time(years)","Arsenic","Time(years)","Nickel","Time(years)","Sulphate","Time(years)","Benzene","Time(years)","BaP",null,null,"Time(years)","Arsenic","Time(years)","Nickel","Time(years)","Sulphate","Time(years)","Benzene","Time(years)","BaP",null,null,"Time(years)","Arsenic","Time(years)","Nickel","Time(years)","Sulphate","Time(years)","Benzene","Time(years)","BaP",null,null,"Time(years)","Arsenic","Time(years)","Nickel","Time(years)","Sulphate","Time(years)","Benzene","Time(years)","BaP"]
[0.1,1E+40,0.1,7.9660219585819661E-2,0.1,1E+40,0.1,1.1949032937872948,0.1,1E+40,null,null,0.1,1E+40,0.1,0.39999999999999997,0.1,1E+40,0.1,5.9999999999999991,0.1,453349509198.98602,null,null,0.1,1E+40,0.1,4.5710938662601702E-2,0.1,1E+40,0.1,0.68566407993902556,0.1,1E+40,null,null,0.1,1E+40,0.1,0.39999999999999997,0.1,1E+40,0.1,5.9999999999999991,0.1,453349509198.98279,null,null,0.1,1E+40,0.1,1.8514213244977766,0.1,1E+40,0.1,1.8514213244977766,0.1,3858549.7207670915]
[0.2,1E+40,0.2,3.9830109792909831E-2,0.2,1E+40,0.2,0.59745164689364738,0.2,3.4370424964172038E+17,null,null,0.2,1E+40,0.2,0.19999999999999998,0.2,1E+40,0.2,2.9999999999999996,0.2,52798.673178658748,null,null,0.2,1E+40,0.2,2.2855469331300851E-2,0.2,1E+40,0.2,0.34283203996951278,0.2,472767029217889.25,null,null,0.2,1E+40,0.2,0.19999999999999998,0.2,1E+40,0.2,2.9999999999999996,0.2,52798.673178658741,null,null,0.2,1E+40,0.2,0.92571066224888832,0.2,1E+40,0.2,0.92571066224888832,0.2,472.6609170719006]
[0.5,1E+40,0.5,1.5932043917163932E-2,0.5,1E+40,0.5,0.23898065875745897,0.5,42186262.785121627,null,null,0.5,1E+40,0.5,0.08,0.5,1E+40,0.5,1.2,0.5,4.3254953546424275,null,null,0.5,1E+40,0.5,9.1421877325203408E-3,0.5,1E+40,0.5,0.13713281598780511,0.5,27202.071447755778,null,null,0.5,1E+40,0.5,0.08,0.5,1E+40,0.5,1.2,0.5,4.3254953546424275,null,null,0.5,1E+40,0.5,0.37028426489955535,0.5,1E+40,0.5,0.37028426489955535,0.5,3.8031937341090085]
[0.75,1E+40,0.75,1.0621362611442621E-2,0.75,1E+40,0.75,0.15932043917163932,0.75,7252.5585864875047,null,null,0.75,1E+40,0.75,5.3333333333333337E-2,0.75,1E+40,0.75,0.79999999999999993,0.75,0.63799687861349441,null,null,0.75,1E+40,0.75,6.0947918216802278E-3,0.75,1E+40,0.75,9.1421877325203404E-2,0.75,68.174861519731422,null,null,0.75,1E+40,0.75,5.3333333333333337E-2,0.75,1E+40,0.75,0.79999999999999993,0.75,0.6379968786134943,null,null,0.75,1E+40,0.75,0.24685617659970355,0.75,1E+40,0.75,0.24685617659970355,0.75,1.91296840639596]
[1,1E+40,1,7.9660219585819658E-3,1,1E+40,1,0.11949032937872948,1,111.93233713420892,null,null,1,1E+40,1,0.04,1,1E+40,1,0.6,1,0.27549856809280537,null,null,1,1E+40,1,4.5710938662601704E-3,1,1E+40,1,6.8566407993902553E-2,1,4.2831008249130784,null,null,1,1E+40,1,0.04,1,1E+40,1,0.6,1,0.27549856809280499,null,null,1,1E+40,1,0.18514213244977767,1,1E+40,1,0.18514213244977767,1,1.7026047522918983]
[2,1E+40,2,3.9830109792909829E-3,2,1E+40,2,5.9745164689364742E-2,2,0.47239347336638521,null,null,2,1E+40,2,0.02,2,1E+40,2,0.3,2,0.12139368458846982,null,null,2,1E+40,2,2.2855469331300852E-3,2,1E+40,2,3.4283203996951277E-2,2,0.1771490400869879,null,null,2,1E+40,2,0.02,2,1E+40,2,0.3,2,0.12139368458846969,null,null,2,1E+40,2,9.2571066224888837E-2,2,1E+40,2,9.2571066224888837E-2,2,3.4154033604378391]
[5,1E+40,5,1.5932043917163932E-3,5,1E+40,5,2.3898065875745899E-2,5,0.12779935261768918,null,null,5,1E+40,5,8.0000000000000002E-3,5,1E+40,5,0.12,5,0.14432888347733844,null,null,5,1E+40,5,9.1421877325203419E-4,5,1E+40,5,1.3713281598780512E-2,5,0.13488394406143284,null,null,5,1E+40,5,8.0000000000000002E-3,5,1E+40,5,0.12,5,0.14432888347733283,null,null,5,1E+40,5,3.7028426489955538E-2,5,1E+40,5,3.7028426489955538E-2,5,62.181305634601955]
[10,1E+40,10,7.9660219585819662E-4,10,1E+40,10,1.1949032937872949E-2,10,0.20524877072108436,null,null,10,1E+40,10,4.0000000000000001E-3,10,1E+40,10,0.06,10,0.23631456119872174,null,null,10,1E+40,10,4.5710938662601709E-4,10,1E+40,10,6.856640799390256E-3,10,0.22057528054518871,null,null,10,1E+40,10,4.0000000000000001E-3,10,1E+40,10,0.06,10,0.23631456119877822,null,null,10,1E+40,10,1.8514213244977769E-2,10,1E+40,10,1.8514213244977769E-2,10,8020.8714089134965]
[50,1E+40,50,1.5932043917163931E-4,50,1E+40,50,2.3898065875745896E-3,50,10.624158007280462,null,null,50,1E+40,50,8.0000000000000004E-4,50,8.994018644119174E+22,50,1.2E-2,50,12.232244133555527,null,null,50,1E+40,50,9.1421877325203416E-5,50,1E+40,50,1.3713281598780511E-3,50,11.417536124081973,null,null,50,1E+40,50,8.0000000000000004E-4,50,8.9940186441190717E+22,50,1.2E-2,50,12.23224413326593,null,null,50,1E+40,50,3.7028426489955535E-3,50,7.7820869676561515E+22,50,3.7028426489955535E-3,50,1E+40]
[100,1E+40,100,7.9660219585819654E-5,100,9.5872188837001267E+39,100,1.1949032937872948E-3,100,1475.1153011932911,null,null,100,1E+40,100,4.0000000000000002E-4,100,2.2909452547703888E+16,100,6.0000000000000001E-3,100,1698.4349398823088,null,null,100,1E+40,100,4.5710938662601708E-5,100,4.5991024398990523E+30,100,6.8566407993902556E-4,100,1585.2945931015568,null,null,100,1E+40,100,4.0000000000000002E-4,100,2.290945254770398E+16,100,6.0000000000000001E-3,100,1698.4349376692044,null,null,100,1E+40,100,1.8514213244977768E-3,100,1E+40,100,1.8514213244977768E-3,100,1E+40]
[250,1E+40,250,3.186408783432787E-5,250,1.7266234962242162E+24,250,4.77961317514918E-4,250,1E+40,null,null,250,1.3367377333458317E+25,250,1.6000000000000001E-4,250,217150359.90427315,250,2.3999999999999998E-3,250,1E+40,null,null,250,1E+40,250,1.8284375465040684E-5,250,1E+40,250,2.7426563197561023E-4,250,1E+40,null,null,250,1.3367377333458317E+25,250,1.6000000000000001E-4,250,217150359.90427315,250,2.3999999999999998E-3,250,1E+40,null,null,250,8.0996635016670817E+29,250,7.4056852979911077E-4,250,33584496.741012439,250,7.4056852979911077E-4,250,1E+40]
[500,1E+40,500,1.5932043917163935E-5,500,1E+40,500,2.38980658757459E-4,500,1E+40,null,null,500,1.4622278895086676E+19,500,8.0000000000000007E-5,500,1217699.1895220492,500,1.1999999999999999E-3,500,1E+40,null,null,500,1E+40,500,9.1421877325203419E-6,500,53947746854093.992,500,1.3713281598780512E-4,500,1E+40,null,null,500,1.4622278895087985E+19,500,8.0000000000000007E-5,500,1217699.1895220492,500,1.1999999999999999E-3,500,1E+40,null,null,500,1E+40,500,3.7028426489955538E-4,500,21133.869326801414,500,3.7028426489955538E-4,500,70225124861.021255]
[1000,2.1750323543606938E+32,1000,7.9660219585819674E-6,1000,91308729323.391464,1000,1.194903293787295E-4,1000,1E+40,null,null,1000,128500738038.28117,1000,4.0000000000000003E-5,1000,309550.40754394024,1000,5.9999999999999995E-4,1000,1E+40,null,null,1000,4.0502231183438484E+25,1000,4.571093866260171E-6,1000,98854016.946219087,1000,6.8566407993902559E-5,1000,1E+40,null,null,1000,128500738038.28111,1000,4.0000000000000003E-5,1000,309550.4075439396,1000,5.9999999999999995E-4,1000,1E+40,null,null,1000,1.3462751562919916E+16,1000,1.8514213244977769E-4,1000,1702.9432801055048,1000,1.8514213244977769E-4,1000,33234219436.768764]
[2000,1.3709022674125876E+22,2000,3.9830109792909837E-6,2000,10141820.17917311,2000,5.974516468936475E-5,2000,1E+40,null,null,2000,738875.1174115563,2000,2.0000000000000002E-5,2000,954466.53555175103,2000,2.9999999999999997E-4,2000,1E+40,null,null,2000,1E+40,2000,2.2855469331300855E-6,2000,786216.91620427207,2000,3.4283203996951279E-5,2000,1E+40,null,null,2000,738875.1174115563,2000,2.0000000000000002E-5,2000,954466.5355518295,2000,2.9999999999999997E-4,2000,1E+40,null,null,2000,409434562.3281309,2000,9.2571066224888846E-5,2000,2530.3069665958869,2000,9.2571066224888846E-5,2000,47234173304.533432]
[3000,1E+40,3000,2.6553406528606552E-6,3000,1298439.268793951,3000,3.9830109792909827E-5,3000,1E+40,null,null,3000,20231.434443067028,3000,1.3333333333333333E-5,3000,5586556.6459384756,3000,1.9999999999999998E-4,3000,6986542753.417201,null,null,3000,3380023009438008.5,3000,1.523697955420057E-6,3000,591476.12318379688,3000,2.2855469331300854E-5,3000,22225548238.917526,null,null,3000,20231.434443067024,3000,1.3333333333333333E-5,3000,5586556.6459459634,3000,1.9999999999999998E-4,3000,6984155370.2497587,null,null,3000,2188833.7137684543,3000,6.1714044149925888E-5,3000,10111.705826412475,3000,6.1714044149925888E-5,3000,64415745548.733978]
[]
[]
["Saved  02/02/2026: 14:24:41  Level Number: 5"]
[]
["BREAKTHROUGH RESULTS"]
[]
["Advanced"]
["Pollutant Linkage: P1 2 3, AGB, Unsat S&G, Sat S&G, Non-Haz Compliance",null,null,null,null,null,null,null,null,null,null,null,"Pollutant Linkage: P1 2 3, AGB, Unsat S&G, Haz Compliance",null,null,null,null,null,null,null,null,null,null,null,"Pollutant Linkage: P4, AGB, Unsat S&G, Sat S&G, Non-Haz Compliance",null,null,null,null,null,null,null,null,null,null,null,"Pollutant Linkage: P4, AGB, Unsat S&G, Haz Compliance",null,null,null,null,null,null,null,null,null,null,null,"Pollutant Linkage: AGB, Un Sat S&G 2, Sat S&G, Non-Haz Compliance"]
["Concentrations in mg/L in Non-Haz Compliance",null,null,null,null,null,null,null,null,null,null,null,"Concentrations in mg/L in Haz Compliance",null,null,null,null,null,null,null,null,null,null,null,"Concentrations in mg/L in Non-Haz Compliance",null,null,null,null,null,null,null,null,null,null,null,"Concentrations in mg/L in Haz Compliance",null,null,null,null,null,null,null,null,null,null,null,"Concentrations in mg/L in Non-Haz Compliance"]
[]
["Compared with P1 2 3 target concentration in mg/L",null,null,null,null,null,null,null,null,null,null,null,"Compared with P1 2 3 target concentration in mg/L",null,null,null,null,null,null,null,null,null,null,null,"Compared with P4 target concentration in mg/L",null,null,null,null,null,null,null,null,null,null,null,"Compared with P4 target concentration in mg/L",null,null,null,null,null,null,null,null,null,null,null,"Compared with P1 2 3 target concentration in mg/L"]
[null,5.0000000000000001E-3,null,4.0000000000000001E-3,null,74,null,1E-3,null,4.9999999999999998E-8,null,null,null,5.0000000000000001E-3,null,4.0000000000000001E-3,null,74,null,1E-3,null,4.9999999999999998E-8,null,null,null,5.0000000000000001E-3,null,1.8499999999999999E-2,null,74,null,1E-3,null,4.9999999999999998E-8,null,null,null,5.0000000000000001E-3,null,1.8499999999999999E-2,null,74,null,1E-3,null,4.9999999999999998E-8,null,null,null,5.0000000000000001E-3,null,4.0000000000000001E-3,null,74,null,1E-3,null,4.9999999999999998E-8]
[]
[null,"Species1",null,"Species2",null,"Species3",null,"Species4",null,"Species5",null,null,null,"Species1",null,"Species2",null,"Species3",null,"Species4",null,"Species5",null,null,null,"Species1",null,"Species2",null,"Species3",null,"Species4",null,"Species5",null,null,null,"Species1",null,"Species2",null,"Species3",null,"Species4",null,"Species5",null,null,null,"Species1",null,"Species2",null,"Species3",null,"Species4",null,"Species5"]
["Time(years)","Arsenic","Time(years)","Nickel","Time(years)","Sulphate","Time(years)","Benzene","Time(years)","BaP",null,null,"Time(years)","Arsenic","Time(years)","Nickel","Time(years)","Sulphate","Time(years)","Benzene","Time(years)","BaP",null,null,"Time(years)","Arsenic","Time(years)","Nickel","Time(years)","Sulphate","Time(years)","Benzene","Time(years)","BaP",null,null,"Time(years)","Arsenic","Time(years)","Nickel","Time(years)","Sulphate","Time(years)","Benzene","Time(years)","BaP",null,null,"Time(years)","Arsenic","Time(years)","Nickel","Time(years)","Sulphate","Time(years)","Benzene","Time(years)","BaP"]
[0.1,0,0.1,0,0.1,0,0.1,0,0.1,0,null,null,0.1,0,0.1,0,0.1,2.2058036453306843E-11,0.1,0,0.1,0,null,null,0.1,0,0.1,0,0.1,0,0.1,0,0.1,0,null,null,0.1,0,0.1,0,0.1,2.2058036453307002E-11,0.1,0,0.1,0,null,null,0.1,0,0.1,0,0.1,4.7982310932349687E-6,0.1,0,0.1,0]
[0.2,0,0.2,0,0.2,5.7942416822644765E-18,0.2,0,0.2,0,null,null,0.2,0,0.2,0,0.2,1.8939869883021995E-4,0.2,4.0340689727393059E-38,0.2,0,null,null,0.2,0,0.2,0,0.2,2.4172021226936286E-15,0.2,0,0.2,0,null,null,0.2,0,0.2,0,0.2,1.8939869883021997E-4,0.2,4.0340689727393069E-38,0.2,0,null,null,0.2,0,0.2,0,0.2,3.9170180093738127E-2,0.2,3.315306163493049E-9,0.2,0]
[0.5,0,0.5,0,0.5,4.7207440483395021E-8,0.5,6.6389471545489162E-33,0.5,0,null,null,0.5,0,0.5,0,0.5,2.3118739427768182,0.5,1.0061050957552861E-23,0.5,0,null,null,0.5,0,0.5,0,0.5,4.201053102738334E-5,0.5,9.1679326333654238E-30,0.5,0,null,null,0.5,0,0.5,0,0.5,2.3118739427768182,0.5,1.0061050957552814E-23,0.5,0,null,null,0.5,0,0.5,0,0.5,4.8680699799573004,0.5,4.1791947898696218E-4,0.5,0]
[0.75,0,0.75,0,0.75,2.7459350598779513E-4,0.75,4.0730654027909396E-26,0.75,0,null,null,0.75,0,0.75,0,0.75,15.674057875850691,0.75,0,0.75,0,null,null,0.75,0,0.75,0,0.75,1.6762387793546111E-2,0.75,0,0.75,0,null,null,0.75,0,0.75,0,0.75,15.674057875850695,0.75,0,0.75,0,null,null,0.75,0,0.75,0,0.75,9.678263991750228,0.75,4.0047891385781298E-3,0.75,0]
[1,0,1,0,1,1.7792047773090274E-2,1,1.0075903595124607E-22,1,0,null,null,1,0,1,0,1,36.297829310791066,1,0,1,0,null,null,1,0,1,0,1,0.26680984484838371,1,0,1,0,null,null,1,0,1,0,1,36.297829310791123,1,0,1,0,null,null,1,0,1,0,1,10.8740523718471,1,9.982876374097149E-3,1,0]
[2,0,2,0,2,4.2157768934730671,2,0,2,0,null,null,2,0,2,0,2,82.376608255202569,2,4.2415948560128073E-10,2,0,null,null,2,0,2,0,2,6.4509153761369022,2,9.5917096945214319E-16,2,0,null,null,2,0,2,0,2,82.376608255202655,2,4.2415948560128073E-10,2,0,null,null,2,0,2,0,2,5.4207984507601585,2,1.481504760252743E-2,2,0]
[5,0,5,0,5,15.583063989401147,5,2.2340010660828212E-8,5,0,null,null,5,0,5,0,5,69.286200787177393,5,2.4970320833209764E-5,5,0,null,null,5,0,5,0,5,8.4722720299798393,5,1.6710704052455078E-7,5,0,null,null,5,0,5,0,5,69.286200787180078,5,2.4970320833209761E-5,5,0,null,null,5,0,5,0,5,0.29774564969189893,5,1.051611965787918E-3,5,0]
[10,0,10,0,10,9.7028863200928903,10,2.0991843745464002E-6,10,0,null,null,10,0,10,0,10,42.316478296023391,10,1.0172499990011527E-4,10,0,null,null,10,0,10,0,10,5.180877312001992,10,3.6241592951752801E-6,10,0,null,null,10,0,10,0,10,42.31647829601328,10,1.0172499990011486E-4,10,0,null,null,10,0,10,0,10,2.3082545919869109E-3,10,8.1681721483745251E-6,10,0]
[50,0,50,0,50,0.18745066557564036,50,6.0941807629148193E-8,50,0,null,null,50,0,50,1.1118500411980574E-21,50,0.81751147956309766,50,2.1453174873648989E-6,50,0,null,null,50,0,50,0,50,0.10008932348851468,50,8.6801003853016529E-8,50,0,null,null,50,0,50,1.11185004119807E-21,50,0.81751147958245218,50,2.1453174873610669E-6,50,0,null,null,50,0,50,9.5163229719361381E-26,50,0,50,0,50,0]
[100,0,100,2.0772504662758702E-39,100,1.3500676781228341E-3,100,4.3893224728683694E-10,100,0,null,null,100,0,100,4.365010459842811E-15,100,5.8877733642790815E-3,100,1.5451656407863925E-8,100,0,null,null,100,0,100,2.484774978376272E-30,100,7.2085874230432988E-4,100,6.2518388240081855E-10,100,0,null,null,100,0,100,4.3650104598427929E-15,100,5.887773371951001E-3,100,1.5451656404427333E-8,100,0,null,null,100,0,100,0,100,0,100,0,100,0]
[250,0,250,1.1534103954918485E-23,250,0,250,0,250,0,null,null,250,3.7404495102304668E-27,250,4.6051040414615572E-7,250,0,250,0,250,0,null,null,250,0,250,0,250,0,250,0,250,0,null,null,250,3.7404495102304668E-27,250,4.6051040414615572E-7,250,0,250,0,250,0,null,null,250,1.142900148948604E-32,250,2.2050904484590647E-10,250,0,250,0,250,0]
[500,0,500,0,500,0,500,0,500,0,null,null,500,3.419439634460865E-21,500,8.2122088000444779E-5,500,0,500,0,500,0,null,null,500,0,500,2.1182969321328011E-13,500,0,500,0,500,0,null,null,500,3.4194396344605589E-21,500,8.2122088000444779E-5,500,0,500,0,500,0,null,null,500,0,500,3.504178616548658E-7,500,2.6350645076878896E-10,500,0,500,0]
[1000,4.5781054374955582E-35,1000,2.1810680144196334E-10,1000,0,1000,0,1000,0,null,null,1000,3.8910282355813932E-13,1000,3.2304916279525536E-4,1000,0,1000,0,1000,0,null,null,1000,1.4107537204423534E-28,1000,1.1560212744685544E-7,1000,0,1000,0,1000,0,null,null,1000,3.8910282355813952E-13,1000,3.2304916279525607E-4,1000,0,1000,0,1000,0,null,null,1000,6.8760881304411068E-19,1000,4.3487562883082637E-6,1000,5.5706796831187996E-10,1000,7.6764523812868538E-13,1000,0]
[2000,7.2634845567956409E-25,2000,1.9636568726935016E-6,2000,0,2000,0,2000,0,null,null,2000,6.767043417994791E-8,2000,1.0477056688236087E-4,2000,0,2000,0,2000,0,null,null,2000,0,2000,1.4535091308924869E-5,2000,0,2000,0,2000,0,null,null,2000,6.767043417994791E-8,2000,1.0477056688235226E-4,2000,0,2000,0,2000,0,null,null,2000,2.2609489950850828E-11,2000,2.9267932293426244E-6,2000,3.9205534053157703E-10,2000,6.6120319419718258E-13,2000,0]
[3000,0,3000,1.5337686848421426E-5,3000,0,3000,0,3000,0,null,null,3000,2.4714016270425234E-6,3000,1.7900113851472668E-5,3000,1.4313230954049314E-9,3000,0,3000,0,null,null,3000,1.690481785736497E-18,3000,1.9320703267170334E-5,3000,5.1417110357890563E-11,3000,0,3000,0,null,null,3000,2.4714016270425238E-6,3000,1.7900113851448676E-5,3000,1.4318123623934202E-9,3000,0,3000,0,null,null,3000,4.229241611301381E-9,3000,7.3238733653127715E-7,3000,2.8743140523118774E-10,3000,5.0449666056551658E-13,3000,0]
[]
[]
["Pollutant Linkage: P1 2 3, AGB, Unsat S&G, Sat S&G, Non-Haz Compliance",null,null,null,null,null,null,null,null,null,null,null,"Pollutant Linkage: P1 2 3, AGB, Unsat S&G, Haz Compliance",null,null,null,null,null,null,null,null,null,null,null,"Pollutant Linkage: P4, AGB, Unsat S&G, Sat S&G, Non-Haz Compliance",null,null,null,null,null,null,null,null,null,null,null,"Pollutant Linkage: P4, AGB, Unsat S&G, Haz Compliance",null,null,null,null,null,null,null,null,null,null,null,"Pollutant Linkage: AGB, Un Sat S&G 2, Sat S&G, Non-Haz Compliance"]
["Remedial Target Concentrations in mg/L in P1 2 3",null,null,null,null,null,null,null,null,null,null,null,"Remedial Target Concentrations in mg/L in P1 2 3",null,null,null,null,null,null,null,null,null,null,null,"Remedial Target Concentrations in mg/L in P4",null,null,null,null,null,null,null,null,null,null,null,"Remedial Target Concentrations in mg/L in P4",null,null,null,null,null,null,null,null,null,null,null,"Remedial Target Concentrations in mg/L in AGB"]
[]
[null,"Species1",null,"Species2",null,"Species3",null,"Species4",null,"Species5",null,null,null,"Species1",null,"Species2",null,"Species3",null,"Species4",null,"Species5",null,null,null,"Species1",null,"Species2",null,"Species3",null,"Species4",null,"Species5",null,null,null,"Species1",null,"Species2",null,"Species3",null,"Species4",null,"Species5",null,null,null,"Species1",null,"Species2",null,"Species3",null,"Species4",null,"Species5"]
["Time(years)","Arsenic","Time(years)","Nickel","Time(years)","Sulphate","Time(years)","Benzene","Time(years)","BaP",null,null,"Time(years)","Arsenic","Time(years)","Nickel","Time(years)","Sulphate","Time(years)","Benzene","Time(years)","BaP",null,null,"Time(years)","Arsenic","Time(years)","Nickel","Time(years)","Sulphate","Time(years)","Benzene","Time(years)","BaP",null,null,"Time(years)","Arsenic","Time(years)","Nickel","Time(years)","Sulphate","Time(years)","Benzene","Time(years)","BaP",null,null,"Time(years)","Arsenic","Time(years)","Nickel","Time(years)","Sulphate","Time(years)","Benzene","Time(years)","BaP"]
[0.1,1E+40,0.1,1E+40,0.1,1E+40,0.1,1E+40,0.1,1E+40,null,null,0.1,1E+40,0.1,1E+40,0.1,335478636807249.69,0.1,1E+40,0.1,1E+40,null,null,0.1,1E+40,0.1,1E+40,0.1,1E+40,0.1,1E+40,0.1,1E+40,null,null,0.1,1E+40,0.1,1E+40,0.1,335478636807247.25,0.1,1E+40,0.1,1E+40,null,null,0.1,1E+40,0.1,1E+40,0.1,1542235014.5730305,0.1,1E+40,0.1,1E+40]
[0.2,1E+40,0.2,1E+40,0.2,1.2771300207670953E+21,0.2,1E+40,0.2,1E+40,null,null,0.2,1E+40,0.2,1E+40,0.2,39071018.152207471,0.2,1.4873320313920518E+34,0.2,1E+40,null,null,0.2,1E+40,0.2,1E+40,0.2,3.0613906592774917E+18,0.2,1E+40,0.2,1E+40,null,null,0.2,1E+40,0.2,1E+40,0.2,39071018.152207471,0.2,1.4873320313920515E+34,0.2,1E+40,null,null,0.2,1E+40,0.2,1E+40,0.2,188919.22330433677,0.2,180978.7604556655,0.2,1E+40]
[0.5,1E+40,0.5,1E+40,0.5,156754950580.3627,0.5,9.0375775862124174E+28,0.5,1E+40,null,null,0.5,1E+40,0.5,1E+40,0.5,3200.8665624353962,0.5,5.9635917016162025E+19,0.5,1E+40,null,null,0.5,1E+40,0.5,1E+40,0.5,176146309.48550794,0.5,6.5445507072814091E+25,0.5,1E+40,null,null,0.5,1E+40,0.5,1E+40,0.5,3200.8665624353962,0.5,5.9635917016162304E+19,0.5,1E+40,null,null,0.5,1E+40,0.5,1E+40,0.5,1520.1096184868131,0.5,1.4356832599772602,0.5,1E+40]
[0.75,1E+40,0.75,1E+40,0.75,26948925.734350428,0.75,1.4730919851885238E+22,0.75,1E+40,null,null,0.75,1E+40,0.75,1E+40,0.75,472.11769017398592,0.75,1E+40,0.75,1E+40,null,null,0.75,1E+40,0.75,1E+40,0.75,441464.55094238801,0.75,1E+40,0.75,1E+40,null,null,0.75,1E+40,0.75,1E+40,0.75,472.11769017398581,0.75,1E+40,0.75,1E+40,null,null,0.75,1E+40,0.75,1E+40,0.75,764.59993303631472,0.75,0.14982062206976157,0.75,1E+40]
[1,1E+40,1,1E+40,1,415916.14941548154,1,5.9548009201906207E+18,1,1E+40,null,null,1,1E+40,1,1E+40,1,203.86894038867598,1,1E+40,1,1E+40,null,null,1,1E+40,1,1E+40,1,27735.108515973592,1,1E+40,1,1E+40,null,null,1,1E+40,1,1E+40,1,203.86894038867567,1,1E+40,1,1E+40,null,null,1,1E+40,1,1E+40,1,680.51906933597138,1,6.0102917988330187E-2,1,1E+40]
[2,1E+40,2,1E+40,2,1755.3111056367327,2,1E+40,2,1E+40,null,null,2,1E+40,2,1E+40,2,89.831326595467672,2,1414562.2586972232,2,1E+40,null,null,2,1E+40,2,1E+40,2,1147.1240232624866,2,625540199931.93335,2,1E+40,null,null,2,1E+40,2,1E+40,2,89.831326595467573,2,1414562.2586972232,2,1E+40,null,null,2,1E+40,2,1E+40,2,1365.1125507096281,2,4.0499363626590075E-2,2,1E+40]
[5,1E+40,5,1E+40,5,474.87451794031813,5,26857.641614829747,5,1E+40,null,null,5,1E+40,5,1E+40,5,106.80337377323043,5,24.028525865074918,5,1E+40,null,null,5,1E+40,5,1E+40,5,873.43748805686175,5,3590.5129916524975,5,1E+40,null,null,5,1E+40,5,1E+40,5,106.8033737732263,5,24.028525865074922,5,1E+40,null,null,5,1E+40,5,1E+40,5,24853.427775208027,5,0.57055265584625714,5,1E+40]
[10,1E+40,10,1E+40,10,762.65966186535275,10,285.82529828026668,10,1E+40,null,null,10,1E+40,10,1E+40,10,174.87277528705408,10,5.8982551053246066,10,1E+40,null,null,10,1E+40,10,1E+40,10,1428.3295191834018,10,165.5556368062407,10,1E+40,null,null,10,1E+40,10,1E+40,10,174.87277528709586,10,5.8982551053246297,10,1E+40,null,null,10,1E+40,10,1E+40,10,3205885.5317299254,10,73.455846559184067,10,1E+40]
[50,1E+40,50,1E+40,50,39477.053747851016,50,9845.4578776396957,50,1E+40,null,null,50,1E+40,50,1.439042983059068E+17,50,9051.8606588310904,50,279.67888367748407,50,1E+40,null,null,50,1E+40,50,1E+40,50,73933.95960808103,50,6912.362453964276,50,1E+40,null,null,50,1E+40,50,6.6555737966481126E+17,50,9051.860658616788,50,279.67888367798361,50,1E+40,null,null,50,1E+40,50,1.6813216666967251E+21,50,1E+40,50,1E+40,50,1E+40]
[100,1E+40,100,7.7024895455602289E+34,100,5481206.6979406057,100,1366953.5644937637,100,1E+40,null,null,100,1E+40,100,36655124076.326225,100,1256841.8555129084,100,38830.788373901298,100,1E+40,null,null,100,1E+40,100,2.9781368793546387E+26,100,10265534.099433716,100,959717.63970608462,100,1E+40,null,null,100,1E+40,100,169529948853.00946,100,1256841.8538752112,100,38830.788382537619,100,1E+40,null,null,100,1E+40,100,1E+40,100,1E+40,100,1E+40,100,1E+40]
[250,1E+40,250,1.3871905492213918E+19,250,1E+40,250,1E+40,250,1E+40,null,null,250,6.6836886667291582E+22,250,347.44057584683708,250,1E+40,250,1E+40,250,1E+40,null,null,250,1E+40,250,1E+40,250,1E+40,250,1E+40,250,1E+40,null,null,250,6.6836886667291582E+22,250,1606.9126632916214,250,1E+40,250,1E+40,250,1E+40,null,null,250,2.1874176867505372E+28,250,725593.81911889068,250,1E+40,250,1E+40,250,1E+40]
[500,1E+40,500,1E+40,500,1E+40,500,1E+40,500,1E+40,null,null,500,7.3111394475433376E+16,500,1.9483187032352787,500,1E+40,500,1E+40,500,1E+40,null,null,500,1E+40,500,3493372382.1944695,500,1E+40,500,1E+40,500,1E+40,null,null,500,7.311139447543992E+16,500,9.010974002463163,500,1E+40,500,1E+40,500,1E+40,null,null,500,1E+40,500,456.5977294775787,500,28082803963281.547,500,1E+40,500,1E+40]
[1000,5.4607741873407332E+30,1000,733585.55965332827,1000,1E+40,1000,1E+40,1000,1E+40,null,null,1000,642503690.19140589,1000,0.49528065207030447,1000,1E+40,1000,1E+40,1000,1E+40,null,null,1000,1.7721023618609381E+24,1000,6401.2662772161566,1000,1E+40,1000,1E+40,1000,1E+40,null,null,1000,642503690.19140553,1000,2.2906730158251527,1000,1E+40,1000,1E+40,1000,1E+40,null,null,1000,363578818737394.94,1000,36.792128459845834,1000,13283836840277.697,1000,781611049.21674514,1000,1E+40]
[2000,3.4418741864894942E+20,2000,81.480630462964641,2000,1E+40,2000,1E+40,2000,1E+40,null,null,2000,3694.3755870577811,2000,1.5271464568828019,2000,1E+40,2000,1E+40,2000,1E+40,null,null,2000,1E+40,2000,50.911272882449907,2000,1E+40,2000,1E+40,2000,1E+40,null,null,2000,3694.3755870577811,2000,7.0630523630835382,2000,1E+40,2000,1E+40,2000,1E+40,null,null,2000,11057303.837612318,2000,54.667339802455736,2000,18874886361620.641,2000,907436632.58993459,2000,1E+40]
[3000,1E+40,3000,10.431820755061732,3000,1E+40,3000,1E+40,3000,1E+40,null,null,3000,101.15717221533514,3000,8.9384906335015621,3000,5170041637528.7285,3000,1E+40,3000,1E+40,null,null,3000,147886834457125.97,3000,38.300883242558008,3000,143920962272909.66,3000,1E+40,3000,1E+40,null,null,3000,101.15717221533512,3000,41.340519180000129,3000,5168274973984.8213,3000,1E+40,3000,1E+40,null,null,3000,59112.252970355228,3000,218.46363531869599,3000,25745273012348.836,3000,1189304205.3587208,3000,1E+40]
[]
["Compared with source concentrations in mg/L",null,null,null,null,null,null,null,null,null,null,null,"Compared with source concentrations in mg/L",null,null,null,null,null,null,null,null,null,null,null,"Compared with source concentrations in mg/L",null,null,null,null,null,null,null,null,null,null,null,"Compared with source concentrations in mg/L",null,null,null,null,null,null,null,null,null,null,null,"Compared with source concentrations in mg/L"]
[null,0.05,null,0.04,null,100,null,0.6,null,10,null,null,null,0.05,null,0.04,null,100,null,0.6,null,10,null,null,null,0.05,null,0.04,null,100,null,0.6,null,10,null,null,null,0.05,null,0.04,null,100,null,0.6,null,10,null,null,null,0.05,null,0.04,null,100,null,0.6,null,10]
[]
[]
["Pollutant Linkage: P1 2 3, AGB, Unsat S&G, Sat S&G, Non-Haz Compliance",null,null,null,null,null,null,null,null,null,null,null,"Pollutant Linkage: P1 2 3, AGB, Unsat S&G, Haz Compliance",null,null,null,null,null,null,null,null,null,null,null,"Pollutant Linkage: P4, AGB, Unsat S&G, Sat S&G, Non-Haz Compliance",null,null,null,null,null,null,null,null,null,null,null,"Pollutant Linkage: P4, AGB, Unsat S&G, Haz Compliance",null,null,null,null,null,null,null,null,null,null,null,"Pollutant Linkage: AGB, Un Sat S&G 2, Sat S&G, Non-Haz Compliance"]
["Dilution Factor",null,null,null,null,null,null,null,null,null,null,null,"Dilution Factor",null,null,null,null,null,null,null,null,null,null,null,"Dilution Factor",null,null,null,null,null,null,null,null,null,null,null,"Dilution Factor",null,null,null,null,null,null,null,null,null,null,null,"Dilution Factor"]
[]
[null,5.0213268564879039,"for all species and timeslices",null,null,null,null,null,null,null,null,null,null,1,"for all species and timeslices",null,null,null,null,null,null,null,null,null,null,8.7506406935208929,"for all species and timeslices",null,null,null,null,null,null,null,null,null,null,1,"for all species and timeslices",null,null,null,null,null,null,null,null,null,null,5.4012557096978648,"for all species and timeslices"]
[]
[]
["Pollutant Linkage: P1 2 3, AGB, Unsat S&G, Sat S&G, Non-Haz Compliance",null,null,null,null,null,null,null,null,null,null,null,"Pollutant Linkage: P1 2 3, AGB, Unsat S&G, Haz Compliance",null,null,null,null,null,null,null,null,null,null,null,"Pollutant Linkage: P4, AGB, Unsat S&G, Sat S&G, Non-Haz Compliance",null,null,null,null,null,null,null,null,null,null,null,"Pollutant Linkage: P4, AGB, Unsat S&G, Haz Compliance",null,null,null,null,null,null,null,null,null,null,null,"Pollutant Linkage: AGB, Un Sat S&G 2, Sat S&G, Non-Haz Compliance"]
["Attenuation Factor",null,null,null,null,null,null,null,null,null,null,null,"Attenuation Factor",null,null,null,null,null,null,null,null,null,null,null,"Attenuation Factor",null,null,null,null,null,null,null,null,null,null,null,"Attenuation Factor",null,null,null,null,null,null,null,null,null,null,null,"Attenuation Factor"]
[]
[null,"Species1",null,"Species2",null,"Species3",null,"Species4",null,"Species5",null,null,null,"Species1",null,"Species2",null,"Species3",null,"Species4",null,"Species5",null,null,null,"Species1",null,"Species2",null,"Species3",null,"Species4",null,"Species5",null,null,null,"Species1",null,"Species2",null,"Species3",null,"Species4",null,"Species5",null,null,null,"Species1",null,"Species2",null,"Species3",null,"Species4",null,"Species5"]
["Time(years)","Arsenic","Time(years)","Nickel","Time(years)","Sulphate","Time(years)","Benzene","Time(years)","BaP",null,null,"Time(years)","Arsenic","Time(years)","Nickel","Time(years)","Sulphate","Time(years)","Benzene","Time(years)","BaP",null,null,"Time(years)","Arsenic","Time(years)","Nickel","Time(years)","Sulphate","Time(years)","Benzene","Time(years)","BaP",null,null,"Time(years)","Arsenic","Time(years)","Nickel","Time(years)","Sulphate","Time(years)","Benzene","Time(years)","BaP",null,null,"Time(years)","Arsenic","Time(years)","Nickel","Time(years)","Sulphate","Time(years)","Benzene","Time(years)","BaP"]
[0.1,1E+40,0.1,7.9660219585819661E-2,0.1,1E+40,0.1,1.1949032937872948,0.1,1E+40,null,null,0.1,1E+40,0.1,0.39999999999999997,0.1,1E+40,0.1,5.9999999999999991,0.1,453349509198.98602,null,null,0.1,1E+40,0.1,4.5710938662601702E-2,0.1,1E+40,0.1,0.68566407993902556,0.1,1E+40,null,null,0.1,1E+40,0.1,0.39999999999999997,0.1,1E+40,0.1,5.9999999999999991,0.1,453349509198.98279,null,null,0.1,1E+40,0.1,7.4056852979911061E-2,0.1,1E+40,0.1,1.1108527946986659,0.1,385854.97207670921]
[0.2,1E+40,0.2,3.9830109792909831E-2,0.2,1E+40,0.2,0.59745164689364738,0.2,3.4370424964172038E+17,null,null,0.2,1E+40,0.2,0.19999999999999998,0.2,1E+40,0.2,2.9999999999999996,0.2,52798.673178658748,null,null,0.2,1E+40,0.2,2.2855469331300851E-2,0.2,1E+40,0.2,0.34283203996951278,0.2,472767029217889.25,null,null,0.2,1E+40,0.2,0.19999999999999998,0.2,1E+40,0.2,2.9999999999999996,0.2,52798.673178658741,null,null,0.2,1E+40,0.2,3.7028426489955531E-2,0.2,1E+40,0.2,0.55542639734933297,0.2,47.266091707190057]
[0.5,1E+40,0.5,1.5932043917163932E-2,0.5,1E+40,0.5,0.23898065875745897,0.5,42186262.785121627,null,null,0.5,1E+40,0.5,0.08,0.5,1E+40,0.5,1.2,0.5,4.3254953546424275,null,null,0.5,1E+40,0.5,9.1421877325203408E-3,0.5,1E+40,0.5,0.13713281598780511,0.5,27202.071447755778,null,null,0.5,1E+40,0.5,0.08,0.5,1E+40,0.5,1.2,0.5,4.3254953546424275,null,null,0.5,1E+40,0.5,1.4811370595982214E-2,0.5,1E+40,0.5,0.2221705589397332,0.5,0.38031937341090077]
[0.75,1E+40,0.75,1.0621362611442621E-2,0.75,1E+40,0.75,0.15932043917163932,0.75,7252.5585864875047,null,null,0.75,1E+40,0.75,5.3333333333333337E-2,0.75,1E+40,0.75,0.79999999999999993,0.75,0.63799687861349441,null,null,0.75,1E+40,0.75,6.0947918216802278E-3,0.75,1E+40,0.75,9.1421877325203404E-2,0.75,68.174861519731422,null,null,0.75,1E+40,0.75,5.3333333333333337E-2,0.75,1E+40,0.75,0.79999999999999993,0.75,0.6379968786134943,null,null,0.75,1E+40,0.75,9.8742470639881421E-3,0.75,1E+40,0.75,0.14811370595982212,0.75,0.19129684063959529]
[1,1E+40,1,7.9660219585819658E-3,1,1E+40,1,0.11949032937872948,1,111.93233713420892,null,null,1,1E+40,1,0.04,1,1E+40,1,0.6,1,0.27549856809280537,null,null,1,1E+40,1,4.5710938662601704E-3,1,1E+40,1,6.8566407993902553E-2,1,4.2831008249130784,null,null,1,1E+40,1,0.04,1,1E+40,1,0.6,1,0.27549856809280499,null,null,1,1E+40,1,7.405685297991107E-3,1,1E+40,1,0.1110852794698666,1,0.17026047522918897]
[2,1E+40,2,3.9830109792909829E-3,2,1E+40,2,5.9745164689364742E-2,2,0.47239347336638521,null,null,2,1E+40,2,0.02,2,1E+40,2,0.3,2,0.12139368458846982,null,null,2,1E+40,2,2.2855469331300852E-3,2,1E+40,2,3.4283203996951277E-2,2,0.1771490400869879,null,null,2,1E+40,2,0.02,2,1E+40,2,0.3,2,0.12139368458846969,null,null,2,1E+40,2,3.7028426489955535E-3,2,1E+40,2,5.55426397349333E-2,2,0.34154033604369705]
[5,1E+40,5,1.5932043917163932E-3,5,1E+40,5,2.3898065875745899E-2,5,0.12779935261768918,null,null,5,1E+40,5,8.0000000000000002E-3,5,1E+40,5,0.12,5,0.14432888347733844,null,null,5,1E+40,5,9.1421877325203419E-4,5,1E+40,5,1.3713281598780512E-2,5,0.13488394406143284,null,null,5,1E+40,5,8.0000000000000002E-3,5,1E+40,5,0.12,5,0.14432888347733283,null,null,5,1E+40,5,1.4811370595982215E-3,5,1E+40,5,2.2217055893973322E-2,5,6.2181305634980379]
[10,1E+40,10,7.9660219585819662E-4,10,1E+40,10,1.1949032937872949E-2,10,0.20524877072108436,null,null,10,1E+40,10,4.0000000000000001E-3,10,1E+40,10,0.06,10,0.23631456119872174,null,null,10,1E+40,10,4.5710938662601709E-4,10,1E+40,10,6.856640799390256E-3,10,0.22057528054518871,null,null,10,1E+40,10,4.0000000000000001E-3,10,1E+40,10,0.06,10,0.23631456119877822,null,null,10,1E+40,10,7.4056852979911077E-4,10,1E+40,10,1.1108527946986661E-2,10,802.08714018157809]
[50,1E+40,50,1.5932043917163931E-4,50,1E+40,50,2.3898065875745896E-3,50,10.624158007280462,null,null,50,1E+40,50,8.0000000000000004E-4,50,8.994018644119174E+22,50,1.2E-2,50,12.232244133555527,null,null,50,1E+40,50,9.1421877325203416E-5,50,1E+40,50,1.3713281598780511E-3,50,11.417536124081973,null,null,50,1E+40,50,8.0000000000000004E-4,50,8.9940186441190717E+22,50,1.2E-2,50,12.23224413326593,null,null,50,1E+40,50,1.4811370595982213E-4,50,1.9455217419140378E+26,50,2.2217055893973318E-3,50,1E+40]
[100,1E+40,100,7.9660219585819654E-5,100,9.5872188837001267E+39,100,1.1949032937872948E-3,100,1475.1153011932911,null,null,100,1E+40,100,4.0000000000000002E-4,100,2.2909452547703888E+16,100,6.0000000000000001E-3,100,1698.4349398823088,null,null,100,1E+40,100,4.5710938662601708E-5,100,4.5991024398990523E+30,100,6.8566407993902556E-4,100,1585.2945931015568,null,null,100,1E+40,100,4.0000000000000002E-4,100,2.290945254770398E+16,100,6.0000000000000001E-3,100,1698.4349376692044,null,null,100,1E+40,100,7.4056852979911066E-5,100,1E+40,100,1.1108527946986659E-3,100,1E+40]
[250,1E+40,250,3.186408783432787E-5,250,1.7266234962242162E+24,250,4.77961317514918E-4,250,1E+40,null,null,250,1.3367377333458317E+25,250,1.6000000000000001E-4,250,217150359.90427315,250,2.3999999999999998E-3,250,1E+40,null,null,250,1E+40,250,1.8284375465040684E-5,250,1E+40,250,2.7426563197561023E-4,250,1E+40,null,null,250,1.3367377333458317E+25,250,1.6000000000000001E-4,250,217150359.90427315,250,2.3999999999999998E-3,250,1E+40,null,null,250,8.0996635016670873E+29,250,2.9622741191964431E-5,250,83961241852.531052,250,4.4434111787946645E-4,250,1E+40]
[500,1E+40,500,1.5932043917163935E-5,500,1E+40,500,2.38980658757459E-4,500,1E+40,null,null,500,1.4622278895086676E+19,500,8.0000000000000007E-5,500,1217699.1895220492,500,1.1999999999999999E-3,500,1E+40,null,null,500,1E+40,500,9.1421877325203419E-6,500,53947746854093.992,500,1.3713281598780512E-4,500,1E+40,null,null,500,1.4622278895087985E+19,500,8.0000000000000007E-5,500,1217699.1895220492,500,1.1999999999999999E-3,500,1E+40,null,null,500,1E+40,500,1.4811370595982216E-5,500,52834673.317003511,500,2.2217055893973322E-4,500,7026094879.6365051]
[1000,2.1750323543606938E+32,1000,7.9660219585819674E-6,1000,91308729323.391464,1000,1.194903293787295E-4,1000,1E+40,null,null,1000,128500738038.28117,1000,4.0000000000000003E-5,1000,309550.40754394024,1000,5.9999999999999995E-4,1000,1E+40,null,null,1000,4.0502231183438484E+25,1000,4.571093866260171E-6,1000,98854016.946219087,1000,6.8566407993902559E-5,1000,1E+40,null,null,1000,128500738038.28111,1000,4.0000000000000003E-5,1000,309550.4075439396,1000,5.9999999999999995E-4,1000,1E+40,null,null,1000,1.3462751562922498E+16,1000,7.4056852979911078E-6,1000,4257358.2002637573,1000,1.1108527946986661E-4,1000,3323510648.2755804]
[2000,1.3709022674125876E+22,2000,3.9830109792909837E-6,2000,10141820.17917311,2000,5.974516468936475E-5,2000,1E+40,null,null,2000,738875.1174115563,2000,2.0000000000000002E-5,2000,954466.53555175103,2000,2.9999999999999997E-4,2000,1E+40,null,null,2000,1E+40,2000,2.2855469331300855E-6,2000,786216.91620427207,2000,3.4283203996951279E-5,2000,1E+40,null,null,2000,738875.1174115563,2000,2.0000000000000002E-5,2000,954466.5355518295,2000,2.9999999999999997E-4,2000,1E+40,null,null,2000,409434562.32813096,2000,3.7028426489955539E-6,2000,6325767.4164895387,2000,5.5542639734933306E-5,2000,4722346906.4022579]
[3000,1E+40,3000,2.6553406528606552E-6,3000,1298439.268793951,3000,3.9830109792909827E-5,3000,1E+40,null,null,3000,20231.434443067028,3000,1.3333333333333333E-5,3000,5586556.6459384756,3000,1.9999999999999998E-4,3000,6986542753.417201,null,null,3000,3380023009438008.5,3000,1.523697955420057E-6,3000,591476.12318379688,3000,2.2855469331300854E-5,3000,22225548238.917526,null,null,3000,20231.434443067024,3000,1.3333333333333333E-5,3000,5586556.6459459634,3000,1.9999999999999998E-4,3000,6984155370.2497587,null,null,3000,2188833.7137684543,3000,2.4685617659970358E-6,3000,25279264.566021215,3000,3.7028426489955533E-5,3000,6441263170.2810469]

{"sheet":"NonHaz Complia","index":11,"n_rows":7,"n_cols":6,"rows_kept":7,"cut":false,"hidden":true,"merged":[]}
["RECEPTOR: NonHaz Complia"]
[]
["Receptor Options"]
[]
[null,null,null,null,null,"No further dilution along pathway"]
[]
[null,null,null,null,null,"No data requirement"]

{"sheet":"Haz Compliance","index":12,"n_rows":7,"n_cols":6,"rows_kept":7,"cut":false,"hidden":true,"merged":[]}
["RECEPTOR: Haz Compliance"]
[]
["Receptor Options"]
[]
[null,null,null,null,null,"No further dilution along pathway"]
[]
[null,null,null,null,null,"No data requirement"]